Workbook

Sheet Topics
A1: Topics | B1: Office Video # | C1: Excel Basics Video #
A2: Search for Excel functions: PMT and MEDIAN | B2: 35 | C2: 17
A3: Built-in Functions & Defined Names | B3: 36 | C3: 18
A4: Calculations With Criteria: SUMIFS and COUNTIFS | B4: 37 | C4: 19
A5: Cell References: Relative, Absolute, Mixed | B5: 38 | C5: 20
A6: Orientate Formula Inputs For Mixed Cell References | B6: 39 | C6: 21

Sheet Search
A1: Office 2013 Class #35: Excel Basics 17:
A2: Search for Excel Functions: PMT & MEDIAN Functions
A4: Search for function using Insert Function Dialog Box:
A5: Fx button on Formula Bar
A6: Keyboard: Shift + F3
A8: ="The Monthly Payment is $"&-B12 -> The Monthly Payment is $0
A9: Price of Car | B9: 34799 | C9: Annual Interest Rate | D9: 0.048
A10: Down Payment | B10: 10000 | C10: Monthly Interest Rate
A11: Loan Amount | C11: Years for Loan | D11: 5
A12: Monthly Payment | C12: Total Months
A13: Monthly Payment | B13: =-(B9-B10)*((D9/12)/(1-(1+D9/12)^-(D11*12))) -> -465.7188221
A19: Averages = "Typical Value" = one number represents all the numbers.
A20: Arithmetic Mean = Add up all the numbers and divide by the count.
A21: Median = After sorting the numbers, what number is in the middle?
A22: Median is a good average when there are some really big or small values in the data set.
A24: Average (Mean)
A25: Median
A27: House Price | C27: House Price | E27: Count | F27: =COUNT(C28:C10883) -> 10856
A28: 193738 | C28: 25004 | E28: Divide by 2 | F28: =F27/2 -> 5428
A29: 105564 | C29: 25053 | E29: Value 1 | F29: =INDEX($C$28:$C$10883,$F$28) -> 340773
A30: 116631 | C30: 25090 | E30: Value 2 | F30: =INDEX($C$28:$C$10883,$F$28+1) -> 341072
A31: 425672 | C31: 25236 | E31: Median | F31: =AVERAGE(F29:F30) -> 340922.5
A32: 621881 | C32: 25300
A33: 204001 | C33: 25321
A34: 43292 | C34: 25511
A35: 425789 | C35: 25574
A36: 142528 | C36: 25737
A37: 725976 | C37: 25792
A38: 997425 | C38: 25878
A39: 456685 | C39: 26032
A40: 514711 | C40: 26130
A41: 82345 | C41: 26166
A42: 268533 | C42: 26375
A43: 147775 | C43: 26483
A44: 408126 | C44: 26505
A45: 199688 | C45: 27217
A46: 1334920 | C46: 27318
A47: 203718 | C47: 27741
A48: 168062 | C48: 27742
A49: 421446 | C49: 27772
A50: 150958 | C50: 27834
A51: 192506 | C51: 28003
A52: 246497 | C52: 28015
A53: 299665 | C53: 28235
A54: 710799 | C54: 28384
A55: 1519391 | C55: 28389
A56: 665764 | C56: 28481
A57: 556757 | C57: 28520
A58: 142908 | C58: 28531
A59: 482122 | C59: 28827
A60: 141721 | C60: 28873
A61: 179819 | C61: 29293
A62: 115299 | C62: 29303
A63: 585282 | C63: 29388
A64: 165831 | C64: 29425
A65: 709702 | C65: 29441
A66: 806575 | C66: 29483
A67: 160357 | C67: 30012
A68: 259033 | C68: 30223
A69: 492854 | C69: 30245
A70: 920494 | C70: 30267
A71: 472569 | C71: 30354
A72: 717001 | C72: 30846
A73: 192604 | C73: 30856
A74: 249927 | C74: 31097
A75: 183567 | C75: 31230
A76: 147625 | C76: 31344
A77: 1599304 | C77: 31482
A78: 1473153 | C78: 31585
A79: 199563 | C79: 31601
A80: 149837 | C80: 31730
A81: 179099 | C81: 31877
A82: 517035 | C82: 31970
A83: 718720 | C83: 32210
A84: 187250 | C84: 32442
A85: 231321 | C85: 32443
A86: 186053 | C86: 32526
A87: 357213 | C87: 32753
A88: 64510 | C88: 32876
A89: 65471 | C89: 33142
A90: 151587 | C90: 33727
A91: 251416 | C91: 33867
A92: 729838 | C92: 33948
A93: 121193 | C93: 34001
A94: 198832 | C94: 34032
A95: 113776 | C95: 34073
A96: 109917 | C96: 34232
A97: 383571 | C97: 34538
A98: 126726 | C98: 34663
A99: 193396 | C99: 34705
A100: 70091 | C100: 34744
A101: 147796 | C101: 34753
A102: 155182 | C102: 35163
A103: 57893 | C103: 35247
A104: 34705 | C104: 35480
A105: 195258 | C105: 35579
A106: 174034 | C106: 35967
A107: 66588 | C107: 35985
A108: 1067955 | C108: 35986
A109: 169235 | C109: 35994
A110: 334766 | C110: 36060
A111: 833601 | C111: 36450
A112: 568599 | C112: 36525
A113: 602591 | C113: 36932
A114: 1133689 | C114: 37123
A115: 147885 | C115: 37144
A116: 176486 | C116: 37144
A117: 790167 | C117: 37206
A118: 625855 | C118: 37284
A119: 231116 | C119: 37326
A120: 125546 | C120: 37413
A121: 791938 | C121: 37629
A122: 179378 | C122: 37827
A123: 792634 | C123: 38063
A124: 140203 | C124: 38066
A125: 1715537 | C125: 38450
A126: 526447 | C126: 38644
A127: 139627 | C127: 38862
A128: 175239 | C128: 38987
A129: 173330 | C129: 38998
A130: 115356 | C130: 39175
A131: 243532 | C131: 39366
A132: 951697 | C132: 39529
A133: 153602 | C133: 39547
A134: 420574 | C134: 39591
A135: 847238 | C135: 39702
A136: 563729 | C136: 39737
A137: 279499 | C137: 39867
A138: 154403 | C138: 39873
A139: 464469 | C139: 40007
A140: 108334 | C140: 40088
A141: 205718 | C141: 40142
A142: 176647 | C142: 40406
A143: 146637 | C143: 40479
A144: 547927 | C144: 40507
A145: 108932 | C145: 40636
A146: 134176 | C146: 40649
A147: 590261 | C147: 40737
A148: 109322 | C148: 40831
A149: 400388 | C149: 40884
A150: 190852 | C150: 40989
A151: 1374559 | C151: 41282
A152: 576008 | C152: 41303
A153: 397787 | C153: 41329
A154: 58931 | C154: 41398
A155: 424808 | C155: 41458
A156: 248749 | C156: 41537
A157: 735889 | C157: 41543
A158: 189335 | C158: 41571
A159: 476567 | C159: 41679
A160: 107694 | C160: 41722
A161: 149243 | C161: 41935
A162: 431538 | C162: 41979
A163: 502994 | C163: 42016
A164: 258860 | C164: 42050
A165: 142696 | C165: 42146
A166: 196694 | C166: 42295
A167: 422749 | C167: 42714
A168: 232965 | C168: 42901
A169: 319292 | C169: 42912
A170: 1192080 | C170: 43127
A171: 1571605 | C171: 43215
A172: 497177 | C172: 43292
A173: 468449 | C173: 43447
A174: 546009 | C174: 43531
A175: 549952 | C175: 43532
A176: 36525 | C176: 43549
A177: 261860 | C177: 43630
A178: 458075 | C178: 43647
A179: 858450 | C179: 43658
A180: 224862 | C180: 43798
A181: 223831 | C181: 44109
A182: 517671 | C182: 44270
A183: 354682 | C183: 44289
A184: 309189 | C184: 44547
A185: 572014 | C185: 44628
A186: 515200 | C186: 44659
A187: 553946 | C187: 44732
A188: 944758 | C188: 44792
A189: 757202 | C189: 44805
A190: 285686 | C190: 44982
A191: 31097 | C191: 45022
A192: 669175 | C192: 45286
A193: 429383 | C193: 45404
A194: 285888 | C194: 45500
A195: 161387 | C195: 45574
A196: 838240 | C196: 45747
A197: 798393 | C197: 45821
A198: 913330 | C198: 45995
A199: 101623 | C199: 46188
A200: 680925 | C200: 46216
A201: 87896 | C201: 46222
A202: 266062 | C202: 46366
A203: 264350 | C203: 46401
A204: 157954 | C204: 46435
A205: 141723 | C205: 46486
A206: 179842 | C206: 46493
A207: 237152 | C207: 46496
A208: 737339 | C208: 46866
A209: 479401 | C209: 46879
... 10674 more rows

Sheet Search (an)
A1: Office 2013 Class #35: Excel Basics 17:
A2: Search for Excel Functions: PMT & MEDIAN Functions
A4: Search for function using Insert Function Dialog Box:
A5: Fx button on Formula Bar
A6: Keyboard: Shift + F3
A8: ="The Monthly Payment is $"&-B12 -> The Monthly Payment is $413.15
A9: Price of Car | B9: 24000 | C9: Annual Interest Rate | D9: 0.048
A10: Down Payment | B10: 2000 | C10: Monthly Interest Rate | D10: =D9/12 -> 0.004
A11: Loan Amount | B11: =B9-B10 -> 22000 | C11: Years for Loan | D11: 5
A12: Monthly Payment | B12: =ROUND(PMT(D10,D12,B11),2) -> -413.15 | C12: Total Months | D12: =D11*12 -> 60
A13: Monthly Payment | B13: =-(B9-B10)*((D9/12)/(1-(1+D9/12)^-(D11*12))) -> -413.1543242
A19: Averages = "Typical Value" = one number represents all the numbers.
A20: Arithmetic Mean = Add up all the numbers and divide by the count.
A21: Median = After sorting the numbers, what number is in the middle?
A22: Median is a good average when there are some really big or small values in the data set.
A24: Average (Mean) | B24: =AVERAGE(A28:A10883) -> 460688.6871
A25: Median | B25: =MEDIAN(A28:A10883) -> 340922.5
A27: House Price | C27: House Price | E27: Count | F27: =COUNT(C28:C10883) -> 10856
A28: 193738 | C28: 25004 | E28: Divide by 2 | F28: =F27/2 -> 5428
A29: 105564 | C29: 25053 | E29: Value 1 | F29: =INDEX($C$28:$C$10883,$F$28) -> 340773
A30: 116631 | C30: 25090 | E30: Value 2 | F30: =INDEX($C$28:$C$10883,$F$28+1) -> 341072
A31: 425672 | C31: 25236 | E31: Median | F31: =AVERAGE(F29:F30) -> 340922.5
A32: 621881 | C32: 25300
A33: 204001 | C33: 25321
A34: 43292 | C34: 25511
A35: 425789 | C35: 25574
A36: 142528 | C36: 25737
A37: 725976 | C37: 25792
A38: 997425 | C38: 25878
A39: 456685 | C39: 26032
A40: 514711 | C40: 26130
A41: 82345 | C41: 26166
A42: 268533 | C42: 26375
A43: 147775 | C43: 26483
A44: 408126 | C44: 26505
A45: 199688 | C45: 27217
A46: 1334920 | C46: 27318
A47: 203718 | C47: 27741
A48: 168062 | C48: 27742
A49: 421446 | C49: 27772
A50: 150958 | C50: 27834
A51: 192506 | C51: 28003
A52: 246497 | C52: 28015
A53: 299665 | C53: 28235
A54: 710799 | C54: 28384
A55: 1519391 | C55: 28389
A56: 665764 | C56: 28481
A57: 556757 | C57: 28520
A58: 142908 | C58: 28531
A59: 482122 | C59: 28827
A60: 141721 | C60: 28873
A61: 179819 | C61: 29293
A62: 115299 | C62: 29303
A63: 585282 | C63: 29388
A64: 165831 | C64: 29425
A65: 709702 | C65: 29441
A66: 806575 | C66: 29483
A67: 160357 | C67: 30012
A68: 259033 | C68: 30223
A69: 492854 | C69: 30245
A70: 920494 | C70: 30267
A71: 472569 | C71: 30354
A72: 717001 | C72: 30846
A73: 192604 | C73: 30856
A74: 249927 | C74: 31097
A75: 183567 | C75: 31230
A76: 147625 | C76: 31344
A77: 1599304 | C77: 31482
A78: 1473153 | C78: 31585
A79: 199563 | C79: 31601
A80: 149837 | C80: 31730
A81: 179099 | C81: 31877
A82: 517035 | C82: 31970
A83: 718720 | C83: 32210
A84: 187250 | C84: 32442
A85: 231321 | C85: 32443
A86: 186053 | C86: 32526
A87: 357213 | C87: 32753
A88: 64510 | C88: 32876
A89: 65471 | C89: 33142
A90: 151587 | C90: 33727
A91: 251416 | C91: 33867
A92: 729838 | C92: 33948
A93: 121193 | C93: 34001
A94: 198832 | C94: 34032
A95: 113776 | C95: 34073
A96: 109917 | C96: 34232
A97: 383571 | C97: 34538
A98: 126726 | C98: 34663
A99: 193396 | C99: 34705
A100: 70091 | C100: 34744
A101: 147796 | C101: 34753
A102: 155182 | C102: 35163
A103: 57893 | C103: 35247
A104: 34705 | C104: 35480
A105: 195258 | C105: 35579
A106: 174034 | C106: 35967
A107: 66588 | C107: 35985
A108: 1067955 | C108: 35986
A109: 169235 | C109: 35994
A110: 334766 | C110: 36060
A111: 833601 | C111: 36450
A112: 568599 | C112: 36525
A113: 602591 | C113: 36932
A114: 1133689 | C114: 37123
A115: 147885 | C115: 37144
A116: 176486 | C116: 37144
A117: 790167 | C117: 37206
A118: 625855 | C118: 37284
A119: 231116 | C119: 37326
A120: 125546 | C120: 37413
A121: 791938 | C121: 37629
A122: 179378 | C122: 37827
A123: 792634 | C123: 38063
A124: 140203 | C124: 38066
A125: 1715537 | C125: 38450
A126: 526447 | C126: 38644
A127: 139627 | C127: 38862
A128: 175239 | C128: 38987
A129: 173330 | C129: 38998
A130: 115356 | C130: 39175
A131: 243532 | C131: 39366
A132: 951697 | C132: 39529
A133: 153602 | C133: 39547
A134: 420574 | C134: 39591
A135: 847238 | C135: 39702
A136: 563729 | C136: 39737
A137: 279499 | C137: 39867
A138: 154403 | C138: 39873
A139: 464469 | C139: 40007
A140: 108334 | C140: 40088
A141: 205718 | C141: 40142
A142: 176647 | C142: 40406
A143: 146637 | C143: 40479
A144: 547927 | C144: 40507
A145: 108932 | C145: 40636
A146: 134176 | C146: 40649
A147: 590261 | C147: 40737
A148: 109322 | C148: 40831
A149: 400388 | C149: 40884
A150: 190852 | C150: 40989
A151: 1374559 | C151: 41282
A152: 576008 | C152: 41303
A153: 397787 | C153: 41329
A154: 58931 | C154: 41398
A155: 424808 | C155: 41458
A156: 248749 | C156: 41537
A157: 735889 | C157: 41543
A158: 189335 | C158: 41571
A159: 476567 | C159: 41679
A160: 107694 | C160: 41722
A161: 149243 | C161: 41935
A162: 431538 | C162: 41979
A163: 502994 | C163: 42016
A164: 258860 | C164: 42050
A165: 142696 | C165: 42146
A166: 196694 | C166: 42295
A167: 422749 | C167: 42714
A168: 232965 | C168: 42901
A169: 319292 | C169: 42912
A170: 1192080 | C170: 43127
A171: 1571605 | C171: 43215
A172: 497177 | C172: 43292
A173: 468449 | C173: 43447
A174: 546009 | C174: 43531
A175: 549952 | C175: 43532
A176: 36525 | C176: 43549
A177: 261860 | C177: 43630
A178: 458075 | C178: 43647
A179: 858450 | C179: 43658
A180: 224862 | C180: 43798
A181: 223831 | C181: 44109
A182: 517671 | C182: 44270
A183: 354682 | C183: 44289
A184: 309189 | C184: 44547
A185: 572014 | C185: 44628
A186: 515200 | C186: 44659
A187: 553946 | C187: 44732
A188: 944758 | C188: 44792
A189: 757202 | C189: 44805
A190: 285686 | C190: 44982
A191: 31097 | C191: 45022
A192: 669175 | C192: 45286
A193: 429383 | C193: 45404
A194: 285888 | C194: 45500
A195: 161387 | C195: 45574
A196: 838240 | C196: 45747
A197: 798393 | C197: 45821
A198: 913330 | C198: 45995
A199: 101623 | C199: 46188
A200: 680925 | C200: 46216
A201: 87896 | C201: 46222
A202: 266062 | C202: 46366
A203: 264350 | C203: 46401
A204: 157954 | C204: 46435
A205: 141723 | C205: 46486
A206: 179842 | C206: 46493
A207: 237152 | C207: 46496
A208: 737339 | C208: 46866
A209: 479401 | C209: 46879
... 10674 more rows

Sheet Func & Defined Names
A1: 1) If you are going to use the same range over and over, and you don't want to use
A2: the Excel Table feature, you can use the Defined Name feature.
A3: 2) Defined Name feature:
A4: Highlight cell or range, click in Name Box, Type name without spaces, hit Enter.
A5: 3) The Defined Names group in the Formulas Ribbon Tab contains:
A6: Name Manager: edit, delete Defined Names
A7: Use in formula
A8: Create Names From Selection
A9: 4) keyboards:
A10: Name Manager keyboard = Ctrl + F3
A11: Paste Name = F3
A12: Create Names From Selection = Ctrl + Shift + F3
A13: 5) Rules for Defined Names:
A14: Must begin with text, not number
A15: No spaces
A16: No cell references
A17: Max of 255 characters in name
A18: Cannot use the characters: */+-()^<>+&%~`|][}{@";:,'$#!
A22: Office 2013 Class #36: Excel Basics 18:
A23: Built-in Functions and Defined Names
A25: Goal: use same range over and over to make different calculations.
A27: First Date | D27: Region | E27: Sales
A28: Last Date | D28: SouthEast
A29: Total Sales | D29: West
A30: Number of Sales | D30: North
A31: Max Sale | D31: MidWest
A32: Min Sale | D32: NorthEast
A34: Date | B34: Region | C34: Sales Rep | D34: Customer | E34: Product | F34: COGS | G34: Sales
A35: 2005-10-07 | B35: SouthEast | C35: Luke | D35: Amazon.com | E35: AIM Item | F35: 3641.6344 | G35: 6278.68
A36: 2004-10-26 | B36: West | C36: Jeri | D36: Costco | E36: UYR Item | F36: 3188.9187 | G36: 7416.09
A37: 2005-05-20 | B37: North | C37: Sheliadawn | D37: Home Depot | E37: XOU Item | F37: 3636.0838 | G37: 6269.11
A38: 2004-09-24 | B38: MidWest | C38: Jon | D38: Whole Foods | E38: ILP Item | F38: 2982.5345 | G38: 5422.79
A39: 2005-01-14 | B39: MidWest | C39: Steven | D39: McLendon's Hardware | E39: LXS Item | F39: 6385.7321 | G39: 6829.66
A40: 2005-04-03 | B40: West | C40: Sheliadawn | D40: Whole Foods | E40: MFB Item | F40: 1174.977 | G40: 2611.06
A41: 2006-01-20 | B41: NorthEast | C41: Jeri | D41: Nature Company | E41: NEE Item | F41: 2790.6526 | G41: 4811.47
A42: 2006-02-26 | B42: SouthEast | C42: Jeri | D42: Home Depot | E42: JHF Item | F42: 15.062 | G42: 22.15
A43: 2004-12-16 | B43: MidWest | C43: Jeri | D43: Amazon.com | E43: LII Item | F43: 7221.7024 | G43: 8206.48
A44: 2006-04-05 | B44: NorthEast | C44: Jeri | D44: Costco | E44: FSJ Item | F44: 4647.2855 | G44: 8449.61
A45: 2005-06-24 | B45: NorthEast | C45: Jeri | D45: Yahoo | E45: HVH Item | F45: 1264.4821 | G45: 2143.19
A46: 2004-08-22 | B46: SouthEast | C46: Chin | D46: Sherman Williams | E46: YVD Item | F46: 3605.8735 | G46: 6111.65
A47: 2005-11-09 | B47: NorthEast | C47: Luke | D47: Google | E47: TTM Item | F47: 203.685 | G47: 271.58
A48: 2005-03-23 | B48: MidWest | C48: Rhonda | D48: Costco | E48: MKA Item | F48: 944.4102 | G48: 2552.46
A49: 2005-10-03 | B49: MidWest | C49: Troung | D49: McLendon's Hardware | E49: EVO Item | F49: 9189.7784 | G49: 9828.64
A50: 2005-04-04 | B50: MidWest | C50: Rhonda | D50: The Economist | E50: EYG Item | F50: 3918.3584 | G50: 4452.68
A51: 2006-01-05 | B51: NorthEast | C51: Luke | D51: Yahoo | E51: LVD Item | F51: 241.6575 | G51: 322.21
A52: 2004-11-06 | B52: NorthEast | C52: Luke | D52: Nature Company | E52: BCD Item | F52: 563.563 | G52: 1024.66
A53: 2005-09-25 | B53: SouthEast | C53: Jon | D53: Costco | E53: UGN Item | F53: 1503.7125 | G53: 2004.95
A54: 2004-11-12 | B54: MidWest | C54: Chin | D54: Solar and Wind Inc. | E54: PET Item | F54: 3504.6548 | G54: 8150.36
A55: 2004-12-07 | B55: West | C55: Jeri | D55: ExcelIsVeryFun.com | E55: AIU Item | F55: 3845.5505 | G55: 6991.91
A56: 2005-11-05 | B56: North | C56: Steven | D56: The Economist | E56: XIM Item | F56: 2510.1938 | G56: 5837.66
A57: 2005-09-30 | B57: NorthEast | C57: Jeri | D57: Amazon.com | E57: AIZ Item | F57: 627.9392 | G57: 923.44
A58: 2004-08-27 | B58: NorthEast | C58: Chin | D58: The Economist | E58: VBF Item | F58: 1441.1399 | G58: 2442.61
A59: 2004-08-18 | B59: NorthEast | C59: Rhonda | D59: Costco | E59: VCN Item | F59: 2991.765 | G59: 3989.02
A60: 2006-02-19 | B60: North | C60: Troung | D60: ExcelIsVeryFun.com | E60: GHH Item | F60: 7657.5664 | G60: 8701.78
A61: 2005-12-11 | B61: NorthEast | C61: Jeri | D61: Home Depot | E61: WPD Item | F61: 3140.5782 | G61: 5414.79
A62: 2005-03-17 | B62: NorthEast | C62: Chin | D62: Costco | E62: YWP Item | F62: 558.2475 | G62: 1298.25
A63: 2004-12-01 | B63: North | C63: Sheliadawn | D63: Home Depot | E63: BPJ Item | F63: 730.538 | G63: 1238.2
A64: 2005-04-05 | B64: NorthEast | C64: Chin | D64: Nature Company | E64: HLL Item | F64: 4007.9864 | G64: 4554.53
A65: 2005-03-04 | B65: MidWest | C65: Luke | D65: ExcelIsVeryFun.com | E65: YAK Item | F65: 5245.7053 | G65: 5610.38
A66: 2006-05-19 | B66: West | C66: Jeri | D66: Nature Company | E66: GVD Item | F66: 1854.6072 | G66: 4313.04
A67: 2005-04-25 | B67: North | C67: Luke | D67: Whole Foods | E67: SRN Item | F67: 4662.3044 | G67: 6856.33
A68: 2004-09-24 | B68: West | C68: Luke | D68: Yahoo | E68: UCA Item | F68: 1267.398 | G68: 2304.36
A69: 2004-06-17 | B69: MidWest | C69: Chin | D69: ExcelIsVeryFun.com | E69: MWN Item | F69: 6305.0008 | G69: 9272.06
A70: 2005-05-24 | B70: SouthEast | C70: Steven | D70: Sherman Williams | E70: OQM Item | F70: 6515.34 | G70: 8687.12
A71: 2005-10-20 | B71: SouthEast | C71: Luke | D71: Costco | E71: CLN Item | F71: 612.126 | G71: 1360.28
A72: 2005-01-09 | B72: North | C72: Jon | D72: Costco | E72: MYE Item | F72: 3330.0135 | G72: 7400.03
A73: 2005-12-29 | B73: NorthEast | C73: Steven | D73: Whole Foods | E73: FZS Item | F73: 359.2636 | G73: 619.42
A74: 2005-09-13 | B74: NorthEast | C74: Sheliadawn | D74: McLendon's Hardware | E74: HUO Item | F74: 2306.5689 | G74: 6233.97
A75: 2006-05-12 | B75: NorthEast | C75: Steven | D75: Home Depot | E75: DRO Item | F75: 4764.9842 | G75: 8215.49
A76: 2004-07-29 | B76: West | C76: Rhonda | D76: Yahoo | E76: CJK Item | F76: 4675.3355 | G76: 8500.61
A77: 2005-04-12 | B77: NorthEast | C77: Jon | D77: Home Depot | E77: MQP Item | F77: 4296.4138 | G77: 7407.61
A78: 2006-05-03 | B78: NorthEast | C78: Rhonda | D78: Google | E78: MHX Item | F78: 2075.59 | G78: 3773.8
A79: 2004-07-17 | B79: NorthEast | C79: Jon | D79: Office Depot | E79: JYF Item | F79: 1210.3425 | G79: 1613.79
A80: 2004-11-16 | B80: SouthEast | C80: Sheliadawn | D80: The Economist | E80: CRF Item | F80: 5399.017 | G80: 9308.65
A81: 2005-03-16 | B81: SouthEast | C81: Chin | D81: Office Depot | E81: ICN Item | F81: 605.9735 | G81: 1101.77
A82: 2004-08-17 | B82: MidWest | C82: Luke | D82: Home Depot | E82: YHI Item | F82: 3418.536 | G82: 6215.52
A83: 2005-10-13 | B83: SouthEast | C83: Jeri | D83: Sherman Williams | E83: MJG Item | F83: 2704.592 | G83: 3073.4
A84: 2005-09-26 | B84: North | C84: Troung | D84: Solar and Wind Inc. | E84: GMO Item | F84: 5590.275 | G84: 7453.7
A85: 2005-06-12 | B85: SouthEast | C85: Luke | D85: Peet's Coffee | E85: ENW Item | F85: 3438.0892 | G85: 5927.74
A86: 2006-04-15 | B86: NorthEast | C86: Troung | D86: Costco | E86: WCX Item | F86: 1182.0464 | G86: 3194.72
A87: 2005-12-30 | B87: SouthEast | C87: Troung | D87: Nature Company | E87: EIS Item | F87: 5338.44 | G87: 7117.92
A88: 2005-09-15 | B88: NorthEast | C88: Luke | D88: Nature Company | E88: ZMF Item | F88: 3251.3625 | G88: 4335.15
A89: 2006-05-11 | B89: MidWest | C89: Chin | D89: Costco | E89: VYV Item | F89: 3545.62285 | G89: 3792.11
A90: 2005-03-06 | B90: SouthEast | C90: Rhonda | D90: Nature Company | E90: XWP Item | F90: 3154.7064 | G90: 5346.96
A91: 2005-09-18 | B91: SouthEast | C91: Jeri | D91: The Economist | E91: MKP Item | F91: 447.8888 | G91: 658.66
A92: 2006-04-06 | B92: West | C92: Jon | D92: Yahoo | E92: SHA Item | F92: 1934.5304 | G92: 2198.33
A93: 2004-09-07 | B93: North | C93: Sheliadawn | D93: Nature Company | E93: NCH Item | F93: 5047.34505 | G93: 5398.23
A94: 2005-02-16 | B94: SouthEast | C94: Jon | D94: The Economist | E94: XHR Item | F94: 4271.12 | G94: 7364
A95: 2004-12-27 | B95: North | C95: Jeri | D95: The Economist | E95: KWJ Item | F95: 5832.4125 | G95: 7776.55
A96: 2004-09-30 | B96: MidWest | C96: Jon | D96: Peet's Coffee | E96: LRH Item | F96: 500.8875 | G96: 1353.75
A97: 2005-10-15 | B97: MidWest | C97: Troung | D97: Costco | E97: WIL Item | F97: 815.2089 | G97: 1381.71
A98: 2004-11-29 | B98: West | C98: Jon | D98: The Economist | E98: TGO Item | F98: 2674.6057 | G98: 4533.23
A99: 2005-03-28 | B99: West | C99: Steven | D99: McLendon's Hardware | E99: WMW Item | F99: 4341.2246 | G99: 7484.87
A100: 2005-10-21 | B100: North | C100: Chin | D100: Yahoo | E100: WKL Item | F100: 8597.4559 | G100: 9195.14
A101: 2006-03-02 | B101: North | C101: Sheliadawn | D101: Solar and Wind Inc. | E101: PUD Item | F101: 3827.0385 | G101: 8504.53
A102: 2004-09-09 | B102: West | C102: Rhonda | D102: Peet's Coffee | E102: UMN Item | F102: 1724.0326 | G102: 2972.47
A103: 2006-03-01 | B103: MidWest | C103: Luke | D103: Whole Foods | E103: YNQ Item | F103: 3185.7074 | G103: 8610.02
A104: 2006-03-07 | B104: North | C104: Chin | D104: ExcelIsVeryFun.com | E104: FMP Item | F104: 2672.1805 | G104: 4858.51
A105: 2006-05-16 | B105: NorthEast | C105: Sheliadawn | D105: Sherman Williams | E105: ONY Item | F105: 272.133 | G105: 604.74
A106: 2005-12-14 | B106: NorthEast | C106: Chin | D106: Amazon.com | E106: SVF Item | F106: 947.6383 | G106: 2203.81
A107: 2004-07-22 | B107: NorthEast | C107: Jeri | D107: The Economist | E107: KSG Item | F107: 649.5005 | G107: 1180.91
A108: 2005-09-26 | B108: NorthEast | C108: Luke | D108: The Economist | E108: JTV Item | F108: 1731.3522 | G108: 2985.09
A109: 2005-04-01 | B109: MidWest | C109: Rhonda | D109: The Economist | E109: QSA Item | F109: 6032.3582 | G109: 6451.72
A110: 2005-04-20 | B110: NorthEast | C110: Luke | D110: ExcelIsVeryFun.com | E110: HAK Item | F110: 640.6633 | G110: 1085.87
A111: 2005-01-11 | B111: NorthEast | C111: Sheliadawn | D111: Nature Company | E111: PBH Item | F111: 5217.1856 | G111: 5928.62
A112: 2005-08-07 | B112: SouthEast | C112: Troung | D112: Sherman Williams | E112: GPQ Item | F112: 6549.87135 | G112: 7005.21
A113: 2005-10-03 | B113: MidWest | C113: Steven | D113: Sherman Williams | E113: ILS Item | F113: 1461.2336 | G113: 3949.28
A114: 2004-12-11 | B114: North | C114: Luke | D114: Home Depot | E114: LFD Item | F114: 3413.6274 | G114: 9226.02
A115: 2005-01-14 | B115: MidWest | C115: Chin | D115: Costco | E115: QRV Item | F115: 2674.672 | G115: 4863.04
A116: 2004-07-24 | B116: SouthEast | C116: Chin | D116: Costco | E116: LFI Item | F116: 3410.244 | G116: 7578.32
A117: 2006-01-08 | B117: North | C117: Rhonda | D117: Solar and Wind Inc. | E117: SNK Item | F117: 2173.2178 | G117: 3683.42
A118: 2005-06-07 | B118: NorthEast | C118: Luke | D118: Office Depot | E118: BJH Item | F118: 3387.0825 | G118: 7526.85
A119: 2005-02-17 | B119: SouthEast | C119: Steven | D119: Home Depot | E119: DRK Item | F119: 2266.7966 | G119: 5271.62
A120: 2006-06-10 | B120: NorthEast | C120: Troung | D120: Google | E120: DVC Item | F120: 3411.56255 | G120: 3648.73
A121: 2005-10-07 | B121: North | C121: Chin | D121: Sherman Williams | E121: XNB Item | F121: 3464.637 | G121: 6299.34
A122: 2006-05-17 | B122: NorthEast | C122: Jon | D122: Solar and Wind Inc. | E122: JZS Item | F122: 2764.396 | G122: 4766.2
A123: 2004-08-27 | B123: West | C123: Rhonda | D123: Sherman Williams | E123: THO Item | F123: 4832.685 | G123: 8786.7
A124: 2005-04-20 | B124: MidWest | C124: Troung | D124: Costco | E124: KXJ Item | F124: 4501.755 | G124: 6002.34
A125: 2004-08-29 | B125: NorthEast | C125: Steven | D125: McLendon's Hardware | E125: VDD Item | F125: 3729.2025 | G125: 4972.27
A126: 2005-12-19 | B126: West | C126: Jon | D126: Office Depot | E126: XOU Item | F126: 5848.9125 | G126: 7798.55
A127: 2004-08-30 | B127: MidWest | C127: Rhonda | D127: Peet's Coffee | E127: JYF Item | F127: 3931.9824 | G127: 6779.28
A128: 2005-04-20 | B128: MidWest | C128: Sheliadawn | D128: Costco | E128: TBQ Item | F128: 3970.2932 | G128: 9233.24
A129: 2005-09-16 | B129: West | C129: Jon | D129: Nature Company | E129: EWM Item | F129: 1805.7295 | G129: 4880.35
A130: 2006-01-20 | B130: NorthEast | C130: Troung | D130: The Economist | E130: EYP Item | F130: 2705.4448 | G130: 4664.56
A131: 2005-05-13 | B131: NorthEast | C131: Steven | D131: Peet's Coffee | E131: BTJ Item | F131: 4431.1188 | G131: 7639.86
A132: 2005-07-15 | B132: North | C132: Sheliadawn | D132: Google | E132: IAF Item | F132: 1908.5475 | G132: 2544.73
A133: 2004-10-02 | B133: MidWest | C133: Jeri | D133: Costco | E133: CLS Item | F133: 6662.8287 | G133: 7126.02
A134: 2004-12-06 | B134: West | C134: Troung | D134: ExcelIsVeryFun.com | E134: YGD Item | F134: 2226.9456 | G134: 2530.62
A135: 2004-10-09 | B135: NorthEast | C135: Steven | D135: Yahoo | E135: DKM Item | F135: 5385.81 | G135: 7181.08
A136: 2005-07-04 | B136: NorthEast | C136: Luke | D136: Solar and Wind Inc. | E136: ULJ Item | F136: 3442.4258 | G136: 5834.62
A137: 2005-10-13 | B137: SouthEast | C137: Rhonda | D137: Office Depot | E137: XMY Item | F137: 2395.2468 | G137: 6473.64
A138: 2006-01-01 | B138: NorthEast | C138: Troung | D138: Whole Foods | E138: EHO Item | F138: 1251.685 | G138: 2121.5
A139: 2005-08-28 | B139: MidWest | C139: Sheliadawn | D139: The Economist | E139: WEW Item | F139: 5349.4444 | G139: 7866.83
A140: 2005-08-27 | B140: NorthEast | C140: Steven | D140: The Economist | E140: III Item | F140: 5843.4508 | G140: 6249.68
A141: 2005-08-25 | B141: West | C141: Troung | D141: Solar and Wind Inc. | E141: PUA Item | F141: 2050.445 | G141: 3535.25
A142: 2005-08-03 | B142: West | C142: Jeri | D142: Office Depot | E142: MEL Item | F142: 8814.57225 | G142: 9427.35
A143: 2005-04-18 | B143: West | C143: Rhonda | D143: Whole Foods | E143: EFD Item | F143: 45.0065 | G143: 81.83
A144: 2004-08-09 | B144: MidWest | C144: Luke | D144: Sherman Williams | E144: ZEI Item | F144: 1370.5505 | G144: 2491.91
A145: 2006-01-11 | B145: North | C145: Jeri | D145: Amazon.com | E145: BZE Item | F145: 3249.56445 | G145: 3475.47
A146: 2004-08-30 | B146: SouthEast | C146: Jon | D146: Nature Company | E146: BYE Item | F146: 4482.798 | G146: 6592.35
A147: 2005-06-10 | B147: NorthEast | C147: Rhonda | D147: Costco | E147: IWN Item | F147: 5331.82815 | G147: 5702.49
A148: 2005-08-04 | B148: NorthEast | C148: Steven | D148: Whole Foods | E148: BAN Item | F148: 2881.4257 | G148: 6700.99
A149: 2006-05-13 | B149: North | C149: Rhonda | D149: Nature Company | E149: OAP Item | F149: 2666.1386 | G149: 7205.78
A150: 2006-01-09 | B150: NorthEast | C150: Rhonda | D150: Solar and Wind Inc. | E150: NZX Item | F150: 725.5525 | G150: 1229.75
A151: 2004-08-18 | B151: NorthEast | C151: Steven | D151: Whole Foods | E151: VYM Item | F151: 2420.9618 | G151: 6543.14
A152: 2004-08-10 | B152: North | C152: Troung | D152: Costco | E152: NFU Item | F152: 234.0888 | G152: 266.01
A153: 2006-02-15 | B153: NorthEast | C153: Chin | D153: Costco | E153: TGL Item | F153: 58.7597 | G153: 158.81
A154: 2004-12-20 | B154: SouthEast | C154: Jon | D154: Solar and Wind Inc. | E154: VIN Item | F154: 5876.5947 | G154: 9960.33
A155: 2004-07-02 | B155: NorthEast | C155: Jon | D155: Sherman Williams | E155: OYO Item | F155: 836.176 | G155: 1520.32
A156: 2006-03-03 | B156: West | C156: Troung | D156: ExcelIsVeryFun.com | E156: KPO Item | F156: 426.4783 | G156: 991.81
A157: 2005-02-03 | B157: West | C157: Rhonda | D157: Nature Company | E157: WHF Item | F157: 5162.8456 | G157: 5521.76
A158: 2005-11-21 | B158: West | C158: Jon | D158: Google | E158: NWT Item | F158: 1768.9536 | G158: 3049.92
A159: 2005-10-28 | B159: MidWest | C159: Chin | D159: Amazon.com | E159: WXR Item | F159: 2714.0059 | G159: 4600.01
A160: 2006-03-01 | B160: NorthEast | C160: Rhonda | D160: Sherman Williams | E160: MKO Item | F160: 1885.707 | G160: 4190.46
A161: 2005-12-09 | B161: NorthEast | C161: Jon | D161: Amazon.com | E161: YQS Item | F161: 1479.2355 | G161: 3287.19
A162: 2005-05-18 | B162: NorthEast | C162: Troung | D162: Office Depot | E162: PAY Item | F162: 3795.6057 | G162: 6433.23
A163: 2005-02-10 | B163: West | C163: Rhonda | D163: Costco | E163: FSD Item | F163: 3806.2052 | G163: 8851.64
A164: 2005-03-01 | B164: NorthEast | C164: Chin | D164: Home Depot | E164: AUW Item | F164: 2741.958 | G164: 6093.24
A165: 2004-07-10 | B165: North | C165: Chin | D165: Yahoo | E165: RCA Item | F165: 1904.6734 | G165: 3228.26
A166: 2005-01-21 | B166: MidWest | C166: Luke | D166: Whole Foods | E166: NSN Item | F166: 8615.6224 | G166: 9790.48
A167: 2006-05-18 | B167: MidWest | C167: Troung | D167: McLendon's Hardware | E167: RRT Item | F167: 2442.518 | G167: 6601.4
A168: 2005-07-01 | B168: NorthEast | C168: Troung | D168: Office Depot | E168: CMU Item | F168: 5412.7864 | G168: 7959.98
A169: 2005-05-19 | B169: NorthEast | C169: Jeri | D169: Peet's Coffee | E169: QLL Item | F169: 1319.846 | G169: 2399.72
A170: 2005-03-31 | B170: West | C170: Luke | D170: Solar and Wind Inc. | E170: VDA Item | F170: 2944.1 | G170: 4990
A171: 2005-09-30 | B171: North | C171: Steven | D171: Google | E171: XXH Item | F171: 610.8984 | G171: 898.38
A172: 2005-04-30 | B172: North | C172: Chin | D172: Google | E172: WPF Item | F172: 2401.7329 | G172: 6491.17
A173: 2005-07-12 | B173: NorthEast | C173: Jon | D173: Costco | E173: ATV Item | F173: 2880.9 | G173: 3273.75
A174: 2006-05-02 | B174: NorthEast | C174: Troung | D174: Google | E174: KKL Item | F174: 1775.075 | G174: 4797.5
A175: 2005-11-04 | B175: West | C175: Troung | D175: Google | E175: ZAW Item | F175: 2878.6815 | G175: 6397.07
A176: 2006-02-06 | B176: North | C176: Rhonda | D176: Home Depot | E176: KFE Item | F176: 1297.0134 | G176: 2236.23
A177: 2005-10-02 | B177: MidWest | C177: Jon | D177: ExcelIsVeryFun.com | E177: NBK Item | F177: 167.9623 | G177: 390.61
A178: 2005-09-19 | B178: West | C178: Sheliadawn | D178: The Economist | E178: KQN Item | F178: 1622.2909 | G178: 4384.57
A179: 2005-05-27 | B179: North | C179: Steven | D179: Nature Company | E179: OGH Item | F179: 2116.3998 | G179: 4921.86
A180: 2005-12-16 | B180: MidWest | C180: Luke | D180: Costco | E180: QDR Item | F180: 3978.1852 | G180: 6858.94
A181: 2006-05-18 | B181: NorthEast | C181: Rhonda | D181: The Economist | E181: DIO Item | F181: 4246.57365 | G181: 4541.79
A182: 2006-03-14 | B182: SouthEast | C182: Rhonda | D182: Peet's Coffee | E182: TIH Item | F182: 4846.16 | G182: 5507
A183: 2006-03-21 | B183: North | C183: Steven | D183: ExcelIsVeryFun.com | E183: MGO Item | F183: 2464.9075 | G183: 4481.65
A184: 2006-02-04 | B184: North | C184: Chin | D184: Yahoo | E184: AIL Item | F184: 1142.983 | G184: 2658.1
A185: 2004-06-23 | B185: SouthEast | C185: Jon | D185: Google | E185: PQT Item | F185: 1707.8127 | G185: 4615.71
A186: 2004-10-06 | B186: NorthEast | C186: Rhonda | D186: Peet's Coffee | E186: LVG Item | F186: 3671.5798 | G186: 6330.31
A187: 2006-03-31 | B187: North | C187: Rhonda | D187: McLendon's Hardware | E187: WBN Item | F187: 892.6496 | G187: 1312.72
A188: 2006-05-30 | B188: West | C188: Chin | D188: Whole Foods | E188: JLK Item | F188: 5224.19095 | G188: 5587.37
A189: 2005-07-09 | B189: MidWest | C189: Steven | D189: The Economist | E189: MTL Item | F189: 3730.95855 | G189: 3990.33
A190: 2005-06-19 | B190: NorthEast | C190: Sheliadawn | D190: Sherman Williams | E190: SBX Item | F190: 3281.5376 | G190: 3729.02
A191: 2005-12-12 | B191: NorthEast | C191: Luke | D191: Solar and Wind Inc. | E191: MQW Item | F191: 92.276 | G191: 135.7
A192: 2005-04-21 | B192: MidWest | C192: Chin | D192: Nature Company | E192: CSJ Item | F192: 731.8193 | G192: 1977.89
A193: 2005-02-08 | B193: MidWest | C193: Jon | D193: Google | E193: WWB Item | F193: 1936.7625 | G193: 2582.35
A194: 2005-09-08 | B194: West | C194: Chin | D194: ExcelIsVeryFun.com | E194: RHM Item | F194: 890.874 | G194: 2071.8
A195: 2006-05-30 | B195: West | C195: Luke | D195: Costco | E195: JUE Item | F195: 1117.5013 | G195: 1894.07
A196: 2006-02-06 | B196: NorthEast | C196: Sheliadawn | D196: Peet's Coffee | E196: GLG Item | F196: 3446.4242 | G196: 8014.94
A197: 2005-01-12 | B197: NorthEast | C197: Sheliadawn | D197: Yahoo | E197: ONK Item | F197: 2647.8405 | G197: 5884.09
A198: 2004-12-25 | B198: MidWest | C198: Sheliadawn | D198: Nature Company | E198: KKF Item | F198: 3343.995 | G198: 7431.1
A199: 2005-03-29 | B199: SouthEast | C199: Jeri | D199: Sherman Williams | E199: QGI Item | F199: 4345.0932 | G199: 7491.54
A200: 2004-06-26 | B200: NorthEast | C200: Jeri | D200: Amazon.com | E200: AHN Item | F200: 5927.724 | G200: 6736.05
A201: 2005-12-05 | B201: NorthEast | C201: Jeri | D201: Sherman Williams | E201: SSU Item | F201: 1323.1163 | G201: 2242.57
A202: 2006-06-07 | B202: MidWest | C202: Jon | D202: Nature Company | E202: QDA Item | F202: 5395.126 | G202: 9809.32
A203: 2005-09-17 | B203: North | C203: Jeri | D203: Peet's Coffee | E203: GHF Item | F203: 1575.673 | G203: 2864.86
A204: 2005-07-02 | B204: West | C204: Rhonda | D204: Google | E204: UNH Item | F204: 2727.48 | G204: 3636.64
A205: 2005-10-24 | B205: West | C205: Sheliadawn | D205: Solar and Wind Inc. | E205: PKE Item | F205: 7137.555 | G205: 9516.74
A206: 2006-02-10 | B206: North | C206: Steven | D206: Whole Foods | E206: TYZ Item | F206: 2542.4395 | G206: 5912.65
... 1827 more rows

Sheet Func & Defined Names (an)
A1: 1) If you are going to use the same range over and over, and you don't want to use
A2: the Excel Table feature, you can use the Defined Name feature.
A3: 2) Defined Name feature:
A4: Highlight cell or range, click in Name Box, Type name without spaces, hit Enter.
A5: 3) The Defined Names group in the Formulas Ribbon Tab contains:
A6: Name Manager: edit, delete Defined Names
A7: Use in formula
A8: Create Names From Selection
A9: 4) keyboards:
A10: Name Manager keyboard = Ctrl + F3
A11: Paste Name = F3
A12: Create Names From Selection = Ctrl + Shift + F3
A13: 5) Rules for Defined Names:
A14: Must begin with text, not number
A15: No spaces
A16: No cell references
A17: Max of 255 characters in name
A18: Cannot use the characters: */+-()^<>+&%~`|][}{@";:,'$#!
A22: Office 2013 Class #36: Excel Basics 18:
A23: Built-in Functions and Defined Names
A25: Goal: use same range over and over to make different calculations.
A27: First Date | B27: =MIN(zAnswerDate) -> 2004-06-17 | D27: Region | E27: Sales
A28: Last Date | B28: =MAX(zAnswerDate) -> 2006-06-16 | D28: SouthEast | E28: =SUMIFS(zAnswerSales,zAnswerRegion,D28) -> 1723421.38
A29: Total Sales | B29: =SUM(zAnswerSales) -> 10077504.17 | D29: West | E29: =SUMIFS(zAnswerSales,zAnswerRegion,D29) -> 1569673.5
A30: Number of Sales | B30: =COUNT(zAnswerSales) -> 1999 | D30: North | E30: =SUMIFS(zAnswerSales,zAnswerRegion,D30) -> 1706418.14
A31: Max Sale | B31: =MAX(zAnswerSales) -> 9994.24 | D31: MidWest | E31: =SUMIFS(zAnswerSales,zAnswerRegion,D31) -> 1651501.56
A32: Min Sale | B32: =MIN(zAnswerSales) -> 12.56 | D32: NorthEast | E32: =SUMIFS(zAnswerSales,zAnswerRegion,D32) -> 3426489.59
A34: Date | B34: Region | C34: Sales Rep | D34: Customer | E34: Product | F34: COGS | G34: Sales
A35: 2005-10-07 | B35: SouthEast | C35: Luke | D35: Amazon.com | E35: AIM Item | F35: 3641.6344 | G35: 6278.68
A36: 2004-10-26 | B36: West | C36: Jeri | D36: Costco | E36: UYR Item | F36: 3188.9187 | G36: 7416.09
A37: 2005-05-20 | B37: North | C37: Sheliadawn | D37: Home Depot | E37: XOU Item | F37: 3636.0838 | G37: 6269.11
A38: 2004-09-24 | B38: MidWest | C38: Jon | D38: Whole Foods | E38: ILP Item | F38: 2982.5345 | G38: 5422.79
A39: 2005-01-14 | B39: MidWest | C39: Steven | D39: McLendon's Hardware | E39: LXS Item | F39: 6385.7321 | G39: 6829.66
A40: 2005-04-03 | B40: West | C40: Sheliadawn | D40: Whole Foods | E40: MFB Item | F40: 1174.977 | G40: 2611.06
A41: 2006-01-20 | B41: NorthEast | C41: Jeri | D41: Nature Company | E41: NEE Item | F41: 2790.6526 | G41: 4811.47
A42: 2006-02-26 | B42: SouthEast | C42: Jeri | D42: Home Depot | E42: JHF Item | F42: 15.062 | G42: 22.15
A43: 2004-12-16 | B43: MidWest | C43: Jeri | D43: Amazon.com | E43: LII Item | F43: 7221.7024 | G43: 8206.48
A44: 2006-04-05 | B44: NorthEast | C44: Jeri | D44: Costco | E44: FSJ Item | F44: 4647.2855 | G44: 8449.61
A45: 2005-06-24 | B45: NorthEast | C45: Jeri | D45: Yahoo | E45: HVH Item | F45: 1264.4821 | G45: 2143.19
A46: 2004-08-22 | B46: SouthEast | C46: Chin | D46: Sherman Williams | E46: YVD Item | F46: 3605.8735 | G46: 6111.65
A47: 2005-11-09 | B47: NorthEast | C47: Luke | D47: Google | E47: TTM Item | F47: 203.685 | G47: 271.58
A48: 2005-03-23 | B48: MidWest | C48: Rhonda | D48: Costco | E48: MKA Item | F48: 944.4102 | G48: 2552.46
A49: 2005-10-03 | B49: MidWest | C49: Troung | D49: McLendon's Hardware | E49: EVO Item | F49: 9189.7784 | G49: 9828.64
A50: 2005-04-04 | B50: MidWest | C50: Rhonda | D50: The Economist | E50: EYG Item | F50: 3918.3584 | G50: 4452.68
A51: 2006-01-05 | B51: NorthEast | C51: Luke | D51: Yahoo | E51: LVD Item | F51: 241.6575 | G51: 322.21
A52: 2004-11-06 | B52: NorthEast | C52: Luke | D52: Nature Company | E52: BCD Item | F52: 563.563 | G52: 1024.66
A53: 2005-09-25 | B53: SouthEast | C53: Jon | D53: Costco | E53: UGN Item | F53: 1503.7125 | G53: 2004.95
A54: 2004-11-12 | B54: MidWest | C54: Chin | D54: Solar and Wind Inc. | E54: PET Item | F54: 3504.6548 | G54: 8150.36
A55: 2004-12-07 | B55: West | C55: Jeri | D55: ExcelIsVeryFun.com | E55: AIU Item | F55: 3845.5505 | G55: 6991.91
A56: 2005-11-05 | B56: North | C56: Steven | D56: The Economist | E56: XIM Item | F56: 2510.1938 | G56: 5837.66
A57: 2005-09-30 | B57: NorthEast | C57: Jeri | D57: Amazon.com | E57: AIZ Item | F57: 627.9392 | G57: 923.44
A58: 2004-08-27 | B58: NorthEast | C58: Chin | D58: The Economist | E58: VBF Item | F58: 1441.1399 | G58: 2442.61
A59: 2004-08-18 | B59: NorthEast | C59: Rhonda | D59: Costco | E59: VCN Item | F59: 2991.765 | G59: 3989.02
A60: 2006-02-19 | B60: North | C60: Troung | D60: ExcelIsVeryFun.com | E60: GHH Item | F60: 7657.5664 | G60: 8701.78
A61: 2005-12-11 | B61: NorthEast | C61: Jeri | D61: Home Depot | E61: WPD Item | F61: 3140.5782 | G61: 5414.79
A62: 2005-03-17 | B62: NorthEast | C62: Chin | D62: Costco | E62: YWP Item | F62: 558.2475 | G62: 1298.25
A63: 2004-12-01 | B63: North | C63: Sheliadawn | D63: Home Depot | E63: BPJ Item | F63: 730.538 | G63: 1238.2
A64: 2005-04-05 | B64: NorthEast | C64: Chin | D64: Nature Company | E64: HLL Item | F64: 4007.9864 | G64: 4554.53
A65: 2005-03-04 | B65: MidWest | C65: Luke | D65: ExcelIsVeryFun.com | E65: YAK Item | F65: 5245.7053 | G65: 5610.38
A66: 2006-05-19 | B66: West | C66: Jeri | D66: Nature Company | E66: GVD Item | F66: 1854.6072 | G66: 4313.04
A67: 2005-04-25 | B67: North | C67: Luke | D67: Whole Foods | E67: SRN Item | F67: 4662.3044 | G67: 6856.33
A68: 2004-09-24 | B68: West | C68: Luke | D68: Yahoo | E68: UCA Item | F68: 1267.398 | G68: 2304.36
A69: 2004-06-17 | B69: MidWest | C69: Chin | D69: ExcelIsVeryFun.com | E69: MWN Item | F69: 6305.0008 | G69: 9272.06
A70: 2005-05-24 | B70: SouthEast | C70: Steven | D70: Sherman Williams | E70: OQM Item | F70: 6515.34 | G70: 8687.12
A71: 2005-10-20 | B71: SouthEast | C71: Luke | D71: Costco | E71: CLN Item | F71: 612.126 | G71: 1360.28
A72: 2005-01-09 | B72: North | C72: Jon | D72: Costco | E72: MYE Item | F72: 3330.0135 | G72: 7400.03
A73: 2005-12-29 | B73: NorthEast | C73: Steven | D73: Whole Foods | E73: FZS Item | F73: 359.2636 | G73: 619.42
A74: 2005-09-13 | B74: NorthEast | C74: Sheliadawn | D74: McLendon's Hardware | E74: HUO Item | F74: 2306.5689 | G74: 6233.97
A75: 2006-05-12 | B75: NorthEast | C75: Steven | D75: Home Depot | E75: DRO Item | F75: 4764.9842 | G75: 8215.49
A76: 2004-07-29 | B76: West | C76: Rhonda | D76: Yahoo | E76: CJK Item | F76: 4675.3355 | G76: 8500.61
A77: 2005-04-12 | B77: NorthEast | C77: Jon | D77: Home Depot | E77: MQP Item | F77: 4296.4138 | G77: 7407.61
A78: 2006-05-03 | B78: NorthEast | C78: Rhonda | D78: Google | E78: MHX Item | F78: 2075.59 | G78: 3773.8
A79: 2004-07-17 | B79: NorthEast | C79: Jon | D79: Office Depot | E79: JYF Item | F79: 1210.3425 | G79: 1613.79
A80: 2004-11-16 | B80: SouthEast | C80: Sheliadawn | D80: The Economist | E80: CRF Item | F80: 5399.017 | G80: 9308.65
A81: 2005-03-16 | B81: SouthEast | C81: Chin | D81: Office Depot | E81: ICN Item | F81: 605.9735 | G81: 1101.77
A82: 2004-08-17 | B82: MidWest | C82: Luke | D82: Home Depot | E82: YHI Item | F82: 3418.536 | G82: 6215.52
A83: 2005-10-13 | B83: SouthEast | C83: Jeri | D83: Sherman Williams | E83: MJG Item | F83: 2704.592 | G83: 3073.4
A84: 2005-09-26 | B84: North | C84: Troung | D84: Solar and Wind Inc. | E84: GMO Item | F84: 5590.275 | G84: 7453.7
A85: 2005-06-12 | B85: SouthEast | C85: Luke | D85: Peet's Coffee | E85: ENW Item | F85: 3438.0892 | G85: 5927.74
A86: 2006-04-15 | B86: NorthEast | C86: Troung | D86: Costco | E86: WCX Item | F86: 1182.0464 | G86: 3194.72
A87: 2005-12-30 | B87: SouthEast | C87: Troung | D87: Nature Company | E87: EIS Item | F87: 5338.44 | G87: 7117.92
A88: 2005-09-15 | B88: NorthEast | C88: Luke | D88: Nature Company | E88: ZMF Item | F88: 3251.3625 | G88: 4335.15
A89: 2006-05-11 | B89: MidWest | C89: Chin | D89: Costco | E89: VYV Item | F89: 3545.62285 | G89: 3792.11
A90: 2005-03-06 | B90: SouthEast | C90: Rhonda | D90: Nature Company | E90: XWP Item | F90: 3154.7064 | G90: 5346.96
A91: 2005-09-18 | B91: SouthEast | C91: Jeri | D91: The Economist | E91: MKP Item | F91: 447.8888 | G91: 658.66
A92: 2006-04-06 | B92: West | C92: Jon | D92: Yahoo | E92: SHA Item | F92: 1934.5304 | G92: 2198.33
A93: 2004-09-07 | B93: North | C93: Sheliadawn | D93: Nature Company | E93: NCH Item | F93: 5047.34505 | G93: 5398.23
A94: 2005-02-16 | B94: SouthEast | C94: Jon | D94: The Economist | E94: XHR Item | F94: 4271.12 | G94: 7364
A95: 2004-12-27 | B95: North | C95: Jeri | D95: The Economist | E95: KWJ Item | F95: 5832.4125 | G95: 7776.55
A96: 2004-09-30 | B96: MidWest | C96: Jon | D96: Peet's Coffee | E96: LRH Item | F96: 500.8875 | G96: 1353.75
A97: 2005-10-15 | B97: MidWest | C97: Troung | D97: Costco | E97: WIL Item | F97: 815.2089 | G97: 1381.71
A98: 2004-11-29 | B98: West | C98: Jon | D98: The Economist | E98: TGO Item | F98: 2674.6057 | G98: 4533.23
A99: 2005-03-28 | B99: West | C99: Steven | D99: McLendon's Hardware | E99: WMW Item | F99: 4341.2246 | G99: 7484.87
A100: 2005-10-21 | B100: North | C100: Chin | D100: Yahoo | E100: WKL Item | F100: 8597.4559 | G100: 9195.14
A101: 2006-03-02 | B101: North | C101: Sheliadawn | D101: Solar and Wind Inc. | E101: PUD Item | F101: 3827.0385 | G101: 8504.53
A102: 2004-09-09 | B102: West | C102: Rhonda | D102: Peet's Coffee | E102: UMN Item | F102: 1724.0326 | G102: 2972.47
A103: 2006-03-01 | B103: MidWest | C103: Luke | D103: Whole Foods | E103: YNQ Item | F103: 3185.7074 | G103: 8610.02
A104: 2006-03-07 | B104: North | C104: Chin | D104: ExcelIsVeryFun.com | E104: FMP Item | F104: 2672.1805 | G104: 4858.51
A105: 2006-05-16 | B105: NorthEast | C105: Sheliadawn | D105: Sherman Williams | E105: ONY Item | F105: 272.133 | G105: 604.74
A106: 2005-12-14 | B106: NorthEast | C106: Chin | D106: Amazon.com | E106: SVF Item | F106: 947.6383 | G106: 2203.81
A107: 2004-07-22 | B107: NorthEast | C107: Jeri | D107: The Economist | E107: KSG Item | F107: 649.5005 | G107: 1180.91
A108: 2005-09-26 | B108: NorthEast | C108: Luke | D108: The Economist | E108: JTV Item | F108: 1731.3522 | G108: 2985.09
A109: 2005-04-01 | B109: MidWest | C109: Rhonda | D109: The Economist | E109: QSA Item | F109: 6032.3582 | G109: 6451.72
A110: 2005-04-20 | B110: NorthEast | C110: Luke | D110: ExcelIsVeryFun.com | E110: HAK Item | F110: 640.6633 | G110: 1085.87
A111: 2005-01-11 | B111: NorthEast | C111: Sheliadawn | D111: Nature Company | E111: PBH Item | F111: 5217.1856 | G111: 5928.62
A112: 2005-08-07 | B112: SouthEast | C112: Troung | D112: Sherman Williams | E112: GPQ Item | F112: 6549.87135 | G112: 7005.21
A113: 2005-10-03 | B113: MidWest | C113: Steven | D113: Sherman Williams | E113: ILS Item | F113: 1461.2336 | G113: 3949.28
A114: 2004-12-11 | B114: North | C114: Luke | D114: Home Depot | E114: LFD Item | F114: 3413.6274 | G114: 9226.02
A115: 2005-01-14 | B115: MidWest | C115: Chin | D115: Costco | E115: QRV Item | F115: 2674.672 | G115: 4863.04
A116: 2004-07-24 | B116: SouthEast | C116: Chin | D116: Costco | E116: LFI Item | F116: 3410.244 | G116: 7578.32
A117: 2006-01-08 | B117: North | C117: Rhonda | D117: Solar and Wind Inc. | E117: SNK Item | F117: 2173.2178 | G117: 3683.42
A118: 2005-06-07 | B118: NorthEast | C118: Luke | D118: Office Depot | E118: BJH Item | F118: 3387.0825 | G118: 7526.85
A119: 2005-02-17 | B119: SouthEast | C119: Steven | D119: Home Depot | E119: DRK Item | F119: 2266.7966 | G119: 5271.62
A120: 2006-06-10 | B120: NorthEast | C120: Troung | D120: Google | E120: DVC Item | F120: 3411.56255 | G120: 3648.73
A121: 2005-10-07 | B121: North | C121: Chin | D121: Sherman Williams | E121: XNB Item | F121: 3464.637 | G121: 6299.34
A122: 2006-05-17 | B122: NorthEast | C122: Jon | D122: Solar and Wind Inc. | E122: JZS Item | F122: 2764.396 | G122: 4766.2
A123: 2004-08-27 | B123: West | C123: Rhonda | D123: Sherman Williams | E123: THO Item | F123: 4832.685 | G123: 8786.7
A124: 2005-04-20 | B124: MidWest | C124: Troung | D124: Costco | E124: KXJ Item | F124: 4501.755 | G124: 6002.34
A125: 2004-08-29 | B125: NorthEast | C125: Steven | D125: McLendon's Hardware | E125: VDD Item | F125: 3729.2025 | G125: 4972.27
A126: 2005-12-19 | B126: West | C126: Jon | D126: Office Depot | E126: XOU Item | F126: 5848.9125 | G126: 7798.55
A127: 2004-08-30 | B127: MidWest | C127: Rhonda | D127: Peet's Coffee | E127: JYF Item | F127: 3931.9824 | G127: 6779.28
A128: 2005-04-20 | B128: MidWest | C128: Sheliadawn | D128: Costco | E128: TBQ Item | F128: 3970.2932 | G128: 9233.24
A129: 2005-09-16 | B129: West | C129: Jon | D129: Nature Company | E129: EWM Item | F129: 1805.7295 | G129: 4880.35
A130: 2006-01-20 | B130: NorthEast | C130: Troung | D130: The Economist | E130: EYP Item | F130: 2705.4448 | G130: 4664.56
A131: 2005-05-13 | B131: NorthEast | C131: Steven | D131: Peet's Coffee | E131: BTJ Item | F131: 4431.1188 | G131: 7639.86
A132: 2005-07-15 | B132: North | C132: Sheliadawn | D132: Google | E132: IAF Item | F132: 1908.5475 | G132: 2544.73
A133: 2004-10-02 | B133: MidWest | C133: Jeri | D133: Costco | E133: CLS Item | F133: 6662.8287 | G133: 7126.02
A134: 2004-12-06 | B134: West | C134: Troung | D134: ExcelIsVeryFun.com | E134: YGD Item | F134: 2226.9456 | G134: 2530.62
A135: 2004-10-09 | B135: NorthEast | C135: Steven | D135: Yahoo | E135: DKM Item | F135: 5385.81 | G135: 7181.08
A136: 2005-07-04 | B136: NorthEast | C136: Luke | D136: Solar and Wind Inc. | E136: ULJ Item | F136: 3442.4258 | G136: 5834.62
A137: 2005-10-13 | B137: SouthEast | C137: Rhonda | D137: Office Depot | E137: XMY Item | F137: 2395.2468 | G137: 6473.64
A138: 2006-01-01 | B138: NorthEast | C138: Troung | D138: Whole Foods | E138: EHO Item | F138: 1251.685 | G138: 2121.5
A139: 2005-08-28 | B139: MidWest | C139: Sheliadawn | D139: The Economist | E139: WEW Item | F139: 5349.4444 | G139: 7866.83
A140: 2005-08-27 | B140: NorthEast | C140: Steven | D140: The Economist | E140: III Item | F140: 5843.4508 | G140: 6249.68
A141: 2005-08-25 | B141: West | C141: Troung | D141: Solar and Wind Inc. | E141: PUA Item | F141: 2050.445 | G141: 3535.25
A142: 2005-08-03 | B142: West | C142: Jeri | D142: Office Depot | E142: MEL Item | F142: 8814.57225 | G142: 9427.35
A143: 2005-04-18 | B143: West | C143: Rhonda | D143: Whole Foods | E143: EFD Item | F143: 45.0065 | G143: 81.83
A144: 2004-08-09 | B144: MidWest | C144: Luke | D144: Sherman Williams | E144: ZEI Item | F144: 1370.5505 | G144: 2491.91
A145: 2006-01-11 | B145: North | C145: Jeri | D145: Amazon.com | E145: BZE Item | F145: 3249.56445 | G145: 3475.47
A146: 2004-08-30 | B146: SouthEast | C146: Jon | D146: Nature Company | E146: BYE Item | F146: 4482.798 | G146: 6592.35
A147: 2005-06-10 | B147: NorthEast | C147: Rhonda | D147: Costco | E147: IWN Item | F147: 5331.82815 | G147: 5702.49
A148: 2005-08-04 | B148: NorthEast | C148: Steven | D148: Whole Foods | E148: BAN Item | F148: 2881.4257 | G148: 6700.99
A149: 2006-05-13 | B149: North | C149: Rhonda | D149: Nature Company | E149: OAP Item | F149: 2666.1386 | G149: 7205.78
A150: 2006-01-09 | B150: NorthEast | C150: Rhonda | D150: Solar and Wind Inc. | E150: NZX Item | F150: 725.5525 | G150: 1229.75
A151: 2004-08-18 | B151: NorthEast | C151: Steven | D151: Whole Foods | E151: VYM Item | F151: 2420.9618 | G151: 6543.14
A152: 2004-08-10 | B152: North | C152: Troung | D152: Costco | E152: NFU Item | F152: 234.0888 | G152: 266.01
A153: 2006-02-15 | B153: NorthEast | C153: Chin | D153: Costco | E153: TGL Item | F153: 58.7597 | G153: 158.81
A154: 2004-12-20 | B154: SouthEast | C154: Jon | D154: Solar and Wind Inc. | E154: VIN Item | F154: 5876.5947 | G154: 9960.33
A155: 2004-07-02 | B155: NorthEast | C155: Jon | D155: Sherman Williams | E155: OYO Item | F155: 836.176 | G155: 1520.32
A156: 2006-03-03 | B156: West | C156: Troung | D156: ExcelIsVeryFun.com | E156: KPO Item | F156: 426.4783 | G156: 991.81
A157: 2005-02-03 | B157: West | C157: Rhonda | D157: Nature Company | E157: WHF Item | F157: 5162.8456 | G157: 5521.76
A158: 2005-11-21 | B158: West | C158: Jon | D158: Google | E158: NWT Item | F158: 1768.9536 | G158: 3049.92
A159: 2005-10-28 | B159: MidWest | C159: Chin | D159: Amazon.com | E159: WXR Item | F159: 2714.0059 | G159: 4600.01
A160: 2006-03-01 | B160: NorthEast | C160: Rhonda | D160: Sherman Williams | E160: MKO Item | F160: 1885.707 | G160: 4190.46
A161: 2005-12-09 | B161: NorthEast | C161: Jon | D161: Amazon.com | E161: YQS Item | F161: 1479.2355 | G161: 3287.19
A162: 2005-05-18 | B162: NorthEast | C162: Troung | D162: Office Depot | E162: PAY Item | F162: 3795.6057 | G162: 6433.23
A163: 2005-02-10 | B163: West | C163: Rhonda | D163: Costco | E163: FSD Item | F163: 3806.2052 | G163: 8851.64
A164: 2005-03-01 | B164: NorthEast | C164: Chin | D164: Home Depot | E164: AUW Item | F164: 2741.958 | G164: 6093.24
A165: 2004-07-10 | B165: North | C165: Chin | D165: Yahoo | E165: RCA Item | F165: 1904.6734 | G165: 3228.26
A166: 2005-01-21 | B166: MidWest | C166: Luke | D166: Whole Foods | E166: NSN Item | F166: 8615.6224 | G166: 9790.48
A167: 2006-05-18 | B167: MidWest | C167: Troung | D167: McLendon's Hardware | E167: RRT Item | F167: 2442.518 | G167: 6601.4
A168: 2005-07-01 | B168: NorthEast | C168: Troung | D168: Office Depot | E168: CMU Item | F168: 5412.7864 | G168: 7959.98
A169: 2005-05-19 | B169: NorthEast | C169: Jeri | D169: Peet's Coffee | E169: QLL Item | F169: 1319.846 | G169: 2399.72
A170: 2005-03-31 | B170: West | C170: Luke | D170: Solar and Wind Inc. | E170: VDA Item | F170: 2944.1 | G170: 4990
A171: 2005-09-30 | B171: North | C171: Steven | D171: Google | E171: XXH Item | F171: 610.8984 | G171: 898.38
A172: 2005-04-30 | B172: North | C172: Chin | D172: Google | E172: WPF Item | F172: 2401.7329 | G172: 6491.17
A173: 2005-07-12 | B173: NorthEast | C173: Jon | D173: Costco | E173: ATV Item | F173: 2880.9 | G173: 3273.75
A174: 2006-05-02 | B174: NorthEast | C174: Troung | D174: Google | E174: KKL Item | F174: 1775.075 | G174: 4797.5
A175: 2005-11-04 | B175: West | C175: Troung | D175: Google | E175: ZAW Item | F175: 2878.6815 | G175: 6397.07
A176: 2006-02-06 | B176: North | C176: Rhonda | D176: Home Depot | E176: KFE Item | F176: 1297.0134 | G176: 2236.23
A177: 2005-10-02 | B177: MidWest | C177: Jon | D177: ExcelIsVeryFun.com | E177: NBK Item | F177: 167.9623 | G177: 390.61
A178: 2005-09-19 | B178: West | C178: Sheliadawn | D178: The Economist | E178: KQN Item | F178: 1622.2909 | G178: 4384.57
A179: 2005-05-27 | B179: North | C179: Steven | D179: Nature Company | E179: OGH Item | F179: 2116.3998 | G179: 4921.86
A180: 2005-12-16 | B180: MidWest | C180: Luke | D180: Costco | E180: QDR Item | F180: 3978.1852 | G180: 6858.94
A181: 2006-05-18 | B181: NorthEast | C181: Rhonda | D181: The Economist | E181: DIO Item | F181: 4246.57365 | G181: 4541.79
A182: 2006-03-14 | B182: SouthEast | C182: Rhonda | D182: Peet's Coffee | E182: TIH Item | F182: 4846.16 | G182: 5507
A183: 2006-03-21 | B183: North | C183: Steven | D183: ExcelIsVeryFun.com | E183: MGO Item | F183: 2464.9075 | G183: 4481.65
A184: 2006-02-04 | B184: North | C184: Chin | D184: Yahoo | E184: AIL Item | F184: 1142.983 | G184: 2658.1
A185: 2004-06-23 | B185: SouthEast | C185: Jon | D185: Google | E185: PQT Item | F185: 1707.8127 | G185: 4615.71
A186: 2004-10-06 | B186: NorthEast | C186: Rhonda | D186: Peet's Coffee | E186: LVG Item | F186: 3671.5798 | G186: 6330.31
A187: 2006-03-31 | B187: North | C187: Rhonda | D187: McLendon's Hardware | E187: WBN Item | F187: 892.6496 | G187: 1312.72
A188: 2006-05-30 | B188: West | C188: Chin | D188: Whole Foods | E188: JLK Item | F188: 5224.19095 | G188: 5587.37
A189: 2005-07-09 | B189: MidWest | C189: Steven | D189: The Economist | E189: MTL Item | F189: 3730.95855 | G189: 3990.33
A190: 2005-06-19 | B190: NorthEast | C190: Sheliadawn | D190: Sherman Williams | E190: SBX Item | F190: 3281.5376 | G190: 3729.02
A191: 2005-12-12 | B191: NorthEast | C191: Luke | D191: Solar and Wind Inc. | E191: MQW Item | F191: 92.276 | G191: 135.7
A192: 2005-04-21 | B192: MidWest | C192: Chin | D192: Nature Company | E192: CSJ Item | F192: 731.8193 | G192: 1977.89
A193: 2005-02-08 | B193: MidWest | C193: Jon | D193: Google | E193: WWB Item | F193: 1936.7625 | G193: 2582.35
A194: 2005-09-08 | B194: West | C194: Chin | D194: ExcelIsVeryFun.com | E194: RHM Item | F194: 890.874 | G194: 2071.8
A195: 2006-05-30 | B195: West | C195: Luke | D195: Costco | E195: JUE Item | F195: 1117.5013 | G195: 1894.07
A196: 2006-02-06 | B196: NorthEast | C196: Sheliadawn | D196: Peet's Coffee | E196: GLG Item | F196: 3446.4242 | G196: 8014.94
A197: 2005-01-12 | B197: NorthEast | C197: Sheliadawn | D197: Yahoo | E197: ONK Item | F197: 2647.8405 | G197: 5884.09
A198: 2004-12-25 | B198: MidWest | C198: Sheliadawn | D198: Nature Company | E198: KKF Item | F198: 3343.995 | G198: 7431.1
A199: 2005-03-29 | B199: SouthEast | C199: Jeri | D199: Sherman Williams | E199: QGI Item | F199: 4345.0932 | G199: 7491.54
A200: 2004-06-26 | B200: NorthEast | C200: Jeri | D200: Amazon.com | E200: AHN Item | F200: 5927.724 | G200: 6736.05
A201: 2005-12-05 | B201: NorthEast | C201: Jeri | D201: Sherman Williams | E201: SSU Item | F201: 1323.1163 | G201: 2242.57
A202: 2006-06-07 | B202: MidWest | C202: Jon | D202: Nature Company | E202: QDA Item | F202: 5395.126 | G202: 9809.32
A203: 2005-09-17 | B203: North | C203: Jeri | D203: Peet's Coffee | E203: GHF Item | F203: 1575.673 | G203: 2864.86
A204: 2005-07-02 | B204: West | C204: Rhonda | D204: Google | E204: UNH Item | F204: 2727.48 | G204: 3636.64
A205: 2005-10-24 | B205: West | C205: Sheliadawn | D205: Solar and Wind Inc. | E205: PKE Item | F205: 7137.555 | G205: 9516.74
A206: 2006-02-10 | B206: North | C206: Steven | D206: Whole Foods | E206: TYZ Item | F206: 2542.4395 | G206: 5912.65
... 1827 more rows

Sheet SUMIFS and COUNTIFS
A1: Office 2013 Class #37: Excel Basics 19:
A2: SUMIFS, COUNTIFS: Add & Count with Criteria/Conditions
A4: Functions we have covered so far: | B4: Office Video | C4: Excel Basics # | E4: COUNTIFS:
A5: SUM | B5: 19 | C5: 1 | E5: Count with 1 or more conditions/criteria
A6: AVERAGE | B6: 19 | C6: 1 | E6: Criteria can be: text, numbers, dates, times, numbers and comparative operators
A7: COUNT | B7: 21 | C7: 3 | E7: SUMIFS:
A8: COUNTA | B8: 21 | C8: 3 | E8: Add with 1 or more conditions/criteria
A9: COUNTIFS | B9: 21 | C9: 3 | E9: Criteria can be: text, numbers, dates, times, numbers and comparative operators
A10: SUMIFS | B10: 21 | C10: 3
A11: MIN | B11: 27 | C11: 9 | E11: Comparative Operators
A12: MAX | B12: 27 | C12: 9 | E12: > Greater Than
A13: ROUND | B13: 30 | C13: 12 | E13: >= Greater Than Or Equal To
A14: SUMIF | B14: 31 | C14: 13 | E14: < Less Than
A15: PMT | B15: 35 | C15: 17 | E15: <= Less Than Or Equal To
A16: MEDIAN | B16: 35 | C16: 17 | E16: = Equal To
A17: MODE | B17: HW 2 ==>> | C17: HW 2 ==>> | E17: <> Not Equal To
J18: SUMIF
A20: ProduceSold | B20: SellDate | C20: Crates | D20: SalesRep | E20: Sales | G20: Criteria1 | H20: Count | W20: ProduceSold | X20: Price
A21: Banana | B21: 2013-08-14 | C21: 52 | D21: Sioux | E21: =C21*VLOOKUP(A21,$W$21:$X$25,2,0) -> 1820 | G21: Green Kale | I21: ="Text criteria. How many transactions did we have for "&G21&"?" -> Text criteria. How many transactions did we have for Green Kale? | W21: Banana | X21: 35
A22: Orange | B22: 2013-08-15 | C22: 185 | D22: Chin | E22: 5365 | G22: 2013-08-14 | I22: ="Date criteria. How many transactions on "&TEXT(G22,"m/d/yyy") -> Date criteria. How many transactions on 8/14/2013 | W22: Orange | X22: 29
A23: Green Kale | B23: 2013-08-14 | C23: 18 | D23: Sioux | E23: 738 | G23: >100 | I23: ="Comparative Operator & Number. How many transactions sold "&G23&" crates?" -> Comparative Operator & Number. How many transactions sold >100 crates? | W23: Green Kale | X23: 41
A24: Dinosaur Kale | B24: 2013-08-15 | C24: 114 | D24: Chin | E24: 3648 | G24: Criteria1 | H24: Add Crates | W24: Dinosaur Kale | X24: 32
A25: Purple Kale | B25: 2013-08-15 | C25: 81 | D25: Chin | E25: 3726 | G25: Green Kale | I25: ="Text criteria. Add crates for "&G25&"." -> Text criteria. Add crates for Green Kale. | W25: Purple Kale | X25: 46
A26: Banana | B26: 2013-08-15 | C26: 79 | D26: Ty | E26: 2765 | G26: 2013-08-14 | I26: ="Date criteria. Add crates sold on "&TEXT(G26,"m/d/yyy") -> Date criteria. Add crates sold on 8/14/2013
A27: Banana | B27: 2013-08-14 | C27: 67 | D27: Sioux | E27: 2345 | G27: >100 | I27: ="Comparative Operator & Number. Add crates where the transactions sold "&G27&" crates." -> Comparative Operator & Number. Add crates where the transactions sold >100 crates.
A28: Orange | B28: 2013-08-15 | C28: 102 | D28: Ty | E28: 2958 | G28: Criteria2 | H28: Criteria1 | I28: Count
A29: Green Kale | B29: 2013-08-14 | C29: 76 | D29: Sioux | E29: 3116 | G29: Chin | H29: Dinosaur Kale | J29: ="How many "&H29&" transactions did "&G29&" have?" -> How many Dinosaur Kale transactions did Chin have?
A30: Dinosaur Kale | B30: 2013-08-15 | C30: 56 | D30: Chin | E30: 1792 | G30: Banana | H30: 2013-08-14 | J30: ="How many "&G30&" transactions on "&TEXT(H30,"m/d/yyy")&" were there?" -> How many Banana transactions on 8/14/2013 were there?
A31: Dinosaur Kale | B31: 2013-08-15 | C31: 84 | D31: Ty | E31: 2688 | G31: Ty | H31: >75 | J31: ="How many transactions did "&G31&" have where he sold "&H31&" crates?" -> How many transactions did Ty have where he sold >75 crates?
A32: Green Kale | B32: 2013-08-14 | C32: 75 | D32: Sioux | E32: 3075 | G32: Criteria2 | H32: Criteria1 | I32: Add Sales
A33: Purple Kale | B33: 2013-08-15 | C33: 15 | D33: Sioux | E33: 690 | G33: Chin | H33: Dinosaur Kale | J33: ="What was the total sales "&G33&" had for "&H33&"?" -> What was the total sales Chin had for Dinosaur Kale?
A34: Purple Kale | B34: 2013-08-15 | C34: 65 | D34: Ty | E34: 2990 | G34: Banana | H34: 2013-08-14 | J34: ="What was the total sales for "&G34&"s on "&TEXT(H34,"m/d/yyy")&"?" -> What was the total sales for Bananas on 8/14/2013?
A35: Orange | B35: 2013-08-14 | C35: 90 | D35: Chin | E35: 2610 | G35: Sioux | H35: <=1000 | J35: ="What was the total sales for "&G35&" where the transaction sale amount was "&H35&"?" -> What was the total sales for Sioux where the transaction sale amount was <=1000?
G38: Add sales for each SalesRep on each day.
A39: ProduceSold | B39: SellDate | C39: Crates | D39: SalesRep | E39: Sales | G39: SellDate | H39: SalesRep | I39: Add Sales
A40: Banana | B40: 2013-08-14 | C40: 52 | D40: Sioux | E40: =C40*VLOOKUP(A40,$W$21:$X$25,2,0) -> 1820 | G40: 2013-08-14 | H40: Chin
A41: Orange | B41: 2013-08-15 | C41: 185 | D41: Chin | E41: 5365 | G41: 2013-08-14 | H41: Sioux
A42: Green Kale | B42: 2013-08-14 | C42: 18 | D42: Sioux | E42: 738 | G42: 2013-08-14 | H42: Ty
A43: Dinosaur Kale | B43: 2013-08-15 | C43: 114 | D43: Chin | E43: 3648 | G43: 2013-08-15 | H43: Chin
A44: Purple Kale | B44: 2013-08-15 | C44: 81 | D44: Chin | E44: 3726 | G44: 2013-08-15 | H44: Sioux
A45: Banana | B45: 2013-08-15 | C45: 79 | D45: Ty | E45: 2765 | G45: 2013-08-15 | H45: Ty
A46: Banana | B46: 2013-08-14 | C46: 67 | D46: Sioux | E46: 2345
A47: Orange | B47: 2013-08-15 | C47: 102 | D47: Ty | E47: 2958
A48: Green Kale | B48: 2013-08-14 | C48: 76 | D48: Sioux | E48: 3116
A49: Dinosaur Kale | B49: 2013-08-15 | C49: 56 | D49: Chin | E49: 1792
A50: Dinosaur Kale | B50: 2013-08-15 | C50: 84 | D50: Ty | E50: 2688
A51: Green Kale | B51: 2013-08-14 | C51: 75 | D51: Sioux | E51: 3075
A52: Purple Kale | B52: 2013-08-15 | C52: 79 | D52: Sioux | E52: 3634
A53: Purple Kale | B53: 2013-08-15 | C53: 65 | D53: Ty | E53: 2990
A54: Orange | B54: 2013-08-14 | C54: 90 | D54: Chin | E54: 2610
I57: Boss asks: "Sales for each SalesRep in West"
A58: Customer | B58: Date | C58: Region | D58: SalesRep | E58: Product | F58: COGS | G58: Sales | I58: Region
A59: Amazon.com | B59: 2005-10-07 | C59: SouthEast | D59: Luke | E59: AIM Item | F59: 3642 | G59: 6279 | I59: West
A60: Costco | B60: 2004-10-26 | C60: West | D60: Jeri | E60: UYR Item | F60: 3189 | G60: 7416 | I60: SalesReps | J60: Sales
A61: Home Depot | B61: 2005-05-20 | C61: North | D61: Sheliadawn | E61: XOU Item | F61: 3636 | G61: 6269 | I61: Luke
A62: Whole Foods | B62: 2004-09-24 | C62: MidWest | D62: Jon | E62: ILP Item | F62: 2983 | G62: 5423 | I62: Jeri
A63: McLendon's Hardware | B63: 2005-01-14 | C63: MidWest | D63: Steven | E63: LXS Item | F63: 6386 | G63: 6830 | I63: Sheliadawn
A64: Whole Foods | B64: 2005-04-03 | C64: West | D64: Sheliadawn | E64: MFB Item | F64: 1175 | G64: 2611 | I64: Jon
A65: Nature Company | B65: 2006-01-20 | C65: NorthEast | D65: Jeri | E65: NEE Item | F65: 2791 | G65: 4811 | I65: Steven
A66: Home Depot | B66: 2006-02-26 | C66: SouthEast | D66: Jeri | E66: JHF Item | F66: 15 | G66: 22 | I66: Chin
A67: Amazon.com | B67: 2004-12-16 | C67: MidWest | D67: Jeri | E67: LII Item | F67: 7222 | G67: 8206 | I67: Rhonda
A68: Costco | B68: 2006-04-05 | C68: NorthEast | D68: Jeri | E68: FSJ Item | F68: 4647 | G68: 8450 | I68: Troung
A69: Yahoo | B69: 2005-06-24 | C69: NorthEast | D69: Jeri | E69: HVH Item | F69: 1264 | G69: 2143
A70: Sherman Williams | B70: 2004-08-22 | C70: SouthEast | D70: Chin | E70: YVD Item | F70: 3606 | G70: 6112
A71: Google | B71: 2005-11-09 | C71: NorthEast | D71: Luke | E71: TTM Item | F71: 204 | G71: 272
A72: Costco | B72: 2005-03-23 | C72: MidWest | D72: Rhonda | E72: MKA Item | F72: 944 | G72: 2552
A73: McLendon's Hardware | B73: 2005-10-03 | C73: MidWest | D73: Troung | E73: EVO Item | F73: 9190 | G73: 9829
A74: The Economist | B74: 2005-04-04 | C74: MidWest | D74: Rhonda | E74: EYG Item | F74: 3918 | G74: 4453
A75: Yahoo | B75: 2006-01-05 | C75: NorthEast | D75: Luke | E75: LVD Item | F75: 242 | G75: 322
A76: Nature Company | B76: 2004-11-06 | C76: NorthEast | D76: Luke | E76: BCD Item | F76: 564 | G76: 1025
A77: Costco | B77: 2005-09-25 | C77: SouthEast | D77: Jon | E77: UGN Item | F77: 1504 | G77: 2005
A78: Solar and Wind Inc. | B78: 2004-11-12 | C78: MidWest | D78: Chin | E78: PET Item | F78: 3505 | G78: 8150
A79: ExcelIsVeryFun.com | B79: 2004-12-07 | C79: West | D79: Jeri | E79: AIU Item | F79: 3846 | G79: 6992
A80: The Economist | B80: 2005-11-05 | C80: North | D80: Steven | E80: XIM Item | F80: 2510 | G80: 5838
A81: Amazon.com | B81: 2005-09-30 | C81: NorthEast | D81: Jeri | E81: AIZ Item | F81: 628 | G81: 923
A82: The Economist | B82: 2004-08-27 | C82: NorthEast | D82: Chin | E82: VBF Item | F82: 1441 | G82: 2443
A83: Costco | B83: 2004-08-18 | C83: NorthEast | D83: Rhonda | E83: VCN Item | F83: 2992 | G83: 3989
A84: ExcelIsVeryFun.com | B84: 2006-02-19 | C84: North | D84: Troung | E84: GHH Item | F84: 7658 | G84: 8702
A85: Home Depot | B85: 2005-12-11 | C85: NorthEast | D85: Jeri | E85: WPD Item | F85: 3141 | G85: 5415
A86: Costco | B86: 2005-03-17 | C86: NorthEast | D86: Chin | E86: YWP Item | F86: 558 | G86: 1298
A87: Home Depot | B87: 2004-12-01 | C87: North | D87: Sheliadawn | E87: BPJ Item | F87: 731 | G87: 1238
A88: Nature Company | B88: 2005-04-05 | C88: NorthEast | D88: Chin | E88: HLL Item | F88: 4008 | G88: 4555
A89: ExcelIsVeryFun.com | B89: 2005-03-04 | C89: MidWest | D89: Luke | E89: YAK Item | F89: 5246 | G89: 5610
A90: Nature Company | B90: 2006-05-19 | C90: West | D90: Jeri | E90: GVD Item | F90: 1855 | G90: 4313
A91: Whole Foods | B91: 2005-04-25 | C91: North | D91: Luke | E91: SRN Item | F91: 4662 | G91: 6856
A92: Yahoo | B92: 2004-09-24 | C92: West | D92: Luke | E92: UCA Item | F92: 1267 | G92: 2304
A93: ExcelIsVeryFun.com | B93: 2004-06-17 | C93: MidWest | D93: Chin | E93: MWN Item | F93: 6305 | G93: 9272
A94: Sherman Williams | B94: 2005-05-24 | C94: SouthEast | D94: Steven | E94: OQM Item | F94: 6515 | G94: 8687
A95: Costco | B95: 2005-10-20 | C95: SouthEast | D95: Luke | E95: CLN Item | F95: 612 | G95: 1360
A96: Costco | B96: 2005-01-09 | C96: North | D96: Jon | E96: MYE Item | F96: 3330 | G96: 7400
A97: Whole Foods | B97: 2005-12-29 | C97: NorthEast | D97: Steven | E97: FZS Item | F97: 359 | G97: 619
A98: McLendon's Hardware | B98: 2005-09-13 | C98: NorthEast | D98: Sheliadawn | E98: HUO Item | F98: 2307 | G98: 6234
A99: Home Depot | B99: 2006-05-12 | C99: NorthEast | D99: Steven | E99: DRO Item | F99: 4765 | G99: 8215
A100: Yahoo | B100: 2004-07-29 | C100: West | D100: Rhonda | E100: CJK Item | F100: 4675 | G100: 8501
A101: Home Depot | B101: 2005-04-12 | C101: NorthEast | D101: Jon | E101: MQP Item | F101: 4296 | G101: 7408
A102: Google | B102: 2006-05-03 | C102: NorthEast | D102: Rhonda | E102: MHX Item | F102: 2076 | G102: 3774
A103: Office Depot | B103: 2004-07-17 | C103: NorthEast | D103: Jon | E103: JYF Item | F103: 1210 | G103: 1614
A104: The Economist | B104: 2004-11-16 | C104: SouthEast | D104: Sheliadawn | E104: CRF Item | F104: 5399 | G104: 9309
A105: Office Depot | B105: 2005-03-16 | C105: SouthEast | D105: Chin | E105: ICN Item | F105: 606 | G105: 1102
A106: Home Depot | B106: 2004-08-17 | C106: MidWest | D106: Luke | E106: YHI Item | F106: 3419 | G106: 6216
A107: Sherman Williams | B107: 2005-10-13 | C107: SouthEast | D107: Jeri | E107: MJG Item | F107: 2705 | G107: 3073
A108: Solar and Wind Inc. | B108: 2005-09-26 | C108: North | D108: Troung | E108: GMO Item | F108: 5590 | G108: 7454
A109: Peet's Coffee | B109: 2005-06-12 | C109: SouthEast | D109: Luke | E109: ENW Item | F109: 3438 | G109: 5928
A110: Costco | B110: 2006-04-15 | C110: NorthEast | D110: Troung | E110: WCX Item | F110: 1182 | G110: 3195
A111: Nature Company | B111: 2005-12-30 | C111: SouthEast | D111: Troung | E111: EIS Item | F111: 5338 | G111: 7118
A112: Nature Company | B112: 2005-09-15 | C112: NorthEast | D112: Luke | E112: ZMF Item | F112: 3251 | G112: 4335
A113: Costco | B113: 2006-05-11 | C113: MidWest | D113: Chin | E113: VYV Item | F113: 3546 | G113: 3792
A114: Nature Company | B114: 2005-03-06 | C114: SouthEast | D114: Rhonda | E114: XWP Item | F114: 3155 | G114: 5347
A115: The Economist | B115: 2005-09-18 | C115: SouthEast | D115: Jeri | E115: MKP Item | F115: 448 | G115: 659
A116: Yahoo | B116: 2006-04-06 | C116: West | D116: Jon | E116: SHA Item | F116: 1935 | G116: 2198
A117: Nature Company | B117: 2004-09-07 | C117: North | D117: Sheliadawn | E117: NCH Item | F117: 5047 | G117: 5398
A118: The Economist | B118: 2005-02-16 | C118: SouthEast | D118: Jon | E118: XHR Item | F118: 4271 | G118: 7364
A119: The Economist | B119: 2004-12-27 | C119: North | D119: Jeri | E119: KWJ Item | F119: 5832 | G119: 7777
A120: Peet's Coffee | B120: 2004-09-30 | C120: MidWest | D120: Jon | E120: LRH Item | F120: 501 | G120: 1354
A121: Costco | B121: 2005-10-15 | C121: MidWest | D121: Troung | E121: WIL Item | F121: 815 | G121: 1382
A122: The Economist | B122: 2004-11-29 | C122: West | D122: Jon | E122: TGO Item | F122: 2675 | G122: 4533
A123: McLendon's Hardware | B123: 2005-03-28 | C123: West | D123: Steven | E123: WMW Item | F123: 4341 | G123: 7485
A124: Yahoo | B124: 2005-10-21 | C124: North | D124: Chin | E124: WKL Item | F124: 8597 | G124: 9195
A125: Solar and Wind Inc. | B125: 2006-03-02 | C125: North | D125: Sheliadawn | E125: PUD Item | F125: 3827 | G125: 8505
A126: Peet's Coffee | B126: 2004-09-09 | C126: West | D126: Rhonda | E126: UMN Item | F126: 1724 | G126: 2972
A127: Whole Foods | B127: 2006-03-01 | C127: MidWest | D127: Luke | E127: YNQ Item | F127: 3186 | G127: 8610
A128: ExcelIsVeryFun.com | B128: 2006-03-07 | C128: North | D128: Chin | E128: FMP Item | F128: 2672 | G128: 4859
A129: Sherman Williams | B129: 2006-05-16 | C129: NorthEast | D129: Sheliadawn | E129: ONY Item | F129: 272 | G129: 605
A130: Amazon.com | B130: 2005-12-14 | C130: NorthEast | D130: Chin | E130: SVF Item | F130: 948 | G130: 2204
A131: The Economist | B131: 2004-07-22 | C131: NorthEast | D131: Jeri | E131: KSG Item | F131: 650 | G131: 1181
A132: The Economist | B132: 2005-09-26 | C132: NorthEast | D132: Luke | E132: JTV Item | F132: 1731 | G132: 2985
A133: The Economist | B133: 2005-04-01 | C133: MidWest | D133: Rhonda | E133: QSA Item | F133: 6032 | G133: 6452
A134: ExcelIsVeryFun.com | B134: 2005-04-20 | C134: NorthEast | D134: Luke | E134: HAK Item | F134: 641 | G134: 1086
A135: Nature Company | B135: 2005-01-11 | C135: NorthEast | D135: Sheliadawn | E135: PBH Item | F135: 5217 | G135: 5929
A136: Sherman Williams | B136: 2005-08-07 | C136: SouthEast | D136: Troung | E136: GPQ Item | F136: 6550 | G136: 7005
A137: Sherman Williams | B137: 2005-10-03 | C137: MidWest | D137: Steven | E137: ILS Item | F137: 1461 | G137: 3949
A138: Home Depot | B138: 2004-12-11 | C138: North | D138: Luke | E138: LFD Item | F138: 3414 | G138: 9226
A139: Costco | B139: 2005-01-14 | C139: MidWest | D139: Chin | E139: QRV Item | F139: 2675 | G139: 4863
A140: Costco | B140: 2004-07-24 | C140: SouthEast | D140: Chin | E140: LFI Item | F140: 3410 | G140: 7578
A141: Solar and Wind Inc. | B141: 2006-01-08 | C141: North | D141: Rhonda | E141: SNK Item | F141: 2173 | G141: 3683
A142: Office Depot | B142: 2005-06-07 | C142: NorthEast | D142: Luke | E142: BJH Item | F142: 3387 | G142: 7527
A143: Home Depot | B143: 2005-02-17 | C143: SouthEast | D143: Steven | E143: DRK Item | F143: 2267 | G143: 5272
A144: Google | B144: 2006-06-10 | C144: NorthEast | D144: Troung | E144: DVC Item | F144: 3412 | G144: 3649
A145: Sherman Williams | B145: 2005-10-07 | C145: North | D145: Chin | E145: XNB Item | F145: 3465 | G145: 6299
A146: Solar and Wind Inc. | B146: 2006-05-17 | C146: NorthEast | D146: Jon | E146: JZS Item | F146: 2764 | G146: 4766
A147: Sherman Williams | B147: 2004-08-27 | C147: West | D147: Rhonda | E147: THO Item | F147: 4833 | G147: 8787
A148: Costco | B148: 2005-04-20 | C148: MidWest | D148: Troung | E148: KXJ Item | F148: 4502 | G148: 6002
A149: McLendon's Hardware | B149: 2004-08-29 | C149: NorthEast | D149: Steven | E149: VDD Item | F149: 3729 | G149: 4972
A150: Office Depot | B150: 2005-12-19 | C150: West | D150: Jon | E150: XOU Item | F150: 5849 | G150: 7799
A151: Peet's Coffee | B151: 2004-08-30 | C151: MidWest | D151: Rhonda | E151: JYF Item | F151: 3932 | G151: 6779
A152: Costco | B152: 2005-04-20 | C152: MidWest | D152: Sheliadawn | E152: TBQ Item | F152: 3970 | G152: 9233
A153: Nature Company | B153: 2005-09-16 | C153: West | D153: Jon | E153: EWM Item | F153: 1806 | G153: 4880
A154: The Economist | B154: 2006-01-20 | C154: NorthEast | D154: Troung | E154: EYP Item | F154: 2705 | G154: 4665
A155: Peet's Coffee | B155: 2005-05-13 | C155: NorthEast | D155: Steven | E155: BTJ Item | F155: 4431 | G155: 7640
A156: Google | B156: 2005-07-15 | C156: North | D156: Sheliadawn | E156: IAF Item | F156: 1909 | G156: 2545
A157: Costco | B157: 2004-10-02 | C157: MidWest | D157: Jeri | E157: CLS Item | F157: 6663 | G157: 7126
A158: ExcelIsVeryFun.com | B158: 2004-12-06 | C158: West | D158: Troung | E158: YGD Item | F158: 2227 | G158: 2531
A159: Yahoo | B159: 2004-10-09 | C159: NorthEast | D159: Steven | E159: DKM Item | F159: 5386 | G159: 7181
A160: Solar and Wind Inc. | B160: 2005-07-04 | C160: NorthEast | D160: Luke | E160: ULJ Item | F160: 3442 | G160: 5835
A161: Office Depot | B161: 2005-10-13 | C161: SouthEast | D161: Rhonda | E161: XMY Item | F161: 2395 | G161: 6474
A162: Whole Foods | B162: 2006-01-01 | C162: NorthEast | D162: Troung | E162: EHO Item | F162: 1252 | G162: 2122
A163: The Economist | B163: 2005-08-28 | C163: MidWest | D163: Sheliadawn | E163: WEW Item | F163: 5349 | G163: 7867
A164: The Economist | B164: 2005-08-27 | C164: NorthEast | D164: Steven | E164: III Item | F164: 5843 | G164: 6250
A165: Solar and Wind Inc. | B165: 2005-08-25 | C165: West | D165: Troung | E165: PUA Item | F165: 2050 | G165: 3535
A166: Office Depot | B166: 2005-08-03 | C166: West | D166: Jeri | E166: MEL Item | F166: 8815 | G166: 9427
A167: Whole Foods | B167: 2005-04-18 | C167: West | D167: Rhonda | E167: EFD Item | F167: 45 | G167: 82
A168: Sherman Williams | B168: 2004-08-09 | C168: MidWest | D168: Luke | E168: ZEI Item | F168: 1371 | G168: 2492
A169: Amazon.com | B169: 2006-01-11 | C169: North | D169: Jeri | E169: BZE Item | F169: 3250 | G169: 3475
A170: Nature Company | B170: 2004-08-30 | C170: SouthEast | D170: Jon | E170: BYE Item | F170: 4483 | G170: 6592
A171: Costco | B171: 2005-06-10 | C171: NorthEast | D171: Rhonda | E171: IWN Item | F171: 5332 | G171: 5702
A172: Whole Foods | B172: 2005-08-04 | C172: NorthEast | D172: Steven | E172: BAN Item | F172: 2881 | G172: 6701
A173: Nature Company | B173: 2006-05-13 | C173: North | D173: Rhonda | E173: OAP Item | F173: 2666 | G173: 7206
A174: Solar and Wind Inc. | B174: 2006-01-09 | C174: NorthEast | D174: Rhonda | E174: NZX Item | F174: 726 | G174: 1230
A175: Whole Foods | B175: 2004-08-18 | C175: NorthEast | D175: Steven | E175: VYM Item | F175: 2421 | G175: 6543
A176: Costco | B176: 2004-08-10 | C176: North | D176: Troung | E176: NFU Item | F176: 234 | G176: 266
A177: Costco | B177: 2006-02-15 | C177: NorthEast | D177: Chin | E177: TGL Item | F177: 59 | G177: 159
A178: Solar and Wind Inc. | B178: 2004-12-20 | C178: SouthEast | D178: Jon | E178: VIN Item | F178: 5877 | G178: 9960
A179: Sherman Williams | B179: 2004-07-02 | C179: NorthEast | D179: Jon | E179: OYO Item | F179: 836 | G179: 1520
A180: ExcelIsVeryFun.com | B180: 2006-03-03 | C180: West | D180: Troung | E180: KPO Item | F180: 426 | G180: 992
A181: Nature Company | B181: 2005-02-03 | C181: West | D181: Rhonda | E181: WHF Item | F181: 5163 | G181: 5522
A182: Google | B182: 2005-11-21 | C182: West | D182: Jon | E182: NWT Item | F182: 1769 | G182: 3050
A183: Amazon.com | B183: 2005-10-28 | C183: MidWest | D183: Chin | E183: WXR Item | F183: 2714 | G183: 4600
A184: Sherman Williams | B184: 2006-03-01 | C184: NorthEast | D184: Rhonda | E184: MKO Item | F184: 1886 | G184: 4190
A185: Amazon.com | B185: 2005-12-09 | C185: NorthEast | D185: Jon | E185: YQS Item | F185: 1479 | G185: 3287
A186: Office Depot | B186: 2005-05-18 | C186: NorthEast | D186: Troung | E186: PAY Item | F186: 3796 | G186: 6433
A187: Costco | B187: 2005-02-10 | C187: West | D187: Rhonda | E187: FSD Item | F187: 3806 | G187: 8852
A188: Home Depot | B188: 2005-03-01 | C188: NorthEast | D188: Chin | E188: AUW Item | F188: 2742 | G188: 6093
A189: Yahoo | B189: 2004-07-10 | C189: North | D189: Chin | E189: RCA Item | F189: 1905 | G189: 3228
A190: Whole Foods | B190: 2005-01-21 | C190: MidWest | D190: Luke | E190: NSN Item | F190: 8616 | G190: 9790
A191: McLendon's Hardware | B191: 2006-05-18 | C191: MidWest | D191: Troung | E191: RRT Item | F191: 2443 | G191: 6601
A192: Office Depot | B192: 2005-07-01 | C192: NorthEast | D192: Troung | E192: CMU Item | F192: 5413 | G192: 7960
A193: Peet's Coffee | B193: 2005-05-19 | C193: NorthEast | D193: Jeri | E193: QLL Item | F193: 1320 | G193: 2400
A194: Solar and Wind Inc. | B194: 2005-03-31 | C194: West | D194: Luke | E194: VDA Item | F194: 2944 | G194: 4990
A195: Google | B195: 2005-09-30 | C195: North | D195: Steven | E195: XXH Item | F195: 611 | G195: 898
A196: Google | B196: 2005-04-30 | C196: North | D196: Chin | E196: WPF Item | F196: 2402 | G196: 6491
A197: Costco | B197: 2005-07-12 | C197: NorthEast | D197: Jon | E197: ATV Item | F197: 2881 | G197: 3274
A198: Google | B198: 2006-05-02 | C198: NorthEast | D198: Troung | E198: KKL Item | F198: 1775 | G198: 4798
A199: Google | B199: 2005-11-04 | C199: West | D199: Troung | E199: ZAW Item | F199: 2879 | G199: 6397
A200: Home Depot | B200: 2006-02-06 | C200: North | D200: Rhonda | E200: KFE Item | F200: 1297 | G200: 2236
A201: ExcelIsVeryFun.com | B201: 2005-10-02 | C201: MidWest | D201: Jon | E201: NBK Item | F201: 168 | G201: 391
A202: The Economist | B202: 2005-09-19 | C202: West | D202: Sheliadawn | E202: KQN Item | F202: 1622 | G202: 4385
A203: Nature Company | B203: 2005-05-27 | C203: North | D203: Steven | E203: OGH Item | F203: 2116 | G203: 4922
A204: Costco | B204: 2005-12-16 | C204: MidWest | D204: Luke | E204: QDR Item | F204: 3978 | G204: 6859
A205: The Economist | B205: 2006-05-18 | C205: NorthEast | D205: Rhonda | E205: DIO Item | F205: 4247 | G205: 4542
A206: Peet's Coffee | B206: 2006-03-14 | C206: SouthEast | D206: Rhonda | E206: TIH Item | F206: 4846 | G206: 5507
... 1851 more rows

Sheet SUMIFS and COUNTIFS (an)
A1: Office 2013 Class #37: Excel Basics 19:
A2: SUMIFS, COUNTIFS: Add & Count with Criteria/Conditions
A4: Functions we have covered so far: | B4: Office Video | C4: Excel Basics # | E4: COUNTIFS:
A5: SUM | B5: 19 | C5: 1 | E5: Count with 1 or more conditions/criteria
A6: AVERAGE | B6: 19 | C6: 1 | E6: Criteria can be: text, numbers, dates, times, numbers and comparative operators
A7: COUNT | B7: 21 | C7: 3 | E7: SUMIFS:
A8: COUNTA | B8: 21 | C8: 3 | E8: Add with 1 or more conditions/criteria
A9: COUNTIFS | B9: 21 | C9: 3 | E9: Criteria can be: text, numbers, dates, times, numbers and comparative operators
A10: SUMIFS | B10: 21 | C10: 3
A11: MIN | B11: 27 | C11: 9 | E11: Comparative Operators
A12: MAX | B12: 27 | C12: 9 | E12: > Greater Than
A13: ROUND | B13: 30 | C13: 12 | E13: >= Greater Than Or Equal To
A14: SUMIF | B14: 31 | C14: 13 | E14: < Less Than
A15: PMT | B15: 35 | C15: 17 | E15: <= Less Than Or Equal To
A16: MEDIAN | B16: 35 | C16: 17 | E16: = Equal To
A17: MODE | B17: HW 2 ==>> | C17: HW 2 ==>> | E17: <> Not Equal To
J18: SUMIF
J19: =SUMIF(C21:C35,G27) -> 401
A20: ProduceSold | B20: SellDate | C20: Crates | D20: SalesRep | E20: Sales | G20: Criteria1 | H20: Count | W20: ProduceSold | X20: Price
A21: Banana | B21: 2013-08-14 | C21: 52 | D21: Sioux | E21: =C21*VLOOKUP(A21,$W$21:$X$25,2,0) -> 1820 | G21: Green Kale | H21: =COUNTIFS(A21:A35,G21) -> 3 | I21: ="Text criteria. How many transactions did we have for "&G21&"?" -> Text criteria. How many transactions did we have for Green Kale? | W21: Banana | X21: 35
A22: Orange | B22: 2013-08-15 | C22: 185 | D22: Chin | E22: 5365 | G22: 2013-08-14 | H22: =COUNTIFS(B21:B35,G22) -> 6 | I22: ="Date criteria. How many transactions on "&TEXT(G22,"m/d/yyy") -> Date criteria. How many transactions on 8/14/2013 | W22: Orange | X22: 29
A23: Green Kale | B23: 2013-08-14 | C23: 18 | D23: Sioux | E23: 738 | G23: >100 | H23: =COUNTIFS(C21:C35,G23) -> 3 | I23: ="Comparative Operator & Number. How many transactions sold "&G23&" crates?" -> Comparative Operator & Number. How many transactions sold >100 crates? | W23: Green Kale | X23: 41
A24: Dinosaur Kale | B24: 2013-08-15 | C24: 114 | D24: Chin | E24: 3648 | G24: Criteria1 | H24: Add Crates | W24: Dinosaur Kale | X24: 32
A25: Purple Kale | B25: 2013-08-15 | C25: 81 | D25: Chin | E25: 3726 | G25: Green Kale | H25: =SUMIFS(C21:C35,A21:A35,G25) -> 169 | I25: ="Text criteria. Add crates for "&G25&"." -> Text criteria. Add crates for Green Kale. | W25: Purple Kale | X25: 46
A26: Banana | B26: 2013-08-15 | C26: 79 | D26: Ty | E26: 2765 | G26: 2013-08-14 | H26: =SUMIFS(C21:C35,B21:B35,G26) -> 378 | I26: ="Date criteria. Add crates sold on "&TEXT(G26,"m/d/yyy") -> Date criteria. Add crates sold on 8/14/2013
A27: Banana | B27: 2013-08-14 | C27: 67 | D27: Sioux | E27: 2345 | G27: >100 | H27: =SUMIFS(C21:C35,C21:C35,G27) -> 401 | I27: ="Comparative Operator & Number. Add crates where the transactions sold "&G27&" crates." -> Comparative Operator & Number. Add crates where the transactions sold >100 crates.
A28: Orange | B28: 2013-08-15 | C28: 102 | D28: Ty | E28: 2958 | G28: Criteria2 | H28: Criteria1 | I28: Count
A29: Green Kale | B29: 2013-08-14 | C29: 76 | D29: Sioux | E29: 3116 | G29: Chin | H29: Dinosaur Kale | I29: =COUNTIFS(A21:A35,H29,D21:D35,G29) -> 2 | J29: ="How many "&H29&" transactions did "&G29&" have?" -> How many Dinosaur Kale transactions did Chin have?
A30: Dinosaur Kale | B30: 2013-08-15 | C30: 56 | D30: Chin | E30: 1792 | G30: Banana | H30: 2013-08-14 | I30: =COUNTIFS(A21:A35,G30,B21:B35,H30) -> 2 | J30: ="How many "&G30&" transactions on "&TEXT(H30,"m/d/yyy")&" were there?" -> How many Banana transactions on 8/14/2013 were there?
A31: Dinosaur Kale | B31: 2013-08-15 | C31: 84 | D31: Ty | E31: 2688 | G31: Ty | H31: >75 | I31: =COUNTIFS(C21:C35,H31,D21:D35,G31) -> 3 | J31: ="How many transactions did "&G31&" have where he sold "&H31&" crates?" -> How many transactions did Ty have where he sold >75 crates?
A32: Green Kale | B32: 2013-08-14 | C32: 75 | D32: Sioux | E32: 3075 | G32: Criteria2 | H32: Criteria1 | I32: Add Sales
A33: Purple Kale | B33: 2013-08-15 | C33: 15 | D33: Sioux | E33: 690 | G33: Chin | H33: Dinosaur Kale | I33: =SUMIFS(E21:E35,A21:A35,H33,D21:D35,G33) -> 5440 | J33: ="What was the total sales "&G33&" had for "&H33&"?" -> What was the total sales Chin had for Dinosaur Kale?
A34: Purple Kale | B34: 2013-08-15 | C34: 65 | D34: Ty | E34: 2990 | G34: Banana | H34: 2013-08-14 | I34: =SUMIFS(E21:E35,B21:B35,H34,A21:A35,G34) -> 4165 | J34: ="What was the total sales for "&G34&"s on "&TEXT(H34,"m/d/yyy")&"?" -> What was the total sales for Bananas on 8/14/2013?
A35: Orange | B35: 2013-08-14 | C35: 90 | D35: Chin | E35: 2610 | G35: Sioux | H35: <=1000 | I35: =SUMIFS(E21:E35,E21:E35,H35,D21:D35,G35) -> 1428 | J35: ="What was the total sales for "&G35&" where the transaction sale amount was "&H35&"?" -> What was the total sales for Sioux where the transaction sale amount was <=1000?
G38: Add sales for each SalesRep on each day.
A39: ProduceSold | B39: SellDate | C39: Crates | D39: SalesRep | E39: Sales | G39: SellDate | H39: SalesRep | I39: Add Sales
A40: Banana | B40: 2013-08-14 | C40: 52 | D40: Sioux | E40: =C40*VLOOKUP(A40,$W$21:$X$25,2,0) -> 1820 | G40: 2013-08-14 | H40: Chin | I40: =SUMIFS($E$40:$E$54,$B$40:$B$54,G40,$D$40:$D$54,H40) -> 2610
A41: Orange | B41: 2013-08-15 | C41: 185 | D41: Chin | E41: 5365 | G41: 2013-08-14 | H41: Sioux | I41: =SUMIFS($E$40:$E$54,$B$40:$B$54,G41,$D$40:$D$54,H41) -> 11094
A42: Green Kale | B42: 2013-08-14 | C42: 18 | D42: Sioux | E42: 738 | G42: 2013-08-14 | H42: Ty | I42: 0
A43: Dinosaur Kale | B43: 2013-08-15 | C43: 114 | D43: Chin | E43: 3648 | G43: 2013-08-15 | H43: Chin | I43: 14531
A44: Purple Kale | B44: 2013-08-15 | C44: 81 | D44: Chin | E44: 3726 | G44: 2013-08-15 | H44: Sioux | I44: 3634
A45: Banana | B45: 2013-08-15 | C45: 79 | D45: Ty | E45: 2765 | G45: 2013-08-15 | H45: Ty | I45: =SUMIFS($E$40:$E$54,$B$40:$B$54,G45,$D$40:$D$54,H45) -> 11401
A46: Banana | B46: 2013-08-14 | C46: 67 | D46: Sioux | E46: 2345
A47: Orange | B47: 2013-08-15 | C47: 102 | D47: Ty | E47: 2958
A48: Green Kale | B48: 2013-08-14 | C48: 76 | D48: Sioux | E48: 3116
A49: Dinosaur Kale | B49: 2013-08-15 | C49: 56 | D49: Chin | E49: 1792
A50: Dinosaur Kale | B50: 2013-08-15 | C50: 84 | D50: Ty | E50: 2688
A51: Green Kale | B51: 2013-08-14 | C51: 75 | D51: Sioux | E51: 3075
A52: Purple Kale | B52: 2013-08-15 | C52: 79 | D52: Sioux | E52: 3634
A53: Purple Kale | B53: 2013-08-15 | C53: 65 | D53: Ty | E53: 2990
A54: Orange | B54: 2013-08-14 | C54: 90 | D54: Chin | E54: 2610
I57: Boss asks: "Sales for each SalesRep in West"
A58: Customer | B58: Date | C58: Region | D58: SalesRep | E58: Product | F58: COGS | G58: Sales | I58: Region
A59: Amazon.com | B59: 2005-10-07 | C59: SouthEast | D59: Luke | E59: AIM Item | F59: 3642 | G59: 6279 | I59: West
A60: Costco | B60: 2004-10-26 | C60: West | D60: Jeri | E60: UYR Item | F60: 3189 | G60: 7416 | I60: SalesReps | J60: Sales
A61: Home Depot | B61: 2005-05-20 | C61: North | D61: Sheliadawn | E61: XOU Item | F61: 3636 | G61: 6269 | I61: Luke | J61: =SUMIFS($G$59:$G$2057,$C$59:$C$2057,$I$59,$D$59:$D$2057,I61) -> 210097
A62: Whole Foods | B62: 2004-09-24 | C62: MidWest | D62: Jon | E62: ILP Item | F62: 2983 | G62: 5423 | I62: Jeri | J62: =SUMIFS($G$59:$G$2057,$C$59:$C$2057,$I$59,$D$59:$D$2057,I62) -> 290772
A63: McLendon's Hardware | B63: 2005-01-14 | C63: MidWest | D63: Steven | E63: LXS Item | F63: 6386 | G63: 6830 | I63: Sheliadawn | J63: 188710
A64: Whole Foods | B64: 2005-04-03 | C64: West | D64: Sheliadawn | E64: MFB Item | F64: 1175 | G64: 2611 | I64: Jon | J64: 173561
A65: Nature Company | B65: 2006-01-20 | C65: NorthEast | D65: Jeri | E65: NEE Item | F65: 2791 | G65: 4811 | I65: Steven | J65: 189088
A66: Home Depot | B66: 2006-02-26 | C66: SouthEast | D66: Jeri | E66: JHF Item | F66: 15 | G66: 22 | I66: Chin | J66: 161466
A67: Amazon.com | B67: 2004-12-16 | C67: MidWest | D67: Jeri | E67: LII Item | F67: 7222 | G67: 8206 | I67: Rhonda | J67: 185280
A68: Costco | B68: 2006-04-05 | C68: NorthEast | D68: Jeri | E68: FSJ Item | F68: 4647 | G68: 8450 | I68: Troung | J68: =SUMIFS($G$59:$G$2057,$C$59:$C$2057,$I$59,$D$59:$D$2057,I68) -> 170703
A69: Yahoo | B69: 2005-06-24 | C69: NorthEast | D69: Jeri | E69: HVH Item | F69: 1264 | G69: 2143
A70: Sherman Williams | B70: 2004-08-22 | C70: SouthEast | D70: Chin | E70: YVD Item | F70: 3606 | G70: 6112
A71: Google | B71: 2005-11-09 | C71: NorthEast | D71: Luke | E71: TTM Item | F71: 204 | G71: 272
A72: Costco | B72: 2005-03-23 | C72: MidWest | D72: Rhonda | E72: MKA Item | F72: 944 | G72: 2552
A73: McLendon's Hardware | B73: 2005-10-03 | C73: MidWest | D73: Troung | E73: EVO Item | F73: 9190 | G73: 9829
A74: The Economist | B74: 2005-04-04 | C74: MidWest | D74: Rhonda | E74: EYG Item | F74: 3918 | G74: 4453
A75: Yahoo | B75: 2006-01-05 | C75: NorthEast | D75: Luke | E75: LVD Item | F75: 242 | G75: 322
A76: Nature Company | B76: 2004-11-06 | C76: NorthEast | D76: Luke | E76: BCD Item | F76: 564 | G76: 1025
A77: Costco | B77: 2005-09-25 | C77: SouthEast | D77: Jon | E77: UGN Item | F77: 1504 | G77: 2005
A78: Solar and Wind Inc. | B78: 2004-11-12 | C78: MidWest | D78: Chin | E78: PET Item | F78: 3505 | G78: 8150
A79: ExcelIsVeryFun.com | B79: 2004-12-07 | C79: West | D79: Jeri | E79: AIU Item | F79: 3846 | G79: 6992
A80: The Economist | B80: 2005-11-05 | C80: North | D80: Steven | E80: XIM Item | F80: 2510 | G80: 5838
A81: Amazon.com | B81: 2005-09-30 | C81: NorthEast | D81: Jeri | E81: AIZ Item | F81: 628 | G81: 923
A82: The Economist | B82: 2004-08-27 | C82: NorthEast | D82: Chin | E82: VBF Item | F82: 1441 | G82: 2443
A83: Costco | B83: 2004-08-18 | C83: NorthEast | D83: Rhonda | E83: VCN Item | F83: 2992 | G83: 3989
A84: ExcelIsVeryFun.com | B84: 2006-02-19 | C84: North | D84: Troung | E84: GHH Item | F84: 7658 | G84: 8702
A85: Home Depot | B85: 2005-12-11 | C85: NorthEast | D85: Jeri | E85: WPD Item | F85: 3141 | G85: 5415
A86: Costco | B86: 2005-03-17 | C86: NorthEast | D86: Chin | E86: YWP Item | F86: 558 | G86: 1298
A87: Home Depot | B87: 2004-12-01 | C87: North | D87: Sheliadawn | E87: BPJ Item | F87: 731 | G87: 1238
A88: Nature Company | B88: 2005-04-05 | C88: NorthEast | D88: Chin | E88: HLL Item | F88: 4008 | G88: 4555
A89: ExcelIsVeryFun.com | B89: 2005-03-04 | C89: MidWest | D89: Luke | E89: YAK Item | F89: 5246 | G89: 5610
A90: Nature Company | B90: 2006-05-19 | C90: West | D90: Jeri | E90: GVD Item | F90: 1855 | G90: 4313
A91: Whole Foods | B91: 2005-04-25 | C91: North | D91: Luke | E91: SRN Item | F91: 4662 | G91: 6856
A92: Yahoo | B92: 2004-09-24 | C92: West | D92: Luke | E92: UCA Item | F92: 1267 | G92: 2304
A93: ExcelIsVeryFun.com | B93: 2004-06-17 | C93: MidWest | D93: Chin | E93: MWN Item | F93: 6305 | G93: 9272
A94: Sherman Williams | B94: 2005-05-24 | C94: SouthEast | D94: Steven | E94: OQM Item | F94: 6515 | G94: 8687
A95: Costco | B95: 2005-10-20 | C95: SouthEast | D95: Luke | E95: CLN Item | F95: 612 | G95: 1360
A96: Costco | B96: 2005-01-09 | C96: North | D96: Jon | E96: MYE Item | F96: 3330 | G96: 7400
A97: Whole Foods | B97: 2005-12-29 | C97: NorthEast | D97: Steven | E97: FZS Item | F97: 359 | G97: 619
A98: McLendon's Hardware | B98: 2005-09-13 | C98: NorthEast | D98: Sheliadawn | E98: HUO Item | F98: 2307 | G98: 6234
A99: Home Depot | B99: 2006-05-12 | C99: NorthEast | D99: Steven | E99: DRO Item | F99: 4765 | G99: 8215
A100: Yahoo | B100: 2004-07-29 | C100: West | D100: Rhonda | E100: CJK Item | F100: 4675 | G100: 8501
A101: Home Depot | B101: 2005-04-12 | C101: NorthEast | D101: Jon | E101: MQP Item | F101: 4296 | G101: 7408
A102: Google | B102: 2006-05-03 | C102: NorthEast | D102: Rhonda | E102: MHX Item | F102: 2076 | G102: 3774
A103: Office Depot | B103: 2004-07-17 | C103: NorthEast | D103: Jon | E103: JYF Item | F103: 1210 | G103: 1614
A104: The Economist | B104: 2004-11-16 | C104: SouthEast | D104: Sheliadawn | E104: CRF Item | F104: 5399 | G104: 9309
A105: Office Depot | B105: 2005-03-16 | C105: SouthEast | D105: Chin | E105: ICN Item | F105: 606 | G105: 1102
A106: Home Depot | B106: 2004-08-17 | C106: MidWest | D106: Luke | E106: YHI Item | F106: 3419 | G106: 6216
A107: Sherman Williams | B107: 2005-10-13 | C107: SouthEast | D107: Jeri | E107: MJG Item | F107: 2705 | G107: 3073
A108: Solar and Wind Inc. | B108: 2005-09-26 | C108: North | D108: Troung | E108: GMO Item | F108: 5590 | G108: 7454
A109: Peet's Coffee | B109: 2005-06-12 | C109: SouthEast | D109: Luke | E109: ENW Item | F109: 3438 | G109: 5928
A110: Costco | B110: 2006-04-15 | C110: NorthEast | D110: Troung | E110: WCX Item | F110: 1182 | G110: 3195
A111: Nature Company | B111: 2005-12-30 | C111: SouthEast | D111: Troung | E111: EIS Item | F111: 5338 | G111: 7118
A112: Nature Company | B112: 2005-09-15 | C112: NorthEast | D112: Luke | E112: ZMF Item | F112: 3251 | G112: 4335
A113: Costco | B113: 2006-05-11 | C113: MidWest | D113: Chin | E113: VYV Item | F113: 3546 | G113: 3792
A114: Nature Company | B114: 2005-03-06 | C114: SouthEast | D114: Rhonda | E114: XWP Item | F114: 3155 | G114: 5347
A115: The Economist | B115: 2005-09-18 | C115: SouthEast | D115: Jeri | E115: MKP Item | F115: 448 | G115: 659
A116: Yahoo | B116: 2006-04-06 | C116: West | D116: Jon | E116: SHA Item | F116: 1935 | G116: 2198
A117: Nature Company | B117: 2004-09-07 | C117: North | D117: Sheliadawn | E117: NCH Item | F117: 5047 | G117: 5398
A118: The Economist | B118: 2005-02-16 | C118: SouthEast | D118: Jon | E118: XHR Item | F118: 4271 | G118: 7364
A119: The Economist | B119: 2004-12-27 | C119: North | D119: Jeri | E119: KWJ Item | F119: 5832 | G119: 7777
A120: Peet's Coffee | B120: 2004-09-30 | C120: MidWest | D120: Jon | E120: LRH Item | F120: 501 | G120: 1354
A121: Costco | B121: 2005-10-15 | C121: MidWest | D121: Troung | E121: WIL Item | F121: 815 | G121: 1382
A122: The Economist | B122: 2004-11-29 | C122: West | D122: Jon | E122: TGO Item | F122: 2675 | G122: 4533
A123: McLendon's Hardware | B123: 2005-03-28 | C123: West | D123: Steven | E123: WMW Item | F123: 4341 | G123: 7485
A124: Yahoo | B124: 2005-10-21 | C124: North | D124: Chin | E124: WKL Item | F124: 8597 | G124: 9195
A125: Solar and Wind Inc. | B125: 2006-03-02 | C125: North | D125: Sheliadawn | E125: PUD Item | F125: 3827 | G125: 8505
A126: Peet's Coffee | B126: 2004-09-09 | C126: West | D126: Rhonda | E126: UMN Item | F126: 1724 | G126: 2972
A127: Whole Foods | B127: 2006-03-01 | C127: MidWest | D127: Luke | E127: YNQ Item | F127: 3186 | G127: 8610
A128: ExcelIsVeryFun.com | B128: 2006-03-07 | C128: North | D128: Chin | E128: FMP Item | F128: 2672 | G128: 4859
A129: Sherman Williams | B129: 2006-05-16 | C129: NorthEast | D129: Sheliadawn | E129: ONY Item | F129: 272 | G129: 605
A130: Amazon.com | B130: 2005-12-14 | C130: NorthEast | D130: Chin | E130: SVF Item | F130: 948 | G130: 2204
A131: The Economist | B131: 2004-07-22 | C131: NorthEast | D131: Jeri | E131: KSG Item | F131: 650 | G131: 1181
A132: The Economist | B132: 2005-09-26 | C132: NorthEast | D132: Luke | E132: JTV Item | F132: 1731 | G132: 2985
A133: The Economist | B133: 2005-04-01 | C133: MidWest | D133: Rhonda | E133: QSA Item | F133: 6032 | G133: 6452
A134: ExcelIsVeryFun.com | B134: 2005-04-20 | C134: NorthEast | D134: Luke | E134: HAK Item | F134: 641 | G134: 1086
A135: Nature Company | B135: 2005-01-11 | C135: NorthEast | D135: Sheliadawn | E135: PBH Item | F135: 5217 | G135: 5929
A136: Sherman Williams | B136: 2005-08-07 | C136: SouthEast | D136: Troung | E136: GPQ Item | F136: 6550 | G136: 7005
A137: Sherman Williams | B137: 2005-10-03 | C137: MidWest | D137: Steven | E137: ILS Item | F137: 1461 | G137: 3949
A138: Home Depot | B138: 2004-12-11 | C138: North | D138: Luke | E138: LFD Item | F138: 3414 | G138: 9226
A139: Costco | B139: 2005-01-14 | C139: MidWest | D139: Chin | E139: QRV Item | F139: 2675 | G139: 4863
A140: Costco | B140: 2004-07-24 | C140: SouthEast | D140: Chin | E140: LFI Item | F140: 3410 | G140: 7578
A141: Solar and Wind Inc. | B141: 2006-01-08 | C141: North | D141: Rhonda | E141: SNK Item | F141: 2173 | G141: 3683
A142: Office Depot | B142: 2005-06-07 | C142: NorthEast | D142: Luke | E142: BJH Item | F142: 3387 | G142: 7527
A143: Home Depot | B143: 2005-02-17 | C143: SouthEast | D143: Steven | E143: DRK Item | F143: 2267 | G143: 5272
A144: Google | B144: 2006-06-10 | C144: NorthEast | D144: Troung | E144: DVC Item | F144: 3412 | G144: 3649
A145: Sherman Williams | B145: 2005-10-07 | C145: North | D145: Chin | E145: XNB Item | F145: 3465 | G145: 6299
A146: Solar and Wind Inc. | B146: 2006-05-17 | C146: NorthEast | D146: Jon | E146: JZS Item | F146: 2764 | G146: 4766
A147: Sherman Williams | B147: 2004-08-27 | C147: West | D147: Rhonda | E147: THO Item | F147: 4833 | G147: 8787
A148: Costco | B148: 2005-04-20 | C148: MidWest | D148: Troung | E148: KXJ Item | F148: 4502 | G148: 6002
A149: McLendon's Hardware | B149: 2004-08-29 | C149: NorthEast | D149: Steven | E149: VDD Item | F149: 3729 | G149: 4972
A150: Office Depot | B150: 2005-12-19 | C150: West | D150: Jon | E150: XOU Item | F150: 5849 | G150: 7799
A151: Peet's Coffee | B151: 2004-08-30 | C151: MidWest | D151: Rhonda | E151: JYF Item | F151: 3932 | G151: 6779
A152: Costco | B152: 2005-04-20 | C152: MidWest | D152: Sheliadawn | E152: TBQ Item | F152: 3970 | G152: 9233
A153: Nature Company | B153: 2005-09-16 | C153: West | D153: Jon | E153: EWM Item | F153: 1806 | G153: 4880
A154: The Economist | B154: 2006-01-20 | C154: NorthEast | D154: Troung | E154: EYP Item | F154: 2705 | G154: 4665
A155: Peet's Coffee | B155: 2005-05-13 | C155: NorthEast | D155: Steven | E155: BTJ Item | F155: 4431 | G155: 7640
A156: Google | B156: 2005-07-15 | C156: North | D156: Sheliadawn | E156: IAF Item | F156: 1909 | G156: 2545
A157: Costco | B157: 2004-10-02 | C157: MidWest | D157: Jeri | E157: CLS Item | F157: 6663 | G157: 7126
A158: ExcelIsVeryFun.com | B158: 2004-12-06 | C158: West | D158: Troung | E158: YGD Item | F158: 2227 | G158: 2531
A159: Yahoo | B159: 2004-10-09 | C159: NorthEast | D159: Steven | E159: DKM Item | F159: 5386 | G159: 7181
A160: Solar and Wind Inc. | B160: 2005-07-04 | C160: NorthEast | D160: Luke | E160: ULJ Item | F160: 3442 | G160: 5835
A161: Office Depot | B161: 2005-10-13 | C161: SouthEast | D161: Rhonda | E161: XMY Item | F161: 2395 | G161: 6474
A162: Whole Foods | B162: 2006-01-01 | C162: NorthEast | D162: Troung | E162: EHO Item | F162: 1252 | G162: 2122
A163: The Economist | B163: 2005-08-28 | C163: MidWest | D163: Sheliadawn | E163: WEW Item | F163: 5349 | G163: 7867
A164: The Economist | B164: 2005-08-27 | C164: NorthEast | D164: Steven | E164: III Item | F164: 5843 | G164: 6250
A165: Solar and Wind Inc. | B165: 2005-08-25 | C165: West | D165: Troung | E165: PUA Item | F165: 2050 | G165: 3535
A166: Office Depot | B166: 2005-08-03 | C166: West | D166: Jeri | E166: MEL Item | F166: 8815 | G166: 9427
A167: Whole Foods | B167: 2005-04-18 | C167: West | D167: Rhonda | E167: EFD Item | F167: 45 | G167: 82
A168: Sherman Williams | B168: 2004-08-09 | C168: MidWest | D168: Luke | E168: ZEI Item | F168: 1371 | G168: 2492
A169: Amazon.com | B169: 2006-01-11 | C169: North | D169: Jeri | E169: BZE Item | F169: 3250 | G169: 3475
A170: Nature Company | B170: 2004-08-30 | C170: SouthEast | D170: Jon | E170: BYE Item | F170: 4483 | G170: 6592
A171: Costco | B171: 2005-06-10 | C171: NorthEast | D171: Rhonda | E171: IWN Item | F171: 5332 | G171: 5702
A172: Whole Foods | B172: 2005-08-04 | C172: NorthEast | D172: Steven | E172: BAN Item | F172: 2881 | G172: 6701
A173: Nature Company | B173: 2006-05-13 | C173: North | D173: Rhonda | E173: OAP Item | F173: 2666 | G173: 7206
A174: Solar and Wind Inc. | B174: 2006-01-09 | C174: NorthEast | D174: Rhonda | E174: NZX Item | F174: 726 | G174: 1230
A175: Whole Foods | B175: 2004-08-18 | C175: NorthEast | D175: Steven | E175: VYM Item | F175: 2421 | G175: 6543
A176: Costco | B176: 2004-08-10 | C176: North | D176: Troung | E176: NFU Item | F176: 234 | G176: 266
A177: Costco | B177: 2006-02-15 | C177: NorthEast | D177: Chin | E177: TGL Item | F177: 59 | G177: 159
A178: Solar and Wind Inc. | B178: 2004-12-20 | C178: SouthEast | D178: Jon | E178: VIN Item | F178: 5877 | G178: 9960
A179: Sherman Williams | B179: 2004-07-02 | C179: NorthEast | D179: Jon | E179: OYO Item | F179: 836 | G179: 1520
A180: ExcelIsVeryFun.com | B180: 2006-03-03 | C180: West | D180: Troung | E180: KPO Item | F180: 426 | G180: 992
A181: Nature Company | B181: 2005-02-03 | C181: West | D181: Rhonda | E181: WHF Item | F181: 5163 | G181: 5522
A182: Google | B182: 2005-11-21 | C182: West | D182: Jon | E182: NWT Item | F182: 1769 | G182: 3050
A183: Amazon.com | B183: 2005-10-28 | C183: MidWest | D183: Chin | E183: WXR Item | F183: 2714 | G183: 4600
A184: Sherman Williams | B184: 2006-03-01 | C184: NorthEast | D184: Rhonda | E184: MKO Item | F184: 1886 | G184: 4190
A185: Amazon.com | B185: 2005-12-09 | C185: NorthEast | D185: Jon | E185: YQS Item | F185: 1479 | G185: 3287
A186: Office Depot | B186: 2005-05-18 | C186: NorthEast | D186: Troung | E186: PAY Item | F186: 3796 | G186: 6433
A187: Costco | B187: 2005-02-10 | C187: West | D187: Rhonda | E187: FSD Item | F187: 3806 | G187: 8852
A188: Home Depot | B188: 2005-03-01 | C188: NorthEast | D188: Chin | E188: AUW Item | F188: 2742 | G188: 6093
A189: Yahoo | B189: 2004-07-10 | C189: North | D189: Chin | E189: RCA Item | F189: 1905 | G189: 3228
A190: Whole Foods | B190: 2005-01-21 | C190: MidWest | D190: Luke | E190: NSN Item | F190: 8616 | G190: 9790
A191: McLendon's Hardware | B191: 2006-05-18 | C191: MidWest | D191: Troung | E191: RRT Item | F191: 2443 | G191: 6601
A192: Office Depot | B192: 2005-07-01 | C192: NorthEast | D192: Troung | E192: CMU Item | F192: 5413 | G192: 7960
A193: Peet's Coffee | B193: 2005-05-19 | C193: NorthEast | D193: Jeri | E193: QLL Item | F193: 1320 | G193: 2400
A194: Solar and Wind Inc. | B194: 2005-03-31 | C194: West | D194: Luke | E194: VDA Item | F194: 2944 | G194: 4990
A195: Google | B195: 2005-09-30 | C195: North | D195: Steven | E195: XXH Item | F195: 611 | G195: 898
A196: Google | B196: 2005-04-30 | C196: North | D196: Chin | E196: WPF Item | F196: 2402 | G196: 6491
A197: Costco | B197: 2005-07-12 | C197: NorthEast | D197: Jon | E197: ATV Item | F197: 2881 | G197: 3274
A198: Google | B198: 2006-05-02 | C198: NorthEast | D198: Troung | E198: KKL Item | F198: 1775 | G198: 4798
A199: Google | B199: 2005-11-04 | C199: West | D199: Troung | E199: ZAW Item | F199: 2879 | G199: 6397
A200: Home Depot | B200: 2006-02-06 | C200: North | D200: Rhonda | E200: KFE Item | F200: 1297 | G200: 2236
A201: ExcelIsVeryFun.com | B201: 2005-10-02 | C201: MidWest | D201: Jon | E201: NBK Item | F201: 168 | G201: 391
A202: The Economist | B202: 2005-09-19 | C202: West | D202: Sheliadawn | E202: KQN Item | F202: 1622 | G202: 4385
A203: Nature Company | B203: 2005-05-27 | C203: North | D203: Steven | E203: OGH Item | F203: 2116 | G203: 4922
A204: Costco | B204: 2005-12-16 | C204: MidWest | D204: Luke | E204: QDR Item | F204: 3978 | G204: 6859
A205: The Economist | B205: 2006-05-18 | C205: NorthEast | D205: Rhonda | E205: DIO Item | F205: 4247 | G205: 4542
... 1852 more rows

Sheet Cell References

Sheet CR(1)
A1: Office 2013 Class #38: Excel Basics 20:
A2: Relative, Absolute and Mixed Cell References
A5: SalesRep | B5: Sales | C5: Earned Commission | E5: Assumption Table contains Formula Inputs
A6: Abraham | B6: 1161 | E6: Commission Rate | F6: 0.045
A7: Hironobu | B7: 1321
A8: Daniel | B8: 1039 | E8: F4 key:
A9: Dante | B9: 1761 | E9: When cursor touching a cell reference in a formula, the F4
A10: Sarah B | B10: 1561 | E10: key is s toggle that cycles (merry-go-rounds) through the
A11: Tonya | B11: 1868 | E11: four types of cell references.
A12: Janita | B12: 2787
A13: Debra | B13: 1849
A14: Tiara | B14: 2627
A15: Andrea | B15: 2165
A16: Faye | B16: 1589
A17: Viktor | B17: 2603
A18: Na | B18: 2366
A19: Ryan | B19: 2107
A20: Damir | B20: 2886
A21: Sunita | B21: 1886
A22: Meghan | B22: 2177
A23: Cynthia | B23: 1873
A24: Trevor | B24: 2164
A25: John | B25: 1394
A26: Sang | B26: 2263
A27: Dina | B27: 2242
A28: Tony | B28: 1474
A29: Nikolay | B29: 1998
A30: Thanh | B30: 2892
A31: Tracinda | B31: 1873
A32: Denis | B32: 1954
A33: Michael | B33: 1729
A34: Svitlana Q | B34: 1140
A35: Leslie | B35: 1528
A36: Sarah | B36: 1659
A37: Andra | B37: 2119
A38: Christien | B38: 1854
A39: Irina | B39: 2759
A40: Chandy | B40: 1237
A41: David | B41: 1653
A42: Wendy | B42: 2604
A43: Archie | B43: 1479
A44: Desiree | B44: 2569
A45: Denise | B45: 1941
A46: Hillary | B46: 2793
A47: Nicolas | B47: 2614
A48: Ralph | B48: 1645
A49: Konstanti | B49: 1733
A50: Svitlana | B50: 2466
A51: Ewelina | B51: 2833
A52: Jori | B52: 1604
A53: Abdullahi | B53: 2588

Sheet CR(1an)
A1: Office 2013 Class #38: Excel Basics 20:
A2: Relative, Absolute and Mixed Cell References
A5: SalesRep | B5: Sales | C5: Earned Commission | E5: Assumption Table contains Formula Inputs
A6: Abraham | B6: 1161 | C6: =B6*F$6 -> 52.245 | E6: Commission Rate | F6: 0.045
A7: Hironobu | B7: 1321 | C7: =B7*F$6 -> 59.445
A8: Daniel | B8: 1039 | C8: 46.755 | E8: F4 key:
A9: Dante | B9: 1761 | C9: 79.245 | E9: When cursor touching a cell reference in a formula, the F4
A10: Sarah B | B10: 1561 | C10: 70.245 | E10: key is s toggle that cycles (merry-go-rounds) through the
A11: Tonya | B11: 1868 | C11: 84.06 | E11: four types of cell references.
A12: Janita | B12: 2787 | C12: 125.415
A13: Debra | B13: 1849 | C13: 83.205
A14: Tiara | B14: 2627 | C14: 118.215
A15: Andrea | B15: 2165 | C15: 97.425
A16: Faye | B16: 1589 | C16: 71.505
A17: Viktor | B17: 2603 | C17: 117.135
A18: Na | B18: 2366 | C18: 106.47
A19: Ryan | B19: 2107 | C19: 94.815
A20: Damir | B20: 2886 | C20: 129.87
A21: Sunita | B21: 1886 | C21: 84.87
A22: Meghan | B22: 2177 | C22: 97.965
A23: Cynthia | B23: 1873 | C23: 84.285
A24: Trevor | B24: 2164 | C24: 97.38
A25: John | B25: 1394 | C25: 62.73
A26: Sang | B26: 2263 | C26: 101.835
A27: Dina | B27: 2242 | C27: 100.89
A28: Tony | B28: 1474 | C28: 66.33
A29: Nikolay | B29: 1998 | C29: 89.91
A30: Thanh | B30: 2892 | C30: 130.14
A31: Tracinda | B31: 1873 | C31: 84.285
A32: Denis | B32: 1954 | C32: 87.93
A33: Michael | B33: 1729 | C33: 77.805
A34: Svitlana Q | B34: 1140 | C34: 51.3
A35: Leslie | B35: 1528 | C35: 68.76
A36: Sarah | B36: 1659 | C36: 74.655
A37: Andra | B37: 2119 | C37: 95.355
A38: Christien | B38: 1854 | C38: 83.43
A39: Irina | B39: 2759 | C39: 124.155
A40: Chandy | B40: 1237 | C40: 55.665
A41: David | B41: 1653 | C41: 74.385
A42: Wendy | B42: 2604 | C42: 117.18
A43: Archie | B43: 1479 | C43: 66.555
A44: Desiree | B44: 2569 | C44: 115.605
A45: Denise | B45: 1941 | C45: 87.345
A46: Hillary | B46: 2793 | C46: 125.685
A47: Nicolas | B47: 2614 | C47: 117.63
A48: Ralph | B48: 1645 | C48: 74.025
A49: Konstanti | B49: 1733 | C49: 77.985
A50: Svitlana | B50: 2466 | C50: 110.97
A51: Ewelina | B51: 2833 | C51: 127.485
A52: Jori | B52: 1604 | C52: 72.18
A53: Abdullahi | B53: 2588 | C53: =B53*F$6 -> 116.46

Sheet CR(2)
A1: ="Mutiplication Table for my Little "&S29 -> Mutiplication Table for my Little Sister
B2: =S27 -> 1 | C2: =B2+$S28 -> 2 | D2: 3 | E2: 4 | F2: 5 | G2: 6 | H2: 7 | I2: 8 | J2: 9 | K2: 10 | L2: 11 | M2: 12
A3: =B2 -> 1
A4: =A3+S$28 -> 2
A5: 3
A6: 4
A7: 5
A8: 6
A9: 7
A10: 8
A11: 9
A12: 10
A13: 11
A14: 12
R26: Assumptions
R27: Start Number | S27: 1
R28: Increment | S28: 1
R29: Family Member | S29: Sister

Sheet CR(2an)
A1: ="Mutiplication Table for my Little "&S29 -> Mutiplication Table for my Little Sister
B2: =S27 -> 1 | C2: =B2+$S28 -> 2 | D2: 3 | E2: 4 | F2: 5 | G2: 6 | H2: 7 | I2: 8 | J2: 9 | K2: 10 | L2: 11 | M2: 12
A3: =B2 -> 1 | B3: =B$2*$A3 -> 1 | C3: 2 | D3: 3 | E3: 4 | F3: 5 | G3: 6 | H3: 7 | I3: 8 | J3: 9 | K3: 10 | L3: 11 | M3: 12
A4: =A3+S$28 -> 2 | B4: 2 | C4: 4 | D4: 6 | E4: 8 | F4: 10 | G4: 12 | H4: 14 | I4: 16 | J4: 18 | K4: 20 | L4: 22 | M4: 24
A5: 3 | B5: 3 | C5: 6 | D5: 9 | E5: 12 | F5: 15 | G5: 18 | H5: 21 | I5: 24 | J5: 27 | K5: 30 | L5: 33 | M5: 36
A6: 4 | B6: 4 | C6: 8 | D6: 12 | E6: 16 | F6: 20 | G6: 24 | H6: 28 | I6: 32 | J6: 36 | K6: 40 | L6: 44 | M6: 48
A7: 5 | B7: 5 | C7: 10 | D7: 15 | E7: 20 | F7: 25 | G7: 30 | H7: 35 | I7: 40 | J7: 45 | K7: 50 | L7: 55 | M7: 60
A8: 6 | B8: 6 | C8: 12 | D8: 18 | E8: 24 | F8: 30 | G8: 36 | H8: 42 | I8: 48 | J8: 54 | K8: 60 | L8: 66 | M8: 72
A9: 7 | B9: 7 | C9: 14 | D9: 21 | E9: 28 | F9: 35 | G9: 42 | H9: 49 | I9: 56 | J9: 63 | K9: 70 | L9: 77 | M9: 84
A10: 8 | B10: 8 | C10: 16 | D10: 24 | E10: 32 | F10: 40 | G10: 48 | H10: 56 | I10: 64 | J10: 72 | K10: 80 | L10: 88 | M10: 96
A11: 9 | B11: 9 | C11: 18 | D11: 27 | E11: 36 | F11: 45 | G11: 54 | H11: 63 | I11: 72 | J11: 81 | K11: 90 | L11: 99 | M11: 108
A12: 10 | B12: 10 | C12: 20 | D12: 30 | E12: 40 | F12: 50 | G12: 60 | H12: 70 | I12: 80 | J12: 90 | K12: 100 | L12: 110 | M12: 120
A13: 11 | B13: 11 | C13: 22 | D13: 33 | E13: 44 | F13: 55 | G13: 66 | H13: 77 | I13: 88 | J13: 99 | K13: 110 | L13: 121 | M13: 132
A14: 12 | B14: 12 | C14: 24 | D14: 36 | E14: 48 | F14: 60 | G14: 72 | H14: 84 | I14: 96 | J14: 108 | K14: 120 | L14: 132 | M14: 144
R26: Assumptions
R27: Start Number | S27: 1
R28: Increment | S28: 1
R29: Family Member | S29: Sister

Sheet CR(3)
B1: Jan | C1: Feb | D1: Mar | E1: Apr
A2: Revenue | B2: 5000 | C2: 6000 | D2: 7500 | E2: 6900
A3: =A12 -> Expense 1
A4: =A13 -> Expense 2
A5: =A14 -> Expense 3
A6: =A15 -> Expense 4
A7: =A16 -> Expense 5
A8: Total Expenses
A9: Net Income
A11: Assumption Table (Formula Inputs)
A12: Expense 1 | B12: 0.2015
A13: Expense 2 | B13: 0.15
A14: Expense 3 | B14: 0.14
A15: Expense 4 | B15: 0.05
A16: Expense 5 | B16: 0.33

Sheet CR(3an)
B1: Jan | C1: Feb | D1: Mar | E1: Apr
A2: Revenue | B2: 5000 | C2: 6000 | D2: 7500 | E2: 6900
A3: =A12 -> Expense 1 | B3: =ROUND(B$2*$B12,2) -> 1007.5 | C3: 1209 | D3: 1511.25 | E3: 1390.35
A4: =A13 -> Expense 2 | B4: 750 | C4: 900 | D4: 1125 | E4: 1035
A5: =A14 -> Expense 3 | B5: 700 | C5: 840 | D5: 1050 | E5: 966
A6: =A15 -> Expense 4 | B6: 250 | C6: 300 | D6: 375 | E6: 345
A7: =A16 -> Expense 5 | B7: 1650 | C7: 1980 | D7: 2475 | E7: 2277
A8: Total Expenses | B8: =SUM(B3:B7) -> 4357.5 | C8: =SUM(C3:C7) -> 5229 | D8: 6536.25 | E8: 6013.35
A9: Net Income | B9: =B2-B8 -> 642.5 | C9: =C2-C8 -> 771 | D9: 963.75 | E9: 886.65
A11: Assumption Table (Formula Inputs)
A12: Expense 1 | B12: 0.2015
A13: Expense 2 | B13: 0.15
A14: Expense 3 | B14: 0.14
A15: Expense 4 | B15: 0.05
A16: Expense 5 | B16: 0.33

Sheet CR(4)
A1: Yearly PMT | B1: 3000
A3: What will your Pension be worth when you retire?
A4: Years/Rate | B4: =B32 -> 0.03 | C4: =B4+$B33 -> 0.04 | D4: =C4+$B33 -> 0.05 | E4: =D4+$B33 -> 0.06 | F4: =E4+$B33 -> 0.07 | G4: =F4+$B33 -> 0.08
A5: =B34 -> 10
A6: =A5+B$35 -> 15
A7: 20
A8: 25
A9: 30
A10: 35
A11: 40
A12: 45
A13: 50
A32: Start rate | B32: 0.03
A33: increment | B33: 0.01
A34: Start years | B34: 10
A35: Increment | B35: 5

Sheet CR(4an)
A1: Yearly PMT | B1: 3000
A3: What will your Pension be worth when you retire?
A4: Years/Rate | B4: =B32 -> 0.03 | C4: =B4+$B33 -> 0.04 | D4: =C4+$B33 -> 0.05 | E4: =D4+$B33 -> 0.06 | F4: =E4+$B33 -> 0.07 | G4: =F4+$B33 -> 0.08
A5: =B34 -> 10 | B5: =FV(B$4,$A5,-$B$1) -> 34391.63793 | C5: =FV(C$4,$A5,-$B$1) -> 36018.32137 | D5: 37733.67761 | E5: 39542.38483 | F5: 41449.34388 | G5: 43459.6874
A6: =A5+B$35 -> 15 | B6: =FV(B$4,$A6,-$B$1) -> 55796.74166 | C6: 60070.76291 | D6: 64735.69076 | E6: 69827.90965 | F6: 75387.06603 | G6: 81456.34178
A7: 20 | B7: 80611.12347 | C7: 89334.23573 | D7: 99197.86231 | E7: 110356.7736 | F7: 122986.477 | G7: 137285.8929
A8: 25 | B8: 109377.793 | C8: 124937.7249 | D8: 143181.2965 | E8: 164593.536 | F8: 189747.1131 | G8: 219317.8199
A9: 30 | B9: 142726.2471 | C9: 168254.8133 | D9: 199316.5425 | E9: 237174.5586 | F9: 283382.359 | G9: 339849.6333
A10: 35 | B10: 181386.2454 | C10: 220956.6746 | D10: 270960.9221 | E10: 334304.3396 | F10: 414710.6351 | G10: 516950.411
A11: 40 | B11: 226203.7792 | C11: 285076.5471 | D11: 362399.3227 | E11: 464285.8969 | F11: 598905.336 | G11: 777169.5561
A12: 45 | B12: 278159.5842 | C12: 363088.1761 | D12: 479100.4676 | E12: 638230.5414 | F12: 857247.9325 | G12: 1159516.852
A13: 50 | B13: 338390.6019 | C13: 458001.251 | D13: 628043.9871 | E13: 871007.7137 | F13: 1219586.788 | G13: =FV(G$4,$A13,-$B$1) -> 1721310.469
A32: Start rate | B32: 0.03
A33: increment | B33: 0.01
A34: Start years | B34: 10
A35: Increment | B35: 5

Sheet AT(1)
A1: Employee Take Home Pay Table
A2: Names | B2: January Sales | C2: Commission on Sales | D2: Base Salary | E2: Gross Pay | F2: =F11 -> FICA Deduction | G2: =G11 -> Medicare Deduction | H2: =H11 -> Federal Withholdings | I2: Total Deductions | J2: Net Pay
A3: Amy | B3: 125000 | C3: =ROUND(B3*C$24,2) -> 2500 | D3: 2000 | E3: =SUM(C3:D3) -> 4500 | I3: =SUM(F3:H3) -> 0 | J3: =E3-I3 -> 4500
A4: Paul | B4: 97855 | C4: =ROUND(B4*C$24,2) -> 1957.1 | D4: 2000 | E4: =SUM(C4:D4) -> 3957.1 | I4: =SUM(F4:H4) -> 0 | J4: =E4-I4 -> 3957.1
A5: Stevie | B5: 81250 | C5: =ROUND(B5*C$24,2) -> 1625 | D5: 2000 | E5: =SUM(C5:D5) -> 3625 | I5: =SUM(F5:H5) -> 0 | J5: =E5-I5 -> 3625
A6: Aya | B6: 95500 | C6: =ROUND(B6*C$24,2) -> 1910 | D6: 2000 | E6: =SUM(C6:D6) -> 3910 | I6: =SUM(F6:H6) -> 0 | J6: =E6-I6 -> 3910
A7: Jeri | B7: 78550 | C7: =ROUND(B7*C$24,2) -> 1571 | D7: 2000 | E7: =SUM(C7:D7) -> 3571 | I7: =SUM(F7:H7) -> 0 | J7: =E7-I7 -> 3571
A8: Totals | B8: =SUM(B3:B7) -> 478155 | C8: 9563.1 | D8: 10000 | E8: 19563.1 | F8: 0 | G8: 0 | H8: 0 | I8: 0 | J8: 19563.1
F10: Assumption Table
F11: FICA Deduction | G11: Medicare Deduction | H11: Federal Withholdings
F12: 0.062 | G12: 0.0145 | H12: 0.2
F14: =F10 -> Assumption Table
F15: =F11 -> FICA Deduction | G15: =F12 -> 0.062
F16: =G11 -> Medicare Deduction | G16: =G12 -> 0.0145
F17: =H11 -> Federal Withholdings | G17: =H12 -> 0.2
C23: Commission Rate
C24: 0.02

Sheet AT(1an)
A1: Employee Take Home Pay Table
A2: Names | B2: January Sales | C2: Commission on Sales | D2: Base Salary | E2: Gross Pay | F2: =F11 -> FICA Deduction | G2: =G11 -> Medicare Deduction | H2: =H11 -> Pension | I2: =I11 -> Federal Withholdings | J2: Total Deductions | K2: Net Pay
A3: Amy | B3: 125000 | C3: =ROUND(B3*C$24,2) -> 2500 | D3: 2000 | E3: =SUM(C3:D3) -> 4500 | F3: =ROUND($E3*F$12,2) -> 279 | G3: =ROUND($E3*G$12,2) -> 65.25 | H3: 90 | I3: 900 | J3: =SUM(F3:I3) -> 1334.25 | K3: =E3-J3 -> 3165.75
A4: Paul | B4: 97855 | C4: =ROUND(B4*C$24,2) -> 1957.1 | D4: 2000 | E4: =SUM(C4:D4) -> 3957.1 | F4: =ROUND($E4*F$12,2) -> 245.34 | G4: 57.38 | H4: 79.14 | I4: 791.42 | J4: 1173.28 | K4: 2783.82
A5: Stevie | B5: 81250 | C5: =ROUND(B5*C$24,2) -> 1625 | D5: 2000 | E5: =SUM(C5:D5) -> 3625 | F5: 224.75 | G5: 52.56 | H5: 72.5 | I5: 725 | J5: 1074.81 | K5: 2550.19
A6: Aya | B6: 95500 | C6: =ROUND(B6*C$24,2) -> 1910 | D6: 2000 | E6: =SUM(C6:D6) -> 3910 | F6: 242.42 | G6: 56.7 | H6: 78.2 | I6: 782 | J6: 1159.32 | K6: 2750.68
A7: Jeri | B7: 78550 | C7: =ROUND(B7*C$24,2) -> 1571 | D7: 2000 | E7: =SUM(C7:D7) -> 3571 | F7: 221.4 | G7: 51.78 | H7: 71.42 | I7: 714.2 | J7: 1058.8 | K7: 2512.2
A8: Totals | B8: =SUM(B3:B7) -> 478155 | C8: 9563.1 | D8: 10000 | E8: 19563.1 | F8: 1212.91 | G8: 283.67 | H8: 391.26 | I8: 3912.62 | J8: 5800.46 | K8: 13762.64
F10: Assumption Table
F11: FICA Deduction | G11: Medicare Deduction | H11: Pension | I11: Federal Withholdings
F12: 0.062 | G12: 0.0145 | H12: 0.02 | I12: 0.2
F14: =F10 -> Assumption Table
F15: =F11 -> FICA Deduction | G15: =F12 -> 0.062
F16: =G11 -> Medicare Deduction | G16: =G12 -> 0.0145
F17: =I11 -> Federal Withholdings | G17: =I12 -> 0.2
C23: Commission Rate
C24: 0.02

Sheet AT(2)
A1: Office 2013 Class #39: Excel Basics 21:
A2: Orientate Formula Inputs To Allow Mixed Cell References
A4: Budget
B5: Jan | C5: Feb | D5: Mar | E5: Apr | F5: May | G5: Jun | H5: Total
A6: Revenue | B6: 1000 | C6: 1250 | D6: 1370 | E6: 1250 | F6: 2000 | G6: 2215 | H6: =SUM(B6:G6) -> 9085
A7: =A17 -> COGS | H7: 0
A8: Office Expense | H8: 0
A9: Admin Expense | H9: 0
A10: Wage Expense | H10: 0
A11: Other Expense | H11: 0
A12: Depreciation | H12: 0
A13: Total Expenses | B13: =SUM(B7:B12) -> 0 | C13: 0 | D13: 0 | E13: 0 | F13: 0 | G13: 0 | H13: 0
A14: Net Income | B14: =B6-B13 -> 1000 | C14: 1250 | D14: 1370 | E14: 1250 | F14: 2000 | G14: 2215 | H14: 9085
A16: Assumptions - Formula Inputs | D16: Assumptions - Formula Inputs
A17: COGS | B17: 0.255 | D17: =TRANSPOSE(A17:B22) -> COGS | E17: Office Expense | F17: Admin Expense | G17: Wage Expense | H17: Other Expense | I17: Depreciation
A18: Office Expense | B18: 0.045 | D18: 0.255 | E18: 0.045 | F18: 0.075 | G18: 0.225 | H18: 0.045 | I18: 0.12
A19: Admin Expense | B19: 0.075
A20: Wage Expense | B20: 0.225
A21: Other Expense | B21: 0.045
A22: Depreciation | B22: 0.12

Sheet AT(2an)
A1: Office 2013 Class #39: Excel Basics 21:
A2: Orientate Formula Inputs To Allow Mixed Cell References
A4: Budget
B5: Jan | C5: Feb | D5: Mar | E5: Apr | F5: May | G5: Jun | H5: Total
A6: Revenue | B6: 1000 | C6: 1250 | D6: 1370 | E6: 1250 | F6: 2000 | G6: 2215 | H6: =SUM(B6:G6) -> 9085
A7: =A17 -> COGS | B7: =ROUND(B$6*$B17,2) -> 255 | C7: =ROUND(C$6*$B17,2) -> 318.75 | D7: 349.35 | E7: 318.75 | F7: 510 | G7: 564.83 | H7: 2316.68
A8: Office Expense | B8: =ROUND(B$6*$B18,2) -> 45 | C8: 56.25 | D8: 61.65 | E8: 56.25 | F8: 90 | G8: 99.68 | H8: 408.83
A9: Admin Expense | B9: 75 | C9: 93.75 | D9: 102.75 | E9: 93.75 | F9: 150 | G9: 166.13 | H9: 681.38
A10: Wage Expense | B10: 225 | C10: 281.25 | D10: 308.25 | E10: 281.25 | F10: 450 | G10: 498.38 | H10: 2044.13
A11: Other Expense | B11: 45 | C11: 56.25 | D11: 61.65 | E11: 56.25 | F11: 90 | G11: 99.68 | H11: 408.83
A12: Depreciation | B12: 120 | C12: 150 | D12: 164.4 | E12: 150 | F12: 240 | G12: =ROUND(G$6*$B22,2) -> 265.8 | H12: 1090.2
A13: Total Expenses | B13: =SUM(B7:B12) -> 765 | C13: 956.25 | D13: 1048.05 | E13: 956.25 | F13: 1530 | G13: 1694.5 | H13: 6950.05
A14: Net Income | B14: =B6-B13 -> 235 | C14: 293.75 | D14: 321.95 | E14: 293.75 | F14: 470 | G14: 520.5 | H14: 2134.95
A16: Assumptions - Formula Inputs | D16: Assumptions - Formula Inputs
A17: COGS | B17: 0.255 | D17: =TRANSPOSE(A17:B22) -> COGS | E17: Office Expense | F17: Admin Expense | G17: Wage Expense | H17: Other Expense | I17: Depreciation
A18: Office Expense | B18: 0.045 | D18: 0.255 | E18: 0.045 | F18: 0.075 | G18: 0.225 | H18: 0.045 | I18: 0.12
A19: Admin Expense | B19: 0.075
A20: Wage Expense | B20: 0.225
A21: Other Expense | B21: 0.045
A22: Depreciation | B22: 0.12

Sheet HW==>>

Sheet HW(1)
A1: In the green cells below make the following calculations:
A2: ="In cell "&ADDRESS(ROW(B12),COLUMN(B12),4)&" calculate the "&A12&"." -> In cell B12 calculate the Loan Amount.
A3: ="In cell "&ADDRESS(ROW(D11),COLUMN(D11),4)&" calculate the "&C11&"." -> In cell D11 calculate the Monthly Interest Rate.
A4: ="In cell "&ADDRESS(ROW(D13),COLUMN(D13),4)&" calculate the "&C13&"." -> In cell D13 calculate the Total Months.
A5: ="In cell "&ADDRESS(ROW(B13),COLUMN(B13),4)&" calculate the "&A13&". Be sure to round the amount to the penny." -> In cell B13 calculate the Monthly Payment . Be sure to round the amount to the penny.
A6: ="In cell "&ADDRESS(ROW(A9),COLUMN(A9),4)&" create a text formula that makes a label that says 'The monthly payment is ??'. Make sure that the label is linked to the cell "&ADDRESS(ROW(B13),COLUMN(B13),4)&"." -> In cell A9 create a text formula that makes a label that says 'The monthly payment is ??'. Make sure that the label is linked to the cell B13.
A7: Copy the whole sheet (we saw how to do this back in video #19) and then change the formulas inputs: Price of Car = $54,000 and Years = 7.
A10: Price of Car | B10: 29598 | C10: Annual Interest Rate | D10: 0.0395
A11: Down Payment | B11: 2500 | C11: Monthly Interest Rate
A12: Loan Amount | C12: Years for Loan | D12: 5
A13: Monthly Payment | C13: Total Months

Sheet HW(1an)
A1: In the green cells below make the following calculations:
A2: ="In cell "&ADDRESS(ROW(B12),COLUMN(B12),4)&" calculate the "&A12&"." -> In cell B12 calculate the Loan Amount.
A3: ="In cell "&ADDRESS(ROW(D11),COLUMN(D11),4)&" calculate the "&C11&"." -> In cell D11 calculate the Monthly Interest Rate.
A4: ="In cell "&ADDRESS(ROW(D13),COLUMN(D13),4)&" calculate the "&C13&"." -> In cell D13 calculate the Total Months.
A5: ="In cell "&ADDRESS(ROW(B13),COLUMN(B13),4)&" calculate the "&A13&". Be sure to round the amount to the penny." -> In cell B13 calculate the Monthly Payment . Be sure to round the amount to the penny.
A6: ="In cell "&ADDRESS(ROW(A9),COLUMN(A9),4)&" create a text formula that makes a label that says 'The monthly payment is ??'. Make sure that the label is linked to the cell "&ADDRESS(ROW(B13),COLUMN(B13),4)&"." -> In cell A9 create a text formula that makes a label that says 'The monthly payment is ??'. Make sure that the label is linked to the cell B13.
A7: Copy the whole sheet (we saw how to do this back in video #19) and then change the formulas inputs: Price of Car = $54,000 and Years = 7.
A9: ="The Monthly Payment is $"&-B13 -> The Monthly Payment is $498.44
A10: Price of Car | B10: 29598 | C10: Annual Interest Rate | D10: 0.0395
A11: Down Payment | B11: 2500 | C11: Monthly Interest Rate | D11: =D10/12 -> 0.003291666667
A12: Loan Amount | B12: =B10-B11 -> 27098 | C12: Years for Loan | D12: 5
A13: Monthly Payment | B13: =ROUND(PMT(D11,D13,B12),2) -> -498.44 | C13: Total Months | D13: =D12*12 -> 60

Sheet HW(1an) (2)
A1: In the green cells below make the following calculations:
A2: ="In cell "&ADDRESS(ROW(B12),COLUMN(B12),4)&" calculate the "&A12&"." -> In cell B12 calculate the Loan Amount.
A3: ="In cell "&ADDRESS(ROW(D11),COLUMN(D11),4)&" calculate the "&C11&"." -> In cell D11 calculate the Monthly Interest Rate.
A4: ="In cell "&ADDRESS(ROW(D13),COLUMN(D13),4)&" calculate the "&C13&"." -> In cell D13 calculate the Total Months.
A5: ="In cell "&ADDRESS(ROW(B13),COLUMN(B13),4)&" calculate the "&A13&". Be sure to round the amount to the penny." -> In cell B13 calculate the Monthly Payment . Be sure to round the amount to the penny.
A6: ="In cell "&ADDRESS(ROW(A9),COLUMN(A9),4)&" create a text formula that makes a label that says 'The monthly payment is ??'. Make sure that the label is linked to the cell "&ADDRESS(ROW(B13),COLUMN(B13),4)&"." -> In cell A9 create a text formula that makes a label that says 'The monthly payment is ??'. Make sure that the label is linked to the cell B13.
A7: Copy the whole sheet (we saw how to do this back in video #19) and then change the formulas inputs: Price of Car = $54,000 and Years = 7.
A9: ="The Monthly Payment is $"&-B13 -> The Monthly Payment is $702.76
A10: Price of Car | B10: 54000 | C10: Annual Interest Rate | D10: 0.0395
A11: Down Payment | B11: 2500 | C11: Monthly Interest Rate | D11: =D10/12 -> 0.003291666667
A12: Loan Amount | B12: =B10-B11 -> 51500 | C12: Years for Loan | D12: 7
A13: Monthly Payment | B13: =ROUND(PMT(D11,D13,B12),2) -> -702.76 | C13: Total Months | D13: =D12*12 -> 84

Sheet HW(2)
A1: Create a Defined Name for the House Price numbers below.
A2: In the green cells below make the following calculations:
A3: ="In cell "&ADDRESS(ROW(B14),COLUMN(B14),4)&" calculate the "&A14&"." -> In cell B14 calculate the Average (Mean).
A4: ="In cell "&ADDRESS(ROW(B15),COLUMN(B15),4)&" calculate the "&A15&"." -> In cell B15 calculate the Median.
A5: In cell B16 calculate the Mode.
A6: ="Given that the mode is "&DOLLAR(MODE(A20:A10875),0)&", in cell "&ADDRESS(ROW(B17),COLUMN(B17),4)&" calculate the "&LOWER(SUBSTITUTE(A17,"?",""))&"." -> Given that the mode is $176,486, in cell B17 calculate the how many $176,486 values are in the data set.
A8: Averages = "Typical Value" = one number represents all the numbers.
A9: Arithmetic Mean = Add up all the numbers and divide by the count.
A10: Median = After sorting the numbers, what number is in the middle?
A11: Median is a good average when there are some really big or small values in the data set.
A12: Mode is a type of average that tells you which value occurred most frequently.
A14: Average (Mean)
A15: Median
A16: Mode
A17: ="How many "&DOLLAR(MODE(A20:A10875),0)&" values are in the data set?" -> How many $176,486 values are in the data set?
A19: HousePrice
A20: 193738
A21: 105564
A22: 116631
A23: 176486
A24: 621881
A25: 204001
A26: 43292
A27: 425789
A28: 142528
A29: 725976
A30: 997425
A31: 456685
A32: 514711
A33: 82345
A34: 268533
A35: 147775
A36: 408126
A37: 199688
A38: 1334920
A39: 203718
A40: 168062
A41: 421446
A42: 150958
A43: 192506
A44: 246497
A45: 299665
A46: 710799
A47: 1519391
A48: 665764
A49: 556757
A50: 142908
A51: 482122
A52: 141721
A53: 179819
A54: 115299
A55: 585282
A56: 165831
A57: 709702
A58: 806575
A59: 160357
A60: 259033
A61: 492854
A62: 920494
A63: 472569
A64: 717001
A65: 192604
A66: 249927
A67: 183567
A68: 147625
A69: 1599304
A70: 1473153
A71: 199563
A72: 149837
A73: 179099
A74: 517035
A75: 718720
A76: 187250
A77: 231321
A78: 186053
A79: 357213
A80: 64510
A81: 65471
A82: 151587
A83: 251416
A84: 729838
A85: 121193
A86: 198832
A87: 113776
A88: 109917
A89: 383571
A90: 126726
A91: 193396
A92: 70091
A93: 147796
A94: 155182
A95: 57893
A96: 34705
A97: 195258
A98: 174034
A99: 66588
A100: 1067955
A101: 169235
A102: 334766
A103: 833601
A104: 568599
A105: 602591
A106: 1133689
A107: 147885
A108: 176486
A109: 790167
A110: 625855
A111: 231116
A112: 125546
A113: 791938
A114: 179378
A115: 792634
A116: 140203
A117: 1715537
A118: 526447
A119: 139627
A120: 175239
A121: 173330
A122: 115356
A123: 243532
A124: 951697
A125: 153602
A126: 420574
A127: 847238
A128: 563729
A129: 279499
A130: 154403
A131: 464469
A132: 108334
A133: 205718
A134: 176647
A135: 146637
A136: 547927
A137: 108932
A138: 134176
A139: 590261
A140: 109322
A141: 400388
A142: 190852
A143: 1374559
A144: 576008
A145: 397787
A146: 58931
A147: 424808
A148: 248749
A149: 735889
A150: 189335
A151: 476567
A152: 107694
A153: 149243
A154: 431538
A155: 502994
A156: 258860
A157: 142696
A158: 196694
A159: 422749
A160: 232965
A161: 319292
A162: 1192080
A163: 1571605
A164: 497177
A165: 468449
A166: 546009
A167: 549952
A168: 36525
A169: 261860
A170: 458075
A171: 858450
A172: 224862
A173: 223831
A174: 517671
A175: 354682
A176: 309189
A177: 572014
A178: 515200
A179: 553946
A180: 944758
A181: 757202
A182: 285686
A183: 31097
A184: 669175
A185: 429383
A186: 285888
A187: 161387
A188: 838240
A189: 798393
A190: 913330
A191: 101623
A192: 680925
A193: 87896
A194: 266062
A195: 264350
A196: 157954
A197: 141723
A198: 179842
A199: 237152
A200: 737339
A201: 479401
A202: 258244
A203: 689880
... 10672 more rows

Sheet HW(2an)
A1: Create a Defined Name for the House Price numbers below.
A2: In the green cells below make the following calculations:
A3: ="In cell "&ADDRESS(ROW(B14),COLUMN(B14),4)&" calculate the "&A14&"." -> In cell B14 calculate the Average (Mean).
A4: ="In cell "&ADDRESS(ROW(B15),COLUMN(B15),4)&" calculate the "&A15&"." -> In cell B15 calculate the Median.
A5: In cell B16 calculate the Mode.
A6: ="Given that the mode is "&DOLLAR(MODE(A20:A10875),0)&", in cell "&ADDRESS(ROW(B17),COLUMN(B17),4)&" calculate the "&LOWER(SUBSTITUTE(A17,"?",""))&"." -> Given that the mode is $176,486, in cell B17 calculate the how many $176,486 values are in the data set.
A8: Averages = "Typical Value" = one number represents all the numbers.
A9: Arithmetic Mean = Add up all the numbers and divide by the count.
A10: Median = After sorting the numbers, what number is in the middle?
A11: Median is a good average when there are some really big or small values in the data set.
A12: Mode is a type of average that tells you which value occurred most frequently.
A14: Average (Mean) | B14: =AVERAGE(zAnswerHousePrice) -> 460377.232
A15: Median | B15: =MEDIAN(zAnswerHousePrice) -> 340705
A16: Mode | B16: =MODE(zAnswerHousePrice) -> 176486
A17: ="How many "&DOLLAR(MODE(A20:A10875),0)&" values are in the data set?" -> How many $176,486 values are in the data set? | B17: =COUNTIFS(zAnswerHousePrice,B16) -> 4
A19: HousePrice
A20: 193738
A21: 105564
A22: 116631
A23: 176486
A24: 621881
A25: 204001
A26: 43292
A27: 425789
A28: 142528
A29: 725976
A30: 997425
A31: 456685
A32: 514711
A33: 82345
A34: 268533
A35: 147775
A36: 408126
A37: 199688
A38: 1334920
A39: 203718
A40: 168062
A41: 421446
A42: 150958
A43: 192506
A44: 246497
A45: 299665
A46: 710799
A47: 1519391
A48: 665764
A49: 556757
A50: 142908
A51: 482122
A52: 141721
A53: 179819
A54: 115299
A55: 585282
A56: 165831
A57: 709702
A58: 806575
A59: 160357
A60: 259033
A61: 492854
A62: 920494
A63: 472569
A64: 717001
A65: 192604
A66: 249927
A67: 183567
A68: 147625
A69: 1599304
A70: 1473153
A71: 199563
A72: 149837
A73: 179099
A74: 517035
A75: 718720
A76: 187250
A77: 231321
A78: 186053
A79: 357213
A80: 64510
A81: 65471
A82: 151587
A83: 251416
A84: 729838
A85: 121193
A86: 198832
A87: 113776
A88: 109917
A89: 383571
A90: 126726
A91: 193396
A92: 70091
A93: 147796
A94: 155182
A95: 57893
A96: 34705
A97: 195258
A98: 174034
A99: 66588
A100: 1067955
A101: 169235
A102: 334766
A103: 833601
A104: 568599
A105: 602591
A106: 1133689
A107: 147885
A108: 176486
A109: 790167
A110: 625855
A111: 231116
A112: 125546
A113: 791938
A114: 179378
A115: 792634
A116: 140203
A117: 1715537
A118: 526447
A119: 139627
A120: 175239
A121: 173330
A122: 115356
A123: 243532
A124: 951697
A125: 153602
A126: 420574
A127: 847238
A128: 563729
A129: 279499
A130: 154403
A131: 464469
A132: 108334
A133: 205718
A134: 176647
A135: 146637
A136: 547927
A137: 108932
A138: 134176
A139: 590261
A140: 109322
A141: 400388
A142: 190852
A143: 1374559
A144: 576008
A145: 397787
A146: 58931
A147: 424808
A148: 248749
A149: 735889
A150: 189335
A151: 476567
A152: 107694
A153: 149243
A154: 431538
A155: 502994
A156: 258860
A157: 142696
A158: 196694
A159: 422749
A160: 232965
A161: 319292
A162: 1192080
A163: 1571605
A164: 497177
A165: 468449
A166: 546009
A167: 549952
A168: 36525
A169: 261860
A170: 458075
A171: 858450
A172: 224862
A173: 223831
A174: 517671
A175: 354682
A176: 309189
A177: 572014
A178: 515200
A179: 553946
A180: 944758
A181: 757202
A182: 285686
A183: 31097
A184: 669175
A185: 429383
A186: 285888
A187: 161387
A188: 838240
A189: 798393
A190: 913330
A191: 101623
A192: 680925
A193: 87896
A194: 266062
A195: 264350
A196: 157954
A197: 141723
A198: 179842
A199: 237152
A200: 737339
A201: 479401
A202: 258244
A203: 689880
... 10672 more rows

Sheet HW(3)
A1: In the green cells use either COUNTIFS or SUMIFS to make the calculations.
A4: ProduceSold | B4: SellDate | C4: Crates | D4: SalesRep | E4: Sales | G4: Criteria1 | H4: Count
A5: Banana | B5: 2013-08-14 | C5: 52 | D5: Sioux | E5: 1820 | G5: Banana | I5: ="Text criteria. How many transactions did we have for "&G5&"?" -> Text criteria. How many transactions did we have for Banana?
A6: Orange | B6: 2013-08-15 | C6: 185 | D6: Chin | E6: 5365 | G6: 2013-08-15 | I6: ="Date criteria. How many transactions on "&TEXT(G6,"m/d/yyy") -> Date criteria. How many transactions on 8/15/2013
A7: Green Kale | B7: 2013-08-14 | C7: 18 | D7: Sioux | E7: 738 | G7: >=90 | I7: ="Comparative Operator & Number. How many transactions sold "&G7&" crates?" -> Comparative Operator & Number. How many transactions sold >=90 crates?
A8: Dinosaur Kale | B8: 2013-08-15 | C8: 114 | D8: Chin | E8: 3648 | G8: Criteria1 | H8: Add Crates
A9: Purple Kale | B9: 2013-08-15 | C9: 81 | D9: Chin | E9: 3726 | G9: Banana | I9: ="Text criteria. Add crates for "&G9&"." -> Text criteria. Add crates for Banana.
A10: Banana | B10: 2013-08-15 | C10: 79 | D10: Ty | E10: 2765 | G10: 2013-08-15 | I10: ="Date criteria. Add crates sold on "&TEXT(G10,"m/d/yyy") -> Date criteria. Add crates sold on 8/15/2013
A11: Banana | B11: 2013-08-14 | C11: 67 | D11: Sioux | E11: 2345 | G11: <50 | I11: ="Comparative Operator & Number. Add crates where the transactions sold "&G11&" crates." -> Comparative Operator & Number. Add crates where the transactions sold <50 crates.
A12: Orange | B12: 2013-08-15 | C12: 102 | D12: Ty | E12: 2958 | G12: Criteria2 | H12: Criteria1 | I12: Count
A13: Green Kale | B13: 2013-08-14 | C13: 76 | D13: Sioux | E13: 3116 | G13: Sioux | H13: Banana | J13: ="How many "&H13&" transactions did "&G13&" have?" -> How many Banana transactions did Sioux have?
A14: Dinosaur Kale | B14: 2013-08-15 | C14: 56 | D14: Chin | E14: 1792 | G14: Purple Kale | H14: 2013-08-14 | J14: ="How many "&G14&" transactions on "&TEXT(H14,"m/d/yyy")&" were there?" -> How many Purple Kale transactions on 8/14/2013 were there?
A15: Dinosaur Kale | B15: 2013-08-15 | C15: 84 | D15: Ty | E15: 2688 | G15: Chin | H15: >80 | J15: ="How many transactions did "&G15&" have where he sold "&H15&" crates?" -> How many transactions did Chin have where he sold >80 crates?
A16: Green Kale | B16: 2013-08-14 | C16: 75 | D16: Sioux | E16: 3075 | G16: Criteria2 | H16: Criteria1 | I16: Add Sales
A17: Purple Kale | B17: 2013-08-15 | C17: 15 | D17: Sioux | E17: 690 | G17: Chin | H17: Orange | J17: ="What was the total sales "&G17&" had for "&H17&"?" -> What was the total sales Chin had for Orange?
A18: Purple Kale | B18: 2013-08-15 | C18: 65 | D18: Ty | E18: 2990 | G18: Green Kale | H18: 2013-08-15 | J18: ="What was the total sales for "&G18&"s on "&TEXT(H18,"m/d/yyy")&"?" -> What was the total sales for Green Kales on 8/15/2013?
A19: Orange | B19: 2013-08-14 | C19: 90 | D19: Chin | E19: 2610 | G19: Ty | H19: >84 | J19: ="What was the total sales for "&G19&" where the transaction sale amount was "&H19&"?" -> What was the total sales for Ty where the transaction sale amount was >84?

Sheet HW(3an)
A1: In the green cells use either COUNTIFS or SUMIFS to make the calculations.
A4: ProduceSold | B4: SellDate | C4: Crates | D4: SalesRep | E4: Sales | G4: Criteria1 | H4: Count
A5: Banana | B5: 2013-08-14 | C5: 52 | D5: Sioux | E5: 1820 | G5: Banana | H5: =COUNTIFS(A5:A19,G5) -> 3 | I5: ="Text criteria. How many transactions did we have for "&G5&"?" -> Text criteria. How many transactions did we have for Banana?
A6: Orange | B6: 2013-08-15 | C6: 185 | D6: Chin | E6: 5365 | G6: 2013-08-15 | H6: =COUNTIFS(B5:B19,G6) -> 9 | I6: ="Date criteria. How many transactions on "&TEXT(G6,"m/d/yyy") -> Date criteria. How many transactions on 8/15/2013
A7: Green Kale | B7: 2013-08-14 | C7: 18 | D7: Sioux | E7: 738 | G7: >=90 | H7: =COUNTIFS(C5:C19,G7) -> 4 | I7: ="Comparative Operator & Number. How many transactions sold "&G7&" crates?" -> Comparative Operator & Number. How many transactions sold >=90 crates?
A8: Dinosaur Kale | B8: 2013-08-15 | C8: 114 | D8: Chin | E8: 3648 | G8: Criteria1 | H8: Add Crates
A9: Purple Kale | B9: 2013-08-15 | C9: 81 | D9: Chin | E9: 3726 | G9: Banana | H9: =SUMIFS(C5:C19,A5:A19,G9) -> 198 | I9: ="Text criteria. Add crates for "&G9&"." -> Text criteria. Add crates for Banana.
A10: Banana | B10: 2013-08-15 | C10: 79 | D10: Ty | E10: 2765 | G10: 2013-08-15 | H10: =SUMIFS(C5:C19,B5:B19,G10) -> 781 | I10: ="Date criteria. Add crates sold on "&TEXT(G10,"m/d/yyy") -> Date criteria. Add crates sold on 8/15/2013
A11: Banana | B11: 2013-08-14 | C11: 67 | D11: Sioux | E11: 2345 | G11: <50 | H11: =SUMIFS(C5:C19,C5:C19,G11) -> 33 | I11: ="Comparative Operator & Number. Add crates where the transactions sold "&G11&" crates." -> Comparative Operator & Number. Add crates where the transactions sold <50 crates.
A12: Orange | B12: 2013-08-15 | C12: 102 | D12: Ty | E12: 2958 | G12: Criteria2 | H12: Criteria1 | I12: Count
A13: Green Kale | B13: 2013-08-14 | C13: 76 | D13: Sioux | E13: 3116 | G13: Sioux | H13: Banana | I13: =COUNTIFS(A5:A19,H13,D5:D19,G13) -> 2 | J13: ="How many "&H13&" transactions did "&G13&" have?" -> How many Banana transactions did Sioux have?
A14: Dinosaur Kale | B14: 2013-08-15 | C14: 56 | D14: Chin | E14: 1792 | G14: Purple Kale | H14: 2013-08-14 | I14: =COUNTIFS(A5:A19,G14,B5:B19,H14) -> 0 | J14: ="How many "&G14&" transactions on "&TEXT(H14,"m/d/yyy")&" were there?" -> How many Purple Kale transactions on 8/14/2013 were there?
A15: Dinosaur Kale | B15: 2013-08-15 | C15: 84 | D15: Ty | E15: 2688 | G15: Chin | H15: >80 | I15: =COUNTIFS(C5:C19,H15,D5:D19,G15) -> 4 | J15: ="How many transactions did "&G15&" have where he sold "&H15&" crates?" -> How many transactions did Chin have where he sold >80 crates?
A16: Green Kale | B16: 2013-08-14 | C16: 75 | D16: Sioux | E16: 3075 | G16: Criteria2 | H16: Criteria1 | I16: Add Sales
A17: Purple Kale | B17: 2013-08-15 | C17: 15 | D17: Sioux | E17: 690 | G17: Chin | H17: Orange | I17: =SUMIFS(E5:E19,A5:A19,H17,D5:D19,G17) -> 7975 | J17: ="What was the total sales "&G17&" had for "&H17&"?" -> What was the total sales Chin had for Orange?
A18: Purple Kale | B18: 2013-08-15 | C18: 65 | D18: Ty | E18: 2990 | G18: Green Kale | H18: 2013-08-15 | I18: =SUMIFS(E5:E19,B5:B19,H18,A5:A19,G18) -> 0 | J18: ="What was the total sales for "&G18&"s on "&TEXT(H18,"m/d/yyy")&"?" -> What was the total sales for Green Kales on 8/15/2013?
A19: Orange | B19: 2013-08-14 | C19: 90 | D19: Chin | E19: 2610 | G19: Ty | H19: >84 | I19: =SUMIFS(E5:E19,E5:E19,H19,D5:D19,G19) -> 11401 | J19: ="What was the total sales for "&G19&" where the transaction sale amount was "&H19&"?" -> What was the total sales for Ty where the transaction sale amount was >84?

Sheet HW(4)
A1: In the green cells use SUMIFS to make the calculations.
G4: Add sales for each Product on each day.
A5: ProduceSold | B5: SellDate | C5: Crates | D5: SalesRep | E5: Sales | G5: SellDate | H5: ProduceSold | I5: Add Sales
A6: Banana | B6: 2013-08-14 | C6: 52 | D6: Sioux | E6: 1820 | G6: 2013-08-14 | H6: Banana
A7: Orange | B7: 2013-08-15 | C7: 185 | D7: Chin | E7: 5365 | G7: 2013-08-14 | H7: Orange
A8: Green Kale | B8: 2013-08-14 | C8: 18 | D8: Sioux | E8: 738 | G8: 2013-08-14 | H8: Green Kale
A9: Dinosaur Kale | B9: 2013-08-15 | C9: 114 | D9: Chin | E9: 3648 | G9: 2013-08-14 | H9: Dinosaur Kale
A10: Purple Kale | B10: 2013-08-15 | C10: 81 | D10: Chin | E10: 3726 | G10: 2013-08-14 | H10: Purple Kale
A11: Banana | B11: 2013-08-15 | C11: 79 | D11: Ty | E11: 2765 | G11: 2013-08-15 | H11: Banana
A12: Banana | B12: 2013-08-14 | C12: 67 | D12: Sioux | E12: 2345 | G12: 2013-08-15 | H12: Orange
A13: Orange | B13: 2013-08-15 | C13: 102 | D13: Ty | E13: 2958 | G13: 2013-08-15 | H13: Green Kale
A14: Green Kale | B14: 2013-08-14 | C14: 76 | D14: Sioux | E14: 3116 | G14: 2013-08-15 | H14: Dinosaur Kale
A15: Dinosaur Kale | B15: 2013-08-15 | C15: 56 | D15: Chin | E15: 1792 | G15: 2013-08-15 | H15: Purple Kale
A16: Dinosaur Kale | B16: 2013-08-15 | C16: 84 | D16: Ty | E16: 2688
A17: Green Kale | B17: 2013-08-14 | C17: 75 | D17: Sioux | E17: 3075
A18: Purple Kale | B18: 2013-08-15 | C18: 79 | D18: Sioux | E18: 3634
A19: Purple Kale | B19: 2013-08-15 | C19: 65 | D19: Ty | E19: 2990
A20: Orange | B20: 2013-08-14 | C20: 90 | D20: Chin | E20: 2610

Sheet HW(4an)
A1: In the green cells use SUMIFS to make the calculations.
G4: Add sales for each Product on each day.
A5: ProduceSold | B5: SellDate | C5: Crates | D5: SalesRep | E5: Sales | G5: SellDate | H5: ProduceSold | I5: Add Sales | K5: Add Sales
A6: Banana | B6: 2013-08-14 | C6: 52 | D6: Sioux | E6: 1820 | G6: 2013-08-14 | H6: Banana | I6: =SUMIFS($E$6:$E$20,$B$6:$B$20,G6,$A$6:$A$20,H6) -> 4165 | K6: =SUMIFS($E$6:$E$20,$B$6:$B$20,G6,$A$6:$A$20,H6) -> 4165
A7: Orange | B7: 2013-08-15 | C7: 185 | D7: Chin | E7: 5365 | G7: 2013-08-14 | H7: Orange | I7: =SUMIFS($E$6:$E$20,$B$6:$B$20,G7,$A$6:$A$20,H7) -> 2610 | K7: =SUMIFS($E$6:$E$20,$B$6:$B$20,G7,$A$6:$A$20,H7) -> 2610
A8: Green Kale | B8: 2013-08-14 | C8: 18 | D8: Sioux | E8: 738 | G8: 2013-08-14 | H8: Green Kale | I8: 6929 | K8: 6929
A9: Dinosaur Kale | B9: 2013-08-15 | C9: 114 | D9: Chin | E9: 3648 | G9: 2013-08-14 | H9: Dinosaur Kale | I9: 0 | J9: or | K9: 0
A10: Purple Kale | B10: 2013-08-15 | C10: 81 | D10: Chin | E10: 3726 | G10: 2013-08-14 | H10: Purple Kale | I10: 0 | K10: 0
A11: Banana | B11: 2013-08-15 | C11: 79 | D11: Ty | E11: 2765 | G11: 2013-08-15 | H11: Banana | I11: 2765 | K11: 2765
A12: Banana | B12: 2013-08-14 | C12: 67 | D12: Sioux | E12: 2345 | G12: 2013-08-15 | H12: Orange | I12: 8323 | K12: 8323
A13: Orange | B13: 2013-08-15 | C13: 102 | D13: Ty | E13: 2958 | G13: 2013-08-15 | H13: Green Kale | I13: 0 | K13: 0
A14: Green Kale | B14: 2013-08-14 | C14: 76 | D14: Sioux | E14: 3116 | G14: 2013-08-15 | H14: Dinosaur Kale | I14: 8128 | K14: 8128
A15: Dinosaur Kale | B15: 2013-08-15 | C15: 56 | D15: Chin | E15: 1792 | G15: 2013-08-15 | H15: Purple Kale | I15: 10350 | K15: 10350
A16: Dinosaur Kale | B16: 2013-08-15 | C16: 84 | D16: Ty | E16: 2688
A17: Green Kale | B17: 2013-08-14 | C17: 75 | D17: Sioux | E17: 3075
A18: Purple Kale | B18: 2013-08-15 | C18: 79 | D18: Sioux | E18: 3634
A19: Purple Kale | B19: 2013-08-15 | C19: 65 | D19: Ty | E19: 2990
A20: Orange | B20: 2013-08-14 | C20: 90 | D20: Chin | E20: 2610

Sheet HW(5)
A1: In the green cells use SUMIFS to make the calculations.
I3: Boss asks: "Sales for each Region by Jeri"
A4: Customer | B4: Date | C4: Region | D4: SalesRep | E4: Product | F4: COGS | G4: Sales | I4: SalesReps
A5: Amazon.com | B5: 2005-10-07 | C5: SouthEast | D5: Luke | E5: AIM Item | F5: 3642 | G5: 6279 | I5: Jeri
A6: Costco | B6: 2004-10-26 | C6: West | D6: Jeri | E6: UYR Item | F6: 3189 | G6: 7416 | I6: Region | J6: Sales
A7: Home Depot | B7: 2005-05-20 | C7: North | D7: Sheliadawn | E7: XOU Item | F7: 3636 | G7: 6269 | I7: SouthEast
A8: Whole Foods | B8: 2004-09-24 | C8: MidWest | D8: Jon | E8: ILP Item | F8: 2983 | G8: 5423 | I8: West
A9: McLendon's Hardware | B9: 2005-01-14 | C9: MidWest | D9: Steven | E9: LXS Item | F9: 6386 | G9: 6830 | I9: North
A10: Whole Foods | B10: 2005-04-03 | C10: West | D10: Sheliadawn | E10: MFB Item | F10: 1175 | G10: 2611 | I10: MidWest
A11: Nature Company | B11: 2006-01-20 | C11: NorthEast | D11: Jeri | E11: NEE Item | F11: 2791 | G11: 4811 | I11: NorthEast
A12: Home Depot | B12: 2006-02-26 | C12: SouthEast | D12: Jeri | E12: JHF Item | F12: 15 | G12: 22
A13: Amazon.com | B13: 2004-12-16 | C13: MidWest | D13: Jeri | E13: LII Item | F13: 7222 | G13: 8206
A14: Costco | B14: 2006-04-05 | C14: NorthEast | D14: Jeri | E14: FSJ Item | F14: 4647 | G14: 8450
A15: Yahoo | B15: 2005-06-24 | C15: NorthEast | D15: Jeri | E15: HVH Item | F15: 1264 | G15: 2143
A16: Sherman Williams | B16: 2004-08-22 | C16: SouthEast | D16: Chin | E16: YVD Item | F16: 3606 | G16: 6112
A17: Google | B17: 2005-11-09 | C17: NorthEast | D17: Luke | E17: TTM Item | F17: 204 | G17: 272
A18: Costco | B18: 2005-03-23 | C18: MidWest | D18: Rhonda | E18: MKA Item | F18: 944 | G18: 2552
A19: McLendon's Hardware | B19: 2005-10-03 | C19: MidWest | D19: Troung | E19: EVO Item | F19: 9190 | G19: 9829
A20: The Economist | B20: 2005-04-04 | C20: MidWest | D20: Rhonda | E20: EYG Item | F20: 3918 | G20: 4453
A21: Yahoo | B21: 2006-01-05 | C21: NorthEast | D21: Luke | E21: LVD Item | F21: 242 | G21: 322
A22: Nature Company | B22: 2004-11-06 | C22: NorthEast | D22: Luke | E22: BCD Item | F22: 564 | G22: 1025
A23: Costco | B23: 2005-09-25 | C23: SouthEast | D23: Jon | E23: UGN Item | F23: 1504 | G23: 2005
A24: Solar and Wind Inc. | B24: 2004-11-12 | C24: MidWest | D24: Chin | E24: PET Item | F24: 3505 | G24: 8150
A25: ExcelIsVeryFun.com | B25: 2004-12-07 | C25: West | D25: Jeri | E25: AIU Item | F25: 3846 | G25: 6992
A26: The Economist | B26: 2005-11-05 | C26: North | D26: Steven | E26: XIM Item | F26: 2510 | G26: 5838
A27: Amazon.com | B27: 2005-09-30 | C27: NorthEast | D27: Jeri | E27: AIZ Item | F27: 628 | G27: 923
A28: The Economist | B28: 2004-08-27 | C28: NorthEast | D28: Chin | E28: VBF Item | F28: 1441 | G28: 2443
A29: Costco | B29: 2004-08-18 | C29: NorthEast | D29: Rhonda | E29: VCN Item | F29: 2992 | G29: 3989
A30: ExcelIsVeryFun.com | B30: 2006-02-19 | C30: North | D30: Troung | E30: GHH Item | F30: 7658 | G30: 8702
A31: Home Depot | B31: 2005-12-11 | C31: NorthEast | D31: Jeri | E31: WPD Item | F31: 3141 | G31: 5415
A32: Costco | B32: 2005-03-17 | C32: NorthEast | D32: Chin | E32: YWP Item | F32: 558 | G32: 1298
A33: Home Depot | B33: 2004-12-01 | C33: North | D33: Sheliadawn | E33: BPJ Item | F33: 731 | G33: 1238
A34: Nature Company | B34: 2005-04-05 | C34: NorthEast | D34: Chin | E34: HLL Item | F34: 4008 | G34: 4555
A35: ExcelIsVeryFun.com | B35: 2005-03-04 | C35: MidWest | D35: Luke | E35: YAK Item | F35: 5246 | G35: 5610
A36: Nature Company | B36: 2006-05-19 | C36: West | D36: Jeri | E36: GVD Item | F36: 1855 | G36: 4313
A37: Whole Foods | B37: 2005-04-25 | C37: North | D37: Luke | E37: SRN Item | F37: 4662 | G37: 6856
A38: Yahoo | B38: 2004-09-24 | C38: West | D38: Luke | E38: UCA Item | F38: 1267 | G38: 2304
A39: ExcelIsVeryFun.com | B39: 2004-06-17 | C39: MidWest | D39: Chin | E39: MWN Item | F39: 6305 | G39: 9272
A40: Sherman Williams | B40: 2005-05-24 | C40: SouthEast | D40: Steven | E40: OQM Item | F40: 6515 | G40: 8687
A41: Costco | B41: 2005-10-20 | C41: SouthEast | D41: Luke | E41: CLN Item | F41: 612 | G41: 1360
A42: Costco | B42: 2005-01-09 | C42: North | D42: Jon | E42: MYE Item | F42: 3330 | G42: 7400
A43: Whole Foods | B43: 2005-12-29 | C43: NorthEast | D43: Steven | E43: FZS Item | F43: 359 | G43: 619
A44: McLendon's Hardware | B44: 2005-09-13 | C44: NorthEast | D44: Sheliadawn | E44: HUO Item | F44: 2307 | G44: 6234
A45: Home Depot | B45: 2006-05-12 | C45: NorthEast | D45: Steven | E45: DRO Item | F45: 4765 | G45: 8215
A46: Yahoo | B46: 2004-07-29 | C46: West | D46: Rhonda | E46: CJK Item | F46: 4675 | G46: 8501
A47: Home Depot | B47: 2005-04-12 | C47: NorthEast | D47: Jon | E47: MQP Item | F47: 4296 | G47: 7408
A48: Google | B48: 2006-05-03 | C48: NorthEast | D48: Rhonda | E48: MHX Item | F48: 2076 | G48: 3774
A49: Office Depot | B49: 2004-07-17 | C49: NorthEast | D49: Jon | E49: JYF Item | F49: 1210 | G49: 1614
A50: The Economist | B50: 2004-11-16 | C50: SouthEast | D50: Sheliadawn | E50: CRF Item | F50: 5399 | G50: 9309
A51: Office Depot | B51: 2005-03-16 | C51: SouthEast | D51: Chin | E51: ICN Item | F51: 606 | G51: 1102
A52: Home Depot | B52: 2004-08-17 | C52: MidWest | D52: Luke | E52: YHI Item | F52: 3419 | G52: 6216
A53: Sherman Williams | B53: 2005-10-13 | C53: SouthEast | D53: Jeri | E53: MJG Item | F53: 2705 | G53: 3073
A54: Solar and Wind Inc. | B54: 2005-09-26 | C54: North | D54: Troung | E54: GMO Item | F54: 5590 | G54: 7454
A55: Peet's Coffee | B55: 2005-06-12 | C55: SouthEast | D55: Luke | E55: ENW Item | F55: 3438 | G55: 5928
A56: Costco | B56: 2006-04-15 | C56: NorthEast | D56: Troung | E56: WCX Item | F56: 1182 | G56: 3195
A57: Nature Company | B57: 2005-12-30 | C57: SouthEast | D57: Troung | E57: EIS Item | F57: 5338 | G57: 7118
A58: Nature Company | B58: 2005-09-15 | C58: NorthEast | D58: Luke | E58: ZMF Item | F58: 3251 | G58: 4335
A59: Costco | B59: 2006-05-11 | C59: MidWest | D59: Chin | E59: VYV Item | F59: 3546 | G59: 3792
A60: Nature Company | B60: 2005-03-06 | C60: SouthEast | D60: Rhonda | E60: XWP Item | F60: 3155 | G60: 5347
A61: The Economist | B61: 2005-09-18 | C61: SouthEast | D61: Jeri | E61: MKP Item | F61: 448 | G61: 659
A62: Yahoo | B62: 2006-04-06 | C62: West | D62: Jon | E62: SHA Item | F62: 1935 | G62: 2198
A63: Nature Company | B63: 2004-09-07 | C63: North | D63: Sheliadawn | E63: NCH Item | F63: 5047 | G63: 5398
A64: The Economist | B64: 2005-02-16 | C64: SouthEast | D64: Jon | E64: XHR Item | F64: 4271 | G64: 7364
A65: The Economist | B65: 2004-12-27 | C65: North | D65: Jeri | E65: KWJ Item | F65: 5832 | G65: 7777
A66: Peet's Coffee | B66: 2004-09-30 | C66: MidWest | D66: Jon | E66: LRH Item | F66: 501 | G66: 1354
A67: Costco | B67: 2005-10-15 | C67: MidWest | D67: Troung | E67: WIL Item | F67: 815 | G67: 1382
A68: The Economist | B68: 2004-11-29 | C68: West | D68: Jon | E68: TGO Item | F68: 2675 | G68: 4533
A69: McLendon's Hardware | B69: 2005-03-28 | C69: West | D69: Steven | E69: WMW Item | F69: 4341 | G69: 7485
A70: Yahoo | B70: 2005-10-21 | C70: North | D70: Chin | E70: WKL Item | F70: 8597 | G70: 9195
A71: Solar and Wind Inc. | B71: 2006-03-02 | C71: North | D71: Sheliadawn | E71: PUD Item | F71: 3827 | G71: 8505
A72: Peet's Coffee | B72: 2004-09-09 | C72: West | D72: Rhonda | E72: UMN Item | F72: 1724 | G72: 2972
A73: Whole Foods | B73: 2006-03-01 | C73: MidWest | D73: Luke | E73: YNQ Item | F73: 3186 | G73: 8610
A74: ExcelIsVeryFun.com | B74: 2006-03-07 | C74: North | D74: Chin | E74: FMP Item | F74: 2672 | G74: 4859
A75: Sherman Williams | B75: 2006-05-16 | C75: NorthEast | D75: Sheliadawn | E75: ONY Item | F75: 272 | G75: 605
A76: Amazon.com | B76: 2005-12-14 | C76: NorthEast | D76: Chin | E76: SVF Item | F76: 948 | G76: 2204
A77: The Economist | B77: 2004-07-22 | C77: NorthEast | D77: Jeri | E77: KSG Item | F77: 650 | G77: 1181
A78: The Economist | B78: 2005-09-26 | C78: NorthEast | D78: Luke | E78: JTV Item | F78: 1731 | G78: 2985
A79: The Economist | B79: 2005-04-01 | C79: MidWest | D79: Rhonda | E79: QSA Item | F79: 6032 | G79: 6452
A80: ExcelIsVeryFun.com | B80: 2005-04-20 | C80: NorthEast | D80: Luke | E80: HAK Item | F80: 641 | G80: 1086
A81: Nature Company | B81: 2005-01-11 | C81: NorthEast | D81: Sheliadawn | E81: PBH Item | F81: 5217 | G81: 5929
A82: Sherman Williams | B82: 2005-08-07 | C82: SouthEast | D82: Troung | E82: GPQ Item | F82: 6550 | G82: 7005
A83: Sherman Williams | B83: 2005-10-03 | C83: MidWest | D83: Steven | E83: ILS Item | F83: 1461 | G83: 3949
A84: Home Depot | B84: 2004-12-11 | C84: North | D84: Luke | E84: LFD Item | F84: 3414 | G84: 9226
A85: Costco | B85: 2005-01-14 | C85: MidWest | D85: Chin | E85: QRV Item | F85: 2675 | G85: 4863
A86: Costco | B86: 2004-07-24 | C86: SouthEast | D86: Chin | E86: LFI Item | F86: 3410 | G86: 7578
A87: Solar and Wind Inc. | B87: 2006-01-08 | C87: North | D87: Rhonda | E87: SNK Item | F87: 2173 | G87: 3683
A88: Office Depot | B88: 2005-06-07 | C88: NorthEast | D88: Luke | E88: BJH Item | F88: 3387 | G88: 7527
A89: Home Depot | B89: 2005-02-17 | C89: SouthEast | D89: Steven | E89: DRK Item | F89: 2267 | G89: 5272
A90: Google | B90: 2006-06-10 | C90: NorthEast | D90: Troung | E90: DVC Item | F90: 3412 | G90: 3649
A91: Sherman Williams | B91: 2005-10-07 | C91: North | D91: Chin | E91: XNB Item | F91: 3465 | G91: 6299
A92: Solar and Wind Inc. | B92: 2006-05-17 | C92: NorthEast | D92: Jon | E92: JZS Item | F92: 2764 | G92: 4766
A93: Sherman Williams | B93: 2004-08-27 | C93: West | D93: Rhonda | E93: THO Item | F93: 4833 | G93: 8787
A94: Costco | B94: 2005-04-20 | C94: MidWest | D94: Troung | E94: KXJ Item | F94: 4502 | G94: 6002
A95: McLendon's Hardware | B95: 2004-08-29 | C95: NorthEast | D95: Steven | E95: VDD Item | F95: 3729 | G95: 4972
A96: Office Depot | B96: 2005-12-19 | C96: West | D96: Jon | E96: XOU Item | F96: 5849 | G96: 7799
A97: Peet's Coffee | B97: 2004-08-30 | C97: MidWest | D97: Rhonda | E97: JYF Item | F97: 3932 | G97: 6779
A98: Costco | B98: 2005-04-20 | C98: MidWest | D98: Sheliadawn | E98: TBQ Item | F98: 3970 | G98: 9233
A99: Nature Company | B99: 2005-09-16 | C99: West | D99: Jon | E99: EWM Item | F99: 1806 | G99: 4880
A100: The Economist | B100: 2006-01-20 | C100: NorthEast | D100: Troung | E100: EYP Item | F100: 2705 | G100: 4665
A101: Peet's Coffee | B101: 2005-05-13 | C101: NorthEast | D101: Steven | E101: BTJ Item | F101: 4431 | G101: 7640
A102: Google | B102: 2005-07-15 | C102: North | D102: Sheliadawn | E102: IAF Item | F102: 1909 | G102: 2545
A103: Costco | B103: 2004-10-02 | C103: MidWest | D103: Jeri | E103: CLS Item | F103: 6663 | G103: 7126
A104: ExcelIsVeryFun.com | B104: 2004-12-06 | C104: West | D104: Troung | E104: YGD Item | F104: 2227 | G104: 2531
A105: Yahoo | B105: 2004-10-09 | C105: NorthEast | D105: Steven | E105: DKM Item | F105: 5386 | G105: 7181
A106: Solar and Wind Inc. | B106: 2005-07-04 | C106: NorthEast | D106: Luke | E106: ULJ Item | F106: 3442 | G106: 5835
A107: Office Depot | B107: 2005-10-13 | C107: SouthEast | D107: Rhonda | E107: XMY Item | F107: 2395 | G107: 6474
A108: Whole Foods | B108: 2006-01-01 | C108: NorthEast | D108: Troung | E108: EHO Item | F108: 1252 | G108: 2122
A109: The Economist | B109: 2005-08-28 | C109: MidWest | D109: Sheliadawn | E109: WEW Item | F109: 5349 | G109: 7867
A110: The Economist | B110: 2005-08-27 | C110: NorthEast | D110: Steven | E110: III Item | F110: 5843 | G110: 6250
A111: Solar and Wind Inc. | B111: 2005-08-25 | C111: West | D111: Troung | E111: PUA Item | F111: 2050 | G111: 3535
A112: Office Depot | B112: 2005-08-03 | C112: West | D112: Jeri | E112: MEL Item | F112: 8815 | G112: 9427
A113: Whole Foods | B113: 2005-04-18 | C113: West | D113: Rhonda | E113: EFD Item | F113: 45 | G113: 82
A114: Sherman Williams | B114: 2004-08-09 | C114: MidWest | D114: Luke | E114: ZEI Item | F114: 1371 | G114: 2492
A115: Amazon.com | B115: 2006-01-11 | C115: North | D115: Jeri | E115: BZE Item | F115: 3250 | G115: 3475
A116: Nature Company | B116: 2004-08-30 | C116: SouthEast | D116: Jon | E116: BYE Item | F116: 4483 | G116: 6592
A117: Costco | B117: 2005-06-10 | C117: NorthEast | D117: Rhonda | E117: IWN Item | F117: 5332 | G117: 5702
A118: Whole Foods | B118: 2005-08-04 | C118: NorthEast | D118: Steven | E118: BAN Item | F118: 2881 | G118: 6701
A119: Nature Company | B119: 2006-05-13 | C119: North | D119: Rhonda | E119: OAP Item | F119: 2666 | G119: 7206
A120: Solar and Wind Inc. | B120: 2006-01-09 | C120: NorthEast | D120: Rhonda | E120: NZX Item | F120: 726 | G120: 1230
A121: Whole Foods | B121: 2004-08-18 | C121: NorthEast | D121: Steven | E121: VYM Item | F121: 2421 | G121: 6543
A122: Costco | B122: 2004-08-10 | C122: North | D122: Troung | E122: NFU Item | F122: 234 | G122: 266
A123: Costco | B123: 2006-02-15 | C123: NorthEast | D123: Chin | E123: TGL Item | F123: 59 | G123: 159
A124: Solar and Wind Inc. | B124: 2004-12-20 | C124: SouthEast | D124: Jon | E124: VIN Item | F124: 5877 | G124: 9960
A125: Sherman Williams | B125: 2004-07-02 | C125: NorthEast | D125: Jon | E125: OYO Item | F125: 836 | G125: 1520
A126: ExcelIsVeryFun.com | B126: 2006-03-03 | C126: West | D126: Troung | E126: KPO Item | F126: 426 | G126: 992
A127: Nature Company | B127: 2005-02-03 | C127: West | D127: Rhonda | E127: WHF Item | F127: 5163 | G127: 5522
A128: Google | B128: 2005-11-21 | C128: West | D128: Jon | E128: NWT Item | F128: 1769 | G128: 3050
A129: Amazon.com | B129: 2005-10-28 | C129: MidWest | D129: Chin | E129: WXR Item | F129: 2714 | G129: 4600
A130: Sherman Williams | B130: 2006-03-01 | C130: NorthEast | D130: Rhonda | E130: MKO Item | F130: 1886 | G130: 4190
A131: Amazon.com | B131: 2005-12-09 | C131: NorthEast | D131: Jon | E131: YQS Item | F131: 1479 | G131: 3287
A132: Office Depot | B132: 2005-05-18 | C132: NorthEast | D132: Troung | E132: PAY Item | F132: 3796 | G132: 6433
A133: Costco | B133: 2005-02-10 | C133: West | D133: Rhonda | E133: FSD Item | F133: 3806 | G133: 8852
A134: Home Depot | B134: 2005-03-01 | C134: NorthEast | D134: Chin | E134: AUW Item | F134: 2742 | G134: 6093
A135: Yahoo | B135: 2004-07-10 | C135: North | D135: Chin | E135: RCA Item | F135: 1905 | G135: 3228
A136: Whole Foods | B136: 2005-01-21 | C136: MidWest | D136: Luke | E136: NSN Item | F136: 8616 | G136: 9790
A137: McLendon's Hardware | B137: 2006-05-18 | C137: MidWest | D137: Troung | E137: RRT Item | F137: 2443 | G137: 6601
A138: Office Depot | B138: 2005-07-01 | C138: NorthEast | D138: Troung | E138: CMU Item | F138: 5413 | G138: 7960
A139: Peet's Coffee | B139: 2005-05-19 | C139: NorthEast | D139: Jeri | E139: QLL Item | F139: 1320 | G139: 2400
A140: Solar and Wind Inc. | B140: 2005-03-31 | C140: West | D140: Luke | E140: VDA Item | F140: 2944 | G140: 4990
A141: Google | B141: 2005-09-30 | C141: North | D141: Steven | E141: XXH Item | F141: 611 | G141: 898
A142: Google | B142: 2005-04-30 | C142: North | D142: Chin | E142: WPF Item | F142: 2402 | G142: 6491
A143: Costco | B143: 2005-07-12 | C143: NorthEast | D143: Jon | E143: ATV Item | F143: 2881 | G143: 3274
A144: Google | B144: 2006-05-02 | C144: NorthEast | D144: Troung | E144: KKL Item | F144: 1775 | G144: 4798
A145: Google | B145: 2005-11-04 | C145: West | D145: Troung | E145: ZAW Item | F145: 2879 | G145: 6397
A146: Home Depot | B146: 2006-02-06 | C146: North | D146: Rhonda | E146: KFE Item | F146: 1297 | G146: 2236
A147: ExcelIsVeryFun.com | B147: 2005-10-02 | C147: MidWest | D147: Jon | E147: NBK Item | F147: 168 | G147: 391
A148: The Economist | B148: 2005-09-19 | C148: West | D148: Sheliadawn | E148: KQN Item | F148: 1622 | G148: 4385
A149: Nature Company | B149: 2005-05-27 | C149: North | D149: Steven | E149: OGH Item | F149: 2116 | G149: 4922
A150: Costco | B150: 2005-12-16 | C150: MidWest | D150: Luke | E150: QDR Item | F150: 3978 | G150: 6859
A151: The Economist | B151: 2006-05-18 | C151: NorthEast | D151: Rhonda | E151: DIO Item | F151: 4247 | G151: 4542
A152: Peet's Coffee | B152: 2006-03-14 | C152: SouthEast | D152: Rhonda | E152: TIH Item | F152: 4846 | G152: 5507
A153: ExcelIsVeryFun.com | B153: 2006-03-21 | C153: North | D153: Steven | E153: MGO Item | F153: 2465 | G153: 4482
A154: Yahoo | B154: 2006-02-04 | C154: North | D154: Chin | E154: AIL Item | F154: 1143 | G154: 2658
A155: Google | B155: 2004-06-23 | C155: SouthEast | D155: Jon | E155: PQT Item | F155: 1708 | G155: 4616
A156: Peet's Coffee | B156: 2004-10-06 | C156: NorthEast | D156: Rhonda | E156: LVG Item | F156: 3672 | G156: 6330
A157: McLendon's Hardware | B157: 2006-03-31 | C157: North | D157: Rhonda | E157: WBN Item | F157: 893 | G157: 1313
A158: Whole Foods | B158: 2006-05-30 | C158: West | D158: Chin | E158: JLK Item | F158: 5224 | G158: 5587
A159: The Economist | B159: 2005-07-09 | C159: MidWest | D159: Steven | E159: MTL Item | F159: 3731 | G159: 3990
A160: Sherman Williams | B160: 2005-06-19 | C160: NorthEast | D160: Sheliadawn | E160: SBX Item | F160: 3282 | G160: 3729
A161: Solar and Wind Inc. | B161: 2005-12-12 | C161: NorthEast | D161: Luke | E161: MQW Item | F161: 92 | G161: 136
A162: Nature Company | B162: 2005-04-21 | C162: MidWest | D162: Chin | E162: CSJ Item | F162: 732 | G162: 1978
A163: Google | B163: 2005-02-08 | C163: MidWest | D163: Jon | E163: WWB Item | F163: 1937 | G163: 2582
A164: ExcelIsVeryFun.com | B164: 2005-09-08 | C164: West | D164: Chin | E164: RHM Item | F164: 891 | G164: 2072
A165: Costco | B165: 2006-05-30 | C165: West | D165: Luke | E165: JUE Item | F165: 1118 | G165: 1894
A166: Peet's Coffee | B166: 2006-02-06 | C166: NorthEast | D166: Sheliadawn | E166: GLG Item | F166: 3446 | G166: 8015
A167: Yahoo | B167: 2005-01-12 | C167: NorthEast | D167: Sheliadawn | E167: ONK Item | F167: 2648 | G167: 5884
A168: Nature Company | B168: 2004-12-25 | C168: MidWest | D168: Sheliadawn | E168: KKF Item | F168: 3344 | G168: 7431
A169: Sherman Williams | B169: 2005-03-29 | C169: SouthEast | D169: Jeri | E169: QGI Item | F169: 4345 | G169: 7492
A170: Amazon.com | B170: 2004-06-26 | C170: NorthEast | D170: Jeri | E170: AHN Item | F170: 5928 | G170: 6736
A171: Sherman Williams | B171: 2005-12-05 | C171: NorthEast | D171: Jeri | E171: SSU Item | F171: 1323 | G171: 2243
A172: Nature Company | B172: 2006-06-07 | C172: MidWest | D172: Jon | E172: QDA Item | F172: 5395 | G172: 9809
A173: Peet's Coffee | B173: 2005-09-17 | C173: North | D173: Jeri | E173: GHF Item | F173: 1576 | G173: 2865
A174: Google | B174: 2005-07-02 | C174: West | D174: Rhonda | E174: UNH Item | F174: 2727 | G174: 3637
A175: Solar and Wind Inc. | B175: 2005-10-24 | C175: West | D175: Sheliadawn | E175: PKE Item | F175: 7138 | G175: 9517
A176: Whole Foods | B176: 2006-02-10 | C176: North | D176: Steven | E176: TYZ Item | F176: 2542 | G176: 5913
A177: ExcelIsVeryFun.com | B177: 2005-08-25 | C177: North | D177: Troung | E177: WJP Item | F177: 2596 | G177: 5769
A178: Home Depot | B178: 2004-12-09 | C178: SouthEast | D178: Luke | E178: KBY Item | F178: 2935 | G178: 4316
A179: Yahoo | B179: 2004-08-23 | C179: North | D179: Chin | E179: VNQ Item | F179: 969 | G179: 1762
A180: Costco | B180: 2005-02-01 | C180: SouthEast | D180: Troung | E180: KJV Item | F180: 9319 | G180: 9967
A181: Sherman Williams | B181: 2004-10-24 | C181: NorthEast | D181: Sheliadawn | E181: HMW Item | F181: 5011 | G181: 7369
A182: Amazon.com | B182: 2005-03-11 | C182: NorthEast | D182: Troung | E182: CNH Item | F182: 4468 | G182: 6570
A183: Sherman Williams | B183: 2005-12-29 | C183: NorthEast | D183: Chin | E183: LEO Item | F183: 3133 | G183: 7285
A184: McLendon's Hardware | B184: 2005-08-20 | C184: West | D184: Troung | E184: EUH Item | F184: 196 | G184: 457
A185: Amazon.com | B185: 2005-09-16 | C185: West | D185: Chin | E185: LOP Item | F185: 266 | G185: 451
A186: Nature Company | B186: 2004-07-16 | C186: NorthEast | D186: Rhonda | E186: ESJ Item | F186: 5270 | G186: 9582
A187: Costco | B187: 2005-10-24 | C187: SouthEast | D187: Steven | E187: XLF Item | F187: 1798 | G187: 2044
A188: ExcelIsVeryFun.com | B188: 2004-08-03 | C188: North | D188: Luke | E188: MME Item | F188: 1281 | G188: 3463
A189: Costco | B189: 2005-02-19 | C189: SouthEast | D189: Jon | E189: IQG Item | F189: 117 | G189: 172
A190: ExcelIsVeryFun.com | B190: 2004-10-10 | C190: SouthEast | D190: Steven | E190: AWF Item | F190: 6418 | G190: 9438
A191: McLendon's Hardware | B191: 2005-09-17 | C191: NorthEast | D191: Chin | E191: TMF Item | F191: 1660 | G191: 4488
A192: Whole Foods | B192: 2005-06-28 | C192: NorthEast | D192: Rhonda | E192: UDS Item | F192: 3355 | G192: 3812
A193: Peet's Coffee | B193: 2004-12-02 | C193: West | D193: Jon | E193: YGP Item | F193: 6836 | G193: 7768
A194: Office Depot | B194: 2005-09-17 | C194: NorthEast | D194: Troung | E194: TUL Item | F194: 2919 | G194: 6486
A195: Sherman Williams | B195: 2005-02-16 | C195: NorthEast | D195: Sheliadawn | E195: JZO Item | F195: 6576 | G195: 8767
A196: Google | B196: 2005-04-17 | C196: NorthEast | D196: Jeri | E196: WBL Item | F196: 4715 | G196: 7991
A197: Sherman Williams | B197: 2005-01-25 | C197: MidWest | D197: Chin | E197: BPZ Item | F197: 3149 | G197: 3578
A198: Yahoo | B198: 2004-12-17 | C198: MidWest | D198: Steven | E198: WIP Item | F198: 3076 | G198: 5592
A199: Sherman Williams | B199: 2006-06-08 | C199: NorthEast | D199: Rhonda | E199: SWQ Item | F199: 4296 | G199: 9990
A200: Nature Company | B200: 2005-08-06 | C200: NorthEast | D200: Jon | E200: EZU Item | F200: 608 | G200: 1048
A201: Whole Foods | B201: 2005-03-19 | C201: SouthEast | D201: Sheliadawn | E201: NEE Item | F201: 4352 | G201: 7376
... 1802 more rows

Sheet HW(5an)
A1: In the green cells use SUMIFS to make the calculations.
I3: Boss asks: "Sales for each Region by Jeri"
A4: Customer | B4: Date | C4: Region | D4: SalesRep | E4: Product | F4: COGS | G4: Sales | I4: SalesReps
A5: Amazon.com | B5: 2005-10-07 | C5: SouthEast | D5: Luke | E5: AIM Item | F5: 3642 | G5: 6279 | I5: Jeri
A6: Costco | B6: 2004-10-26 | C6: West | D6: Jeri | E6: UYR Item | F6: 3189 | G6: 7416 | I6: Region | J6: Sales
A7: Home Depot | B7: 2005-05-20 | C7: North | D7: Sheliadawn | E7: XOU Item | F7: 3636 | G7: 6269 | I7: SouthEast | J7: =SUMIFS($G$5:$G$2003,$D$5:$D$2003,$I$5,$C$5:$C$2003,I7) -> 220681
A8: Whole Foods | B8: 2004-09-24 | C8: MidWest | D8: Jon | E8: ILP Item | F8: 2983 | G8: 5423 | I8: West | J8: =SUMIFS($G$5:$G$2003,$D$5:$D$2003,$I$5,$C$5:$C$2003,I8) -> 290772
A9: McLendon's Hardware | B9: 2005-01-14 | C9: MidWest | D9: Steven | E9: LXS Item | F9: 6386 | G9: 6830 | I9: North | J9: 169785
A10: Whole Foods | B10: 2005-04-03 | C10: West | D10: Sheliadawn | E10: MFB Item | F10: 1175 | G10: 2611 | I10: MidWest | J10: 207163
A11: Nature Company | B11: 2006-01-20 | C11: NorthEast | D11: Jeri | E11: NEE Item | F11: 2791 | G11: 4811 | I11: NorthEast | J11: 424238
A12: Home Depot | B12: 2006-02-26 | C12: SouthEast | D12: Jeri | E12: JHF Item | F12: 15 | G12: 22
A13: Amazon.com | B13: 2004-12-16 | C13: MidWest | D13: Jeri | E13: LII Item | F13: 7222 | G13: 8206
A14: Costco | B14: 2006-04-05 | C14: NorthEast | D14: Jeri | E14: FSJ Item | F14: 4647 | G14: 8450
A15: Yahoo | B15: 2005-06-24 | C15: NorthEast | D15: Jeri | E15: HVH Item | F15: 1264 | G15: 2143
A16: Sherman Williams | B16: 2004-08-22 | C16: SouthEast | D16: Chin | E16: YVD Item | F16: 3606 | G16: 6112
A17: Google | B17: 2005-11-09 | C17: NorthEast | D17: Luke | E17: TTM Item | F17: 204 | G17: 272
A18: Costco | B18: 2005-03-23 | C18: MidWest | D18: Rhonda | E18: MKA Item | F18: 944 | G18: 2552
A19: McLendon's Hardware | B19: 2005-10-03 | C19: MidWest | D19: Troung | E19: EVO Item | F19: 9190 | G19: 9829
A20: The Economist | B20: 2005-04-04 | C20: MidWest | D20: Rhonda | E20: EYG Item | F20: 3918 | G20: 4453
A21: Yahoo | B21: 2006-01-05 | C21: NorthEast | D21: Luke | E21: LVD Item | F21: 242 | G21: 322
A22: Nature Company | B22: 2004-11-06 | C22: NorthEast | D22: Luke | E22: BCD Item | F22: 564 | G22: 1025
A23: Costco | B23: 2005-09-25 | C23: SouthEast | D23: Jon | E23: UGN Item | F23: 1504 | G23: 2005
A24: Solar and Wind Inc. | B24: 2004-11-12 | C24: MidWest | D24: Chin | E24: PET Item | F24: 3505 | G24: 8150
A25: ExcelIsVeryFun.com | B25: 2004-12-07 | C25: West | D25: Jeri | E25: AIU Item | F25: 3846 | G25: 6992
A26: The Economist | B26: 2005-11-05 | C26: North | D26: Steven | E26: XIM Item | F26: 2510 | G26: 5838
A27: Amazon.com | B27: 2005-09-30 | C27: NorthEast | D27: Jeri | E27: AIZ Item | F27: 628 | G27: 923
A28: The Economist | B28: 2004-08-27 | C28: NorthEast | D28: Chin | E28: VBF Item | F28: 1441 | G28: 2443
A29: Costco | B29: 2004-08-18 | C29: NorthEast | D29: Rhonda | E29: VCN Item | F29: 2992 | G29: 3989
A30: ExcelIsVeryFun.com | B30: 2006-02-19 | C30: North | D30: Troung | E30: GHH Item | F30: 7658 | G30: 8702
A31: Home Depot | B31: 2005-12-11 | C31: NorthEast | D31: Jeri | E31: WPD Item | F31: 3141 | G31: 5415
A32: Costco | B32: 2005-03-17 | C32: NorthEast | D32: Chin | E32: YWP Item | F32: 558 | G32: 1298
A33: Home Depot | B33: 2004-12-01 | C33: North | D33: Sheliadawn | E33: BPJ Item | F33: 731 | G33: 1238
A34: Nature Company | B34: 2005-04-05 | C34: NorthEast | D34: Chin | E34: HLL Item | F34: 4008 | G34: 4555
A35: ExcelIsVeryFun.com | B35: 2005-03-04 | C35: MidWest | D35: Luke | E35: YAK Item | F35: 5246 | G35: 5610
A36: Nature Company | B36: 2006-05-19 | C36: West | D36: Jeri | E36: GVD Item | F36: 1855 | G36: 4313
A37: Whole Foods | B37: 2005-04-25 | C37: North | D37: Luke | E37: SRN Item | F37: 4662 | G37: 6856
A38: Yahoo | B38: 2004-09-24 | C38: West | D38: Luke | E38: UCA Item | F38: 1267 | G38: 2304
A39: ExcelIsVeryFun.com | B39: 2004-06-17 | C39: MidWest | D39: Chin | E39: MWN Item | F39: 6305 | G39: 9272
A40: Sherman Williams | B40: 2005-05-24 | C40: SouthEast | D40: Steven | E40: OQM Item | F40: 6515 | G40: 8687
A41: Costco | B41: 2005-10-20 | C41: SouthEast | D41: Luke | E41: CLN Item | F41: 612 | G41: 1360
A42: Costco | B42: 2005-01-09 | C42: North | D42: Jon | E42: MYE Item | F42: 3330 | G42: 7400
A43: Whole Foods | B43: 2005-12-29 | C43: NorthEast | D43: Steven | E43: FZS Item | F43: 359 | G43: 619
A44: McLendon's Hardware | B44: 2005-09-13 | C44: NorthEast | D44: Sheliadawn | E44: HUO Item | F44: 2307 | G44: 6234
A45: Home Depot | B45: 2006-05-12 | C45: NorthEast | D45: Steven | E45: DRO Item | F45: 4765 | G45: 8215
A46: Yahoo | B46: 2004-07-29 | C46: West | D46: Rhonda | E46: CJK Item | F46: 4675 | G46: 8501
A47: Home Depot | B47: 2005-04-12 | C47: NorthEast | D47: Jon | E47: MQP Item | F47: 4296 | G47: 7408
A48: Google | B48: 2006-05-03 | C48: NorthEast | D48: Rhonda | E48: MHX Item | F48: 2076 | G48: 3774
A49: Office Depot | B49: 2004-07-17 | C49: NorthEast | D49: Jon | E49: JYF Item | F49: 1210 | G49: 1614
A50: The Economist | B50: 2004-11-16 | C50: SouthEast | D50: Sheliadawn | E50: CRF Item | F50: 5399 | G50: 9309
A51: Office Depot | B51: 2005-03-16 | C51: SouthEast | D51: Chin | E51: ICN Item | F51: 606 | G51: 1102
A52: Home Depot | B52: 2004-08-17 | C52: MidWest | D52: Luke | E52: YHI Item | F52: 3419 | G52: 6216
A53: Sherman Williams | B53: 2005-10-13 | C53: SouthEast | D53: Jeri | E53: MJG Item | F53: 2705 | G53: 3073
A54: Solar and Wind Inc. | B54: 2005-09-26 | C54: North | D54: Troung | E54: GMO Item | F54: 5590 | G54: 7454
A55: Peet's Coffee | B55: 2005-06-12 | C55: SouthEast | D55: Luke | E55: ENW Item | F55: 3438 | G55: 5928
A56: Costco | B56: 2006-04-15 | C56: NorthEast | D56: Troung | E56: WCX Item | F56: 1182 | G56: 3195
A57: Nature Company | B57: 2005-12-30 | C57: SouthEast | D57: Troung | E57: EIS Item | F57: 5338 | G57: 7118
A58: Nature Company | B58: 2005-09-15 | C58: NorthEast | D58: Luke | E58: ZMF Item | F58: 3251 | G58: 4335
A59: Costco | B59: 2006-05-11 | C59: MidWest | D59: Chin | E59: VYV Item | F59: 3546 | G59: 3792
A60: Nature Company | B60: 2005-03-06 | C60: SouthEast | D60: Rhonda | E60: XWP Item | F60: 3155 | G60: 5347
A61: The Economist | B61: 2005-09-18 | C61: SouthEast | D61: Jeri | E61: MKP Item | F61: 448 | G61: 659
A62: Yahoo | B62: 2006-04-06 | C62: West | D62: Jon | E62: SHA Item | F62: 1935 | G62: 2198
A63: Nature Company | B63: 2004-09-07 | C63: North | D63: Sheliadawn | E63: NCH Item | F63: 5047 | G63: 5398
A64: The Economist | B64: 2005-02-16 | C64: SouthEast | D64: Jon | E64: XHR Item | F64: 4271 | G64: 7364
A65: The Economist | B65: 2004-12-27 | C65: North | D65: Jeri | E65: KWJ Item | F65: 5832 | G65: 7777
A66: Peet's Coffee | B66: 2004-09-30 | C66: MidWest | D66: Jon | E66: LRH Item | F66: 501 | G66: 1354
A67: Costco | B67: 2005-10-15 | C67: MidWest | D67: Troung | E67: WIL Item | F67: 815 | G67: 1382
A68: The Economist | B68: 2004-11-29 | C68: West | D68: Jon | E68: TGO Item | F68: 2675 | G68: 4533
A69: McLendon's Hardware | B69: 2005-03-28 | C69: West | D69: Steven | E69: WMW Item | F69: 4341 | G69: 7485
A70: Yahoo | B70: 2005-10-21 | C70: North | D70: Chin | E70: WKL Item | F70: 8597 | G70: 9195
A71: Solar and Wind Inc. | B71: 2006-03-02 | C71: North | D71: Sheliadawn | E71: PUD Item | F71: 3827 | G71: 8505
A72: Peet's Coffee | B72: 2004-09-09 | C72: West | D72: Rhonda | E72: UMN Item | F72: 1724 | G72: 2972
A73: Whole Foods | B73: 2006-03-01 | C73: MidWest | D73: Luke | E73: YNQ Item | F73: 3186 | G73: 8610
A74: ExcelIsVeryFun.com | B74: 2006-03-07 | C74: North | D74: Chin | E74: FMP Item | F74: 2672 | G74: 4859
A75: Sherman Williams | B75: 2006-05-16 | C75: NorthEast | D75: Sheliadawn | E75: ONY Item | F75: 272 | G75: 605
A76: Amazon.com | B76: 2005-12-14 | C76: NorthEast | D76: Chin | E76: SVF Item | F76: 948 | G76: 2204
A77: The Economist | B77: 2004-07-22 | C77: NorthEast | D77: Jeri | E77: KSG Item | F77: 650 | G77: 1181
A78: The Economist | B78: 2005-09-26 | C78: NorthEast | D78: Luke | E78: JTV Item | F78: 1731 | G78: 2985
A79: The Economist | B79: 2005-04-01 | C79: MidWest | D79: Rhonda | E79: QSA Item | F79: 6032 | G79: 6452
A80: ExcelIsVeryFun.com | B80: 2005-04-20 | C80: NorthEast | D80: Luke | E80: HAK Item | F80: 641 | G80: 1086
A81: Nature Company | B81: 2005-01-11 | C81: NorthEast | D81: Sheliadawn | E81: PBH Item | F81: 5217 | G81: 5929
A82: Sherman Williams | B82: 2005-08-07 | C82: SouthEast | D82: Troung | E82: GPQ Item | F82: 6550 | G82: 7005
A83: Sherman Williams | B83: 2005-10-03 | C83: MidWest | D83: Steven | E83: ILS Item | F83: 1461 | G83: 3949
A84: Home Depot | B84: 2004-12-11 | C84: North | D84: Luke | E84: LFD Item | F84: 3414 | G84: 9226
A85: Costco | B85: 2005-01-14 | C85: MidWest | D85: Chin | E85: QRV Item | F85: 2675 | G85: 4863
A86: Costco | B86: 2004-07-24 | C86: SouthEast | D86: Chin | E86: LFI Item | F86: 3410 | G86: 7578
A87: Solar and Wind Inc. | B87: 2006-01-08 | C87: North | D87: Rhonda | E87: SNK Item | F87: 2173 | G87: 3683
A88: Office Depot | B88: 2005-06-07 | C88: NorthEast | D88: Luke | E88: BJH Item | F88: 3387 | G88: 7527
A89: Home Depot | B89: 2005-02-17 | C89: SouthEast | D89: Steven | E89: DRK Item | F89: 2267 | G89: 5272
A90: Google | B90: 2006-06-10 | C90: NorthEast | D90: Troung | E90: DVC Item | F90: 3412 | G90: 3649
A91: Sherman Williams | B91: 2005-10-07 | C91: North | D91: Chin | E91: XNB Item | F91: 3465 | G91: 6299
A92: Solar and Wind Inc. | B92: 2006-05-17 | C92: NorthEast | D92: Jon | E92: JZS Item | F92: 2764 | G92: 4766
A93: Sherman Williams | B93: 2004-08-27 | C93: West | D93: Rhonda | E93: THO Item | F93: 4833 | G93: 8787
A94: Costco | B94: 2005-04-20 | C94: MidWest | D94: Troung | E94: KXJ Item | F94: 4502 | G94: 6002
A95: McLendon's Hardware | B95: 2004-08-29 | C95: NorthEast | D95: Steven | E95: VDD Item | F95: 3729 | G95: 4972
A96: Office Depot | B96: 2005-12-19 | C96: West | D96: Jon | E96: XOU Item | F96: 5849 | G96: 7799
A97: Peet's Coffee | B97: 2004-08-30 | C97: MidWest | D97: Rhonda | E97: JYF Item | F97: 3932 | G97: 6779
A98: Costco | B98: 2005-04-20 | C98: MidWest | D98: Sheliadawn | E98: TBQ Item | F98: 3970 | G98: 9233
A99: Nature Company | B99: 2005-09-16 | C99: West | D99: Jon | E99: EWM Item | F99: 1806 | G99: 4880
A100: The Economist | B100: 2006-01-20 | C100: NorthEast | D100: Troung | E100: EYP Item | F100: 2705 | G100: 4665
A101: Peet's Coffee | B101: 2005-05-13 | C101: NorthEast | D101: Steven | E101: BTJ Item | F101: 4431 | G101: 7640
A102: Google | B102: 2005-07-15 | C102: North | D102: Sheliadawn | E102: IAF Item | F102: 1909 | G102: 2545
A103: Costco | B103: 2004-10-02 | C103: MidWest | D103: Jeri | E103: CLS Item | F103: 6663 | G103: 7126
A104: ExcelIsVeryFun.com | B104: 2004-12-06 | C104: West | D104: Troung | E104: YGD Item | F104: 2227 | G104: 2531
A105: Yahoo | B105: 2004-10-09 | C105: NorthEast | D105: Steven | E105: DKM Item | F105: 5386 | G105: 7181
A106: Solar and Wind Inc. | B106: 2005-07-04 | C106: NorthEast | D106: Luke | E106: ULJ Item | F106: 3442 | G106: 5835
A107: Office Depot | B107: 2005-10-13 | C107: SouthEast | D107: Rhonda | E107: XMY Item | F107: 2395 | G107: 6474
A108: Whole Foods | B108: 2006-01-01 | C108: NorthEast | D108: Troung | E108: EHO Item | F108: 1252 | G108: 2122
A109: The Economist | B109: 2005-08-28 | C109: MidWest | D109: Sheliadawn | E109: WEW Item | F109: 5349 | G109: 7867
A110: The Economist | B110: 2005-08-27 | C110: NorthEast | D110: Steven | E110: III Item | F110: 5843 | G110: 6250
A111: Solar and Wind Inc. | B111: 2005-08-25 | C111: West | D111: Troung | E111: PUA Item | F111: 2050 | G111: 3535
A112: Office Depot | B112: 2005-08-03 | C112: West | D112: Jeri | E112: MEL Item | F112: 8815 | G112: 9427
A113: Whole Foods | B113: 2005-04-18 | C113: West | D113: Rhonda | E113: EFD Item | F113: 45 | G113: 82
A114: Sherman Williams | B114: 2004-08-09 | C114: MidWest | D114: Luke | E114: ZEI Item | F114: 1371 | G114: 2492
A115: Amazon.com | B115: 2006-01-11 | C115: North | D115: Jeri | E115: BZE Item | F115: 3250 | G115: 3475
A116: Nature Company | B116: 2004-08-30 | C116: SouthEast | D116: Jon | E116: BYE Item | F116: 4483 | G116: 6592
A117: Costco | B117: 2005-06-10 | C117: NorthEast | D117: Rhonda | E117: IWN Item | F117: 5332 | G117: 5702
A118: Whole Foods | B118: 2005-08-04 | C118: NorthEast | D118: Steven | E118: BAN Item | F118: 2881 | G118: 6701
A119: Nature Company | B119: 2006-05-13 | C119: North | D119: Rhonda | E119: OAP Item | F119: 2666 | G119: 7206
A120: Solar and Wind Inc. | B120: 2006-01-09 | C120: NorthEast | D120: Rhonda | E120: NZX Item | F120: 726 | G120: 1230
A121: Whole Foods | B121: 2004-08-18 | C121: NorthEast | D121: Steven | E121: VYM Item | F121: 2421 | G121: 6543
A122: Costco | B122: 2004-08-10 | C122: North | D122: Troung | E122: NFU Item | F122: 234 | G122: 266
A123: Costco | B123: 2006-02-15 | C123: NorthEast | D123: Chin | E123: TGL Item | F123: 59 | G123: 159
A124: Solar and Wind Inc. | B124: 2004-12-20 | C124: SouthEast | D124: Jon | E124: VIN Item | F124: 5877 | G124: 9960
A125: Sherman Williams | B125: 2004-07-02 | C125: NorthEast | D125: Jon | E125: OYO Item | F125: 836 | G125: 1520
A126: ExcelIsVeryFun.com | B126: 2006-03-03 | C126: West | D126: Troung | E126: KPO Item | F126: 426 | G126: 992
A127: Nature Company | B127: 2005-02-03 | C127: West | D127: Rhonda | E127: WHF Item | F127: 5163 | G127: 5522
A128: Google | B128: 2005-11-21 | C128: West | D128: Jon | E128: NWT Item | F128: 1769 | G128: 3050
A129: Amazon.com | B129: 2005-10-28 | C129: MidWest | D129: Chin | E129: WXR Item | F129: 2714 | G129: 4600
A130: Sherman Williams | B130: 2006-03-01 | C130: NorthEast | D130: Rhonda | E130: MKO Item | F130: 1886 | G130: 4190
A131: Amazon.com | B131: 2005-12-09 | C131: NorthEast | D131: Jon | E131: YQS Item | F131: 1479 | G131: 3287
A132: Office Depot | B132: 2005-05-18 | C132: NorthEast | D132: Troung | E132: PAY Item | F132: 3796 | G132: 6433
A133: Costco | B133: 2005-02-10 | C133: West | D133: Rhonda | E133: FSD Item | F133: 3806 | G133: 8852
A134: Home Depot | B134: 2005-03-01 | C134: NorthEast | D134: Chin | E134: AUW Item | F134: 2742 | G134: 6093
A135: Yahoo | B135: 2004-07-10 | C135: North | D135: Chin | E135: RCA Item | F135: 1905 | G135: 3228
A136: Whole Foods | B136: 2005-01-21 | C136: MidWest | D136: Luke | E136: NSN Item | F136: 8616 | G136: 9790
A137: McLendon's Hardware | B137: 2006-05-18 | C137: MidWest | D137: Troung | E137: RRT Item | F137: 2443 | G137: 6601
A138: Office Depot | B138: 2005-07-01 | C138: NorthEast | D138: Troung | E138: CMU Item | F138: 5413 | G138: 7960
A139: Peet's Coffee | B139: 2005-05-19 | C139: NorthEast | D139: Jeri | E139: QLL Item | F139: 1320 | G139: 2400
A140: Solar and Wind Inc. | B140: 2005-03-31 | C140: West | D140: Luke | E140: VDA Item | F140: 2944 | G140: 4990
A141: Google | B141: 2005-09-30 | C141: North | D141: Steven | E141: XXH Item | F141: 611 | G141: 898
A142: Google | B142: 2005-04-30 | C142: North | D142: Chin | E142: WPF Item | F142: 2402 | G142: 6491
A143: Costco | B143: 2005-07-12 | C143: NorthEast | D143: Jon | E143: ATV Item | F143: 2881 | G143: 3274
A144: Google | B144: 2006-05-02 | C144: NorthEast | D144: Troung | E144: KKL Item | F144: 1775 | G144: 4798
A145: Google | B145: 2005-11-04 | C145: West | D145: Troung | E145: ZAW Item | F145: 2879 | G145: 6397
A146: Home Depot | B146: 2006-02-06 | C146: North | D146: Rhonda | E146: KFE Item | F146: 1297 | G146: 2236
A147: ExcelIsVeryFun.com | B147: 2005-10-02 | C147: MidWest | D147: Jon | E147: NBK Item | F147: 168 | G147: 391
A148: The Economist | B148: 2005-09-19 | C148: West | D148: Sheliadawn | E148: KQN Item | F148: 1622 | G148: 4385
A149: Nature Company | B149: 2005-05-27 | C149: North | D149: Steven | E149: OGH Item | F149: 2116 | G149: 4922
A150: Costco | B150: 2005-12-16 | C150: MidWest | D150: Luke | E150: QDR Item | F150: 3978 | G150: 6859
A151: The Economist | B151: 2006-05-18 | C151: NorthEast | D151: Rhonda | E151: DIO Item | F151: 4247 | G151: 4542
A152: Peet's Coffee | B152: 2006-03-14 | C152: SouthEast | D152: Rhonda | E152: TIH Item | F152: 4846 | G152: 5507
A153: ExcelIsVeryFun.com | B153: 2006-03-21 | C153: North | D153: Steven | E153: MGO Item | F153: 2465 | G153: 4482
A154: Yahoo | B154: 2006-02-04 | C154: North | D154: Chin | E154: AIL Item | F154: 1143 | G154: 2658
A155: Google | B155: 2004-06-23 | C155: SouthEast | D155: Jon | E155: PQT Item | F155: 1708 | G155: 4616
A156: Peet's Coffee | B156: 2004-10-06 | C156: NorthEast | D156: Rhonda | E156: LVG Item | F156: 3672 | G156: 6330
A157: McLendon's Hardware | B157: 2006-03-31 | C157: North | D157: Rhonda | E157: WBN Item | F157: 893 | G157: 1313
A158: Whole Foods | B158: 2006-05-30 | C158: West | D158: Chin | E158: JLK Item | F158: 5224 | G158: 5587
A159: The Economist | B159: 2005-07-09 | C159: MidWest | D159: Steven | E159: MTL Item | F159: 3731 | G159: 3990
A160: Sherman Williams | B160: 2005-06-19 | C160: NorthEast | D160: Sheliadawn | E160: SBX Item | F160: 3282 | G160: 3729
A161: Solar and Wind Inc. | B161: 2005-12-12 | C161: NorthEast | D161: Luke | E161: MQW Item | F161: 92 | G161: 136
A162: Nature Company | B162: 2005-04-21 | C162: MidWest | D162: Chin | E162: CSJ Item | F162: 732 | G162: 1978
A163: Google | B163: 2005-02-08 | C163: MidWest | D163: Jon | E163: WWB Item | F163: 1937 | G163: 2582
A164: ExcelIsVeryFun.com | B164: 2005-09-08 | C164: West | D164: Chin | E164: RHM Item | F164: 891 | G164: 2072
A165: Costco | B165: 2006-05-30 | C165: West | D165: Luke | E165: JUE Item | F165: 1118 | G165: 1894
A166: Peet's Coffee | B166: 2006-02-06 | C166: NorthEast | D166: Sheliadawn | E166: GLG Item | F166: 3446 | G166: 8015
A167: Yahoo | B167: 2005-01-12 | C167: NorthEast | D167: Sheliadawn | E167: ONK Item | F167: 2648 | G167: 5884
A168: Nature Company | B168: 2004-12-25 | C168: MidWest | D168: Sheliadawn | E168: KKF Item | F168: 3344 | G168: 7431
A169: Sherman Williams | B169: 2005-03-29 | C169: SouthEast | D169: Jeri | E169: QGI Item | F169: 4345 | G169: 7492
A170: Amazon.com | B170: 2004-06-26 | C170: NorthEast | D170: Jeri | E170: AHN Item | F170: 5928 | G170: 6736
A171: Sherman Williams | B171: 2005-12-05 | C171: NorthEast | D171: Jeri | E171: SSU Item | F171: 1323 | G171: 2243
A172: Nature Company | B172: 2006-06-07 | C172: MidWest | D172: Jon | E172: QDA Item | F172: 5395 | G172: 9809
A173: Peet's Coffee | B173: 2005-09-17 | C173: North | D173: Jeri | E173: GHF Item | F173: 1576 | G173: 2865
A174: Google | B174: 2005-07-02 | C174: West | D174: Rhonda | E174: UNH Item | F174: 2727 | G174: 3637
A175: Solar and Wind Inc. | B175: 2005-10-24 | C175: West | D175: Sheliadawn | E175: PKE Item | F175: 7138 | G175: 9517
A176: Whole Foods | B176: 2006-02-10 | C176: North | D176: Steven | E176: TYZ Item | F176: 2542 | G176: 5913
A177: ExcelIsVeryFun.com | B177: 2005-08-25 | C177: North | D177: Troung | E177: WJP Item | F177: 2596 | G177: 5769
A178: Home Depot | B178: 2004-12-09 | C178: SouthEast | D178: Luke | E178: KBY Item | F178: 2935 | G178: 4316
A179: Yahoo | B179: 2004-08-23 | C179: North | D179: Chin | E179: VNQ Item | F179: 969 | G179: 1762
A180: Costco | B180: 2005-02-01 | C180: SouthEast | D180: Troung | E180: KJV Item | F180: 9319 | G180: 9967
A181: Sherman Williams | B181: 2004-10-24 | C181: NorthEast | D181: Sheliadawn | E181: HMW Item | F181: 5011 | G181: 7369
A182: Amazon.com | B182: 2005-03-11 | C182: NorthEast | D182: Troung | E182: CNH Item | F182: 4468 | G182: 6570
A183: Sherman Williams | B183: 2005-12-29 | C183: NorthEast | D183: Chin | E183: LEO Item | F183: 3133 | G183: 7285
A184: McLendon's Hardware | B184: 2005-08-20 | C184: West | D184: Troung | E184: EUH Item | F184: 196 | G184: 457
A185: Amazon.com | B185: 2005-09-16 | C185: West | D185: Chin | E185: LOP Item | F185: 266 | G185: 451
A186: Nature Company | B186: 2004-07-16 | C186: NorthEast | D186: Rhonda | E186: ESJ Item | F186: 5270 | G186: 9582
A187: Costco | B187: 2005-10-24 | C187: SouthEast | D187: Steven | E187: XLF Item | F187: 1798 | G187: 2044
A188: ExcelIsVeryFun.com | B188: 2004-08-03 | C188: North | D188: Luke | E188: MME Item | F188: 1281 | G188: 3463
A189: Costco | B189: 2005-02-19 | C189: SouthEast | D189: Jon | E189: IQG Item | F189: 117 | G189: 172
A190: ExcelIsVeryFun.com | B190: 2004-10-10 | C190: SouthEast | D190: Steven | E190: AWF Item | F190: 6418 | G190: 9438
A191: McLendon's Hardware | B191: 2005-09-17 | C191: NorthEast | D191: Chin | E191: TMF Item | F191: 1660 | G191: 4488
A192: Whole Foods | B192: 2005-06-28 | C192: NorthEast | D192: Rhonda | E192: UDS Item | F192: 3355 | G192: 3812
A193: Peet's Coffee | B193: 2004-12-02 | C193: West | D193: Jon | E193: YGP Item | F193: 6836 | G193: 7768
A194: Office Depot | B194: 2005-09-17 | C194: NorthEast | D194: Troung | E194: TUL Item | F194: 2919 | G194: 6486
A195: Sherman Williams | B195: 2005-02-16 | C195: NorthEast | D195: Sheliadawn | E195: JZO Item | F195: 6576 | G195: 8767
A196: Google | B196: 2005-04-17 | C196: NorthEast | D196: Jeri | E196: WBL Item | F196: 4715 | G196: 7991
A197: Sherman Williams | B197: 2005-01-25 | C197: MidWest | D197: Chin | E197: BPZ Item | F197: 3149 | G197: 3578
A198: Yahoo | B198: 2004-12-17 | C198: MidWest | D198: Steven | E198: WIP Item | F198: 3076 | G198: 5592
A199: Sherman Williams | B199: 2006-06-08 | C199: NorthEast | D199: Rhonda | E199: SWQ Item | F199: 4296 | G199: 9990
A200: Nature Company | B200: 2005-08-06 | C200: NorthEast | D200: Jon | E200: EZU Item | F200: 608 | G200: 1048
A201: Whole Foods | B201: 2005-03-19 | C201: SouthEast | D201: Sheliadawn | E201: NEE Item | F201: 4352 | G201: 7376
... 1802 more rows

Sheet HW(6)
A1: Using Mixed Cell References, complete the multiplication table.
A3: Mutiplication Table for my Little Sister
B4: 1 | C4: 2 | D4: 3 | E4: 4 | F4: 5 | G4: 6 | H4: 7 | I4: 8 | J4: 9 | K4: 10 | L4: 11 | M4: 12
A5: 1
A6: 2
A7: 3
A8: 4
A9: 5
A10: 6
A11: 7
A12: 8
A13: 9
A14: 10
A15: 11
A16: 12

Sheet HW(6an)
A1: Using Mixed Cell References, complete the multiplication table.
A3: Mutiplication Table for my Little Sister
B4: 1 | C4: 2 | D4: 3 | E4: 4 | F4: 5 | G4: 6 | H4: 7 | I4: 8 | J4: 9 | K4: 10 | L4: 11 | M4: 12
A5: 1 | B5: =B$4*$A5 -> 1 | C5: 2 | D5: 3 | E5: 4 | F5: 5 | G5: 6 | H5: 7 | I5: 8 | J5: 9 | K5: 10 | L5: 11 | M5: 12
A6: 2 | B6: 2 | C6: 4 | D6: 6 | E6: 8 | F6: 10 | G6: 12 | H6: 14 | I6: 16 | J6: 18 | K6: 20 | L6: 22 | M6: 24
A7: 3 | B7: 3 | C7: 6 | D7: 9 | E7: 12 | F7: 15 | G7: 18 | H7: 21 | I7: 24 | J7: 27 | K7: 30 | L7: 33 | M7: 36
A8: 4 | B8: 4 | C8: 8 | D8: 12 | E8: 16 | F8: 20 | G8: 24 | H8: 28 | I8: 32 | J8: 36 | K8: 40 | L8: 44 | M8: 48
A9: 5 | B9: 5 | C9: 10 | D9: 15 | E9: 20 | F9: 25 | G9: 30 | H9: 35 | I9: 40 | J9: 45 | K9: 50 | L9: 55 | M9: 60
A10: 6 | B10: 6 | C10: 12 | D10: 18 | E10: 24 | F10: 30 | G10: 36 | H10: 42 | I10: 48 | J10: 54 | K10: 60 | L10: 66 | M10: 72
A11: 7 | B11: 7 | C11: 14 | D11: 21 | E11: 28 | F11: 35 | G11: 42 | H11: 49 | I11: 56 | J11: 63 | K11: 70 | L11: 77 | M11: 84
A12: 8 | B12: 8 | C12: 16 | D12: 24 | E12: 32 | F12: 40 | G12: 48 | H12: 56 | I12: 64 | J12: 72 | K12: 80 | L12: 88 | M12: 96
A13: 9 | B13: 9 | C13: 18 | D13: 27 | E13: 36 | F13: 45 | G13: 54 | H13: 63 | I13: 72 | J13: 81 | K13: 90 | L13: 99 | M13: 108
A14: 10 | B14: 10 | C14: 20 | D14: 30 | E14: 40 | F14: 50 | G14: 60 | H14: 70 | I14: 80 | J14: 90 | K14: 100 | L14: 110 | M14: 120
A15: 11 | B15: 11 | C15: 22 | D15: 33 | E15: 44 | F15: 55 | G15: 66 | H15: 77 | I15: 88 | J15: 99 | K15: 110 | L15: 121 | M15: 132
A16: 12 | B16: 12 | C16: 24 | D16: 36 | E16: 48 | F16: 60 | G16: 72 | H16: 84 | I16: 96 | J16: 108 | K16: 120 | L16: 132 | M16: 144

Sheet HW(7)
A1: Create the formulas to complete the Projected Net Income Statement.
B4: Jan | C4: Feb | D4: Mar | E4: Apr
A5: Revenue | B5: 5000 | C5: 6000 | D5: 7500 | E5: 6900
A6: =A15 -> Expense 1
A7: =A16 -> Expense 2
A8: =A17 -> Expense 3
A9: =A18 -> Expense 4
A10: =A19 -> Expense 5
A11: Total Expenses
A12: Net Income
A14: Assumption Table (Formula Inputs)
A15: Expense 1 | B15: 0.2
A16: Expense 2 | B16: 0.15
A17: Expense 3 | B17: 0.14
A18: Expense 4 | B18: 0.05
A19: Expense 5 | B19: 0.33

Sheet HW(7an)
A1: Create the formulas to complete the Projected Net Income Statement.
B4: Jan | C4: Feb | D4: Mar | E4: Apr
A5: Revenue | B5: 5000 | C5: 6000 | D5: 7500 | E5: 6900
A6: =A15 -> Expense 1 | B6: =ROUND(B$5*$B15,2) -> 1000 | C6: 1200 | D6: 1500 | E6: 1380
A7: =A16 -> Expense 2 | B7: 750 | C7: 900 | D7: 1125 | E7: 1035
A8: =A17 -> Expense 3 | B8: 700 | C8: 840 | D8: 1050 | E8: 966
A9: =A18 -> Expense 4 | B9: 250 | C9: 300 | D9: 375 | E9: 345
A10: =A19 -> Expense 5 | B10: 1650 | C10: 1980 | D10: 2475 | E10: 2277
A11: Total Expenses | B11: =SUM(B6:B10) -> 4350 | C11: 5220 | D11: 6525 | E11: 6003
A12: Net Income | B12: =B5-B11 -> 650 | C12: 780 | D12: 975 | E12: 897
A14: Assumption Table (Formula Inputs)
A15: Expense 1 | B15: 0.2
A16: Expense 2 | B16: 0.15
A17: Expense 3 | B17: 0.14
A18: Expense 4 | B18: 0.05
A19: Expense 5 | B19: 0.33

Sheet HW(8)
A1: In the green cells create a formula that calculates the expenses as a percent of Income.
B3: Month | C3: Income | D3: =D16 -> Expense 1 | E3: Expense 2 | F3: Expense 3 | G3: Expense 4 | H3: Expense 5 | I3: Expense 6 | J3: Expense 7
B4: Jan | C4: 5000
B5: Feb | C5: 6000
B6: Mar | C6: 7500
B7: Apr | C7: 8000
B8: May | C8: 8000
B9: Jun | C9: 8000
B10: Jul | C10: 10000
B11: Aug | C11: 11000
B12: Sep | C12: 15000
A15: Assumptions (Formula Inputs) | D15: Assumptions (Formula Inputs)
A16: Expense 1 | B16: 0.1 | D16: Expense 1 | E16: Expense 2 | F16: Expense 3 | G16: Expense 4 | H16: Expense 5 | I16: Expense 6 | J16: Expense 7
A17: Expense 2 | B17: 0.05 | D17: 0.1 | E17: 0.05 | F17: 0.12 | G17: 0.045 | H17: 0.21 | I17: 0.04 | J17: 0.03
A18: Expense 3 | B18: 0.12
A19: Expense 4 | B19: 0.045
A20: Expense 5 | B20: 0.21
A21: Expense 6 | B21: 0.04
A22: Expense 7 | B22: 0.03

Sheet HW(8an)
A1: In the green cells create a formula that calculates the expenses as a percent of Income.
B3: Month | C3: Income | D3: =D16 -> Expense 1 | E3: Expense 2 | F3: Expense 3 | G3: Expense 4 | H3: Expense 5 | I3: Expense 6 | J3: Expense 7
B4: Jan | C4: 5000 | D4: =ROUND($C4*D$17,2) -> 500 | E4: 250 | F4: 600 | G4: 225 | H4: 1050 | I4: 200 | J4: 150
B5: Feb | C5: 6000 | D5: 600 | E5: 300 | F5: 720 | G5: 270 | H5: 1260 | I5: 240 | J5: 180
B6: Mar | C6: 7500 | D6: 750 | E6: 375 | F6: 900 | G6: 337.5 | H6: 1575 | I6: 300 | J6: 225
B7: Apr | C7: 8000 | D7: 800 | E7: 400 | F7: 960 | G7: 360 | H7: 1680 | I7: 320 | J7: 240
B8: May | C8: 8000 | D8: 800 | E8: 400 | F8: 960 | G8: 360 | H8: 1680 | I8: 320 | J8: 240
B9: Jun | C9: 8000 | D9: 800 | E9: 400 | F9: 960 | G9: 360 | H9: 1680 | I9: 320 | J9: 240
B10: Jul | C10: 10000 | D10: 1000 | E10: 500 | F10: 1200 | G10: 450 | H10: 2100 | I10: 400 | J10: 300
B11: Aug | C11: 11000 | D11: 1100 | E11: 550 | F11: 1320 | G11: 495 | H11: 2310 | I11: 440 | J11: 330
B12: Sep | C12: 15000 | D12: 1500 | E12: 750 | F12: 1800 | G12: 675 | H12: 3150 | I12: 600 | J12: 450
A15: Assumptions (Formula Inputs) | D15: Assumptions (Formula Inputs)
A16: Expense 1 | B16: 0.1 | D16: Expense 1 | E16: Expense 2 | F16: Expense 3 | G16: Expense 4 | H16: Expense 5 | I16: Expense 6 | J16: Expense 7
A17: Expense 2 | B17: 0.05 | D17: 0.1 | E17: 0.05 | F17: 0.12 | G17: 0.045 | H17: 0.21 | I17: 0.04 | J17: 0.03
A18: Expense 3 | B18: 0.12
A19: Expense 4 | B19: 0.045
A20: Expense 5 | B20: 0.21
A21: Expense 6 | B21: 0.04
A22: Expense 7 | B22: 0.03

Sheet HW(9)
A1: Create the formulas to complete the Projected Net Income Statement.
B3: Jan | C3: Feb | D3: Mar | E3: Apr | F3: May | G3: Jun
A4: Sales | B4: 100 | C4: 200 | D4: 300 | E4: 400 | F4: 500 | G4: 600 | I4: Assumptions
A5: Ex1 | I5: Ex1 | J5: 0.03
A6: Ex2 | I6: Ex2 | J6: 0.04
A7: Ex3 | I7: Ex3 | J7: 0.05
A8: Ex4 | I8: Ex4 | J8: 0.06
A9: Ex5 | I9: Ex5 | J9: 0.07
A10: Ex6 | I10: Ex6 | J10: 0.08
A11: Ex7 | I11: Ex7 | J11: 0.09
A12: Ex8 | I12: Ex8 | J12: 0.1
A13: Ex9 | I13: Ex9 | J13: 0.11
A14: Ex10 | I14: Ex10 | J14: 0.12
A15: Ex11 | I15: Ex11 | J15: 0.13
A16: Total Ex
A17: Net Income

Sheet HW(9an)
A1: 1) Create the formulas to complete the Projected Net Income Statement. Before you start creating formulas, analyze the setup and make adjustments if necessary to be efficient.
B3: Jan | C3: Feb | D3: Mar | E3: Apr | F3: May | G3: Jun
A4: Sales | B4: 100 | C4: 200 | D4: 300 | E4: 400 | F4: 500 | G4: 600 | I4: Assumptions
A5: Ex1 | B5: =ROUND(B$4*$J5,2) -> 3 | C5: 6 | D5: 9 | E5: 12 | F5: 15 | G5: 18 | I5: Ex1 | J5: 0.03
A6: Ex2 | B6: 4 | C6: 8 | D6: 12 | E6: 16 | F6: 20 | G6: 24 | I6: Ex2 | J6: 0.04
A7: Ex3 | B7: 5 | C7: 10 | D7: 15 | E7: 20 | F7: 25 | G7: 30 | I7: Ex3 | J7: 0.05
A8: Ex4 | B8: 6 | C8: 12 | D8: 18 | E8: 24 | F8: 30 | G8: 36 | I8: Ex4 | J8: 0.06
A9: Ex5 | B9: 7 | C9: 14 | D9: 21 | E9: 28 | F9: 35 | G9: 42 | I9: Ex5 | J9: 0.07
A10: Ex6 | B10: 8 | C10: 16 | D10: 24 | E10: 32 | F10: 40 | G10: 48 | I10: Ex6 | J10: 0.08
A11: Ex7 | B11: 9 | C11: 18 | D11: 27 | E11: 36 | F11: 45 | G11: 54 | I11: Ex7 | J11: 0.09
A12: Ex8 | B12: 10 | C12: 20 | D12: 30 | E12: 40 | F12: 50 | G12: 60 | I12: Ex8 | J12: 0.1
A13: Ex9 | B13: 11 | C13: 22 | D13: 33 | E13: 44 | F13: 55 | G13: 66 | I13: Ex9 | J13: 0.11
A14: Ex10 | B14: 12 | C14: 24 | D14: 36 | E14: 48 | F14: 60 | G14: 72 | I14: Ex10 | J14: 0.12
A15: Ex11 | B15: 13 | C15: 26 | D15: 39 | E15: 52 | F15: 65 | G15: 78 | I15: Ex11 | J15: 0.13
A16: Total Ex | B16: =SUM(B5:B15) -> 88 | C16: =SUM(C5:C15) -> 176 | D16: 264 | E16: 352 | F16: 440 | G16: 528 | J16: =SUM(J5:J15) -> 0.88
A17: Net Income | B17: =B4-B16 -> 12 | C17: 24 | D17: 36 | E17: 48 | F17: 60 | G17: 72

Sheet HW(10)
A1: The projected revenue for Jan, Feb and Mar are $1000, $2000, and $2500 respectively. The projected expenses as a percentage of revenue for each month are: Rent = 25%, Operating Expenses = 35%, Administrative expenses = 10% and Miscellaneous expenses = 8.5%. Create a projected Income Statement and formatted it so it looks good.

Sheet HW(10an)
A1: The projected revenue for Jan, Feb and Mar are $1000, $2000, and $2500 respectively. The projected expenses as a percentage of revenue for each month are: Rent = 25%, Operating Expenses = 35%, Administrative expenses = 10% and Miscellaneous expenses = 8.5%. Create a projected Income Statement and formatted it so it looks good.
A4: Month | B4: Rev | C4: =C9 -> Rent | D4: Operating Expense | E4: Admin Expenses | F4: Misc. Expenses | G4: Total Expenses | H4: Net Income
A5: Jan | B5: 1000 | C5: =ROUND($B5*C$10,2) -> 250 | D5: 350 | E5: 100 | F5: 85 | G5: =SUM(C5:F5) -> 785 | H5: =B5-G5 -> 215
A6: Feb | B6: 2000 | C6: 500 | D6: 700 | E6: 200 | F6: 170 | G6: 1570 | H6: 430
A7: Mar | B7: 2500 | C7: 625 | D7: 875 | E7: 250 | F7: 212.5 | G7: 1962.5 | H7: 537.5
C9: Rent | D9: Operating Expense | E9: Admin Expenses | F9: Misc. Expenses
C10: 0.25 | D10: 0.35 | E10: 0.1 | F10: 0.085
A12: OR
B14: Jan | C14: Feb | D14: Mar
A15: Rev | B15: 1000 | C15: 2000 | D15: 2500
A16: =A23 -> Rent | B16: =ROUND(B$15*$B23,2) -> 250 | C16: 500 | D16: 625
A17: =A24 -> Operating Expense | B17: 350 | C17: 700 | D17: 875
A18: =A25 -> Admin Expenses | B18: 100 | C18: 200 | D18: 250
A19: =A26 -> Misc. Expenses | B19: 85 | C19: 170 | D19: 212.5
A20: Total Expenses | B20: =SUM(B16:B19) -> 785 | C20: =SUM(C16:C19) -> 1570 | D20: =SUM(D16:D19) -> 1962.5
A21: Net Income | B21: =B15-B20 -> 215 | C21: =C15-C20 -> 430 | D21: =D15-D20 -> 537.5
A23: Rent | B23: 0.25
A24: Operating Expense | B24: 0.35
A25: Admin Expenses | B25: 0.1
A26: Misc. Expenses | B26: 0.085
